Department Family,Entity,Date of Payment,Expense Type,Expense Area,Supplier,Voluntary & Community Sector,SME Class,Sole Trader,Transaction number,PSPES Level 2,Item Text,Purchasing Item Text,Narrative,Postal Code,Amount in Sterling,Grant?
Communities & Local Government,DCLG,02/09/2013,Accommodation Service Charges,Neighbourhoods,GVA GRIMLEY LTD,,Large,,5106196648,Accommodation Services,,ERDF SWC LDU Valuation Service to Dec 13,ERDF SWC LDU Valuation Service to Dec 13,B1 2JB,"3,480.00",
Communities & Local Government,DCLG,02/09/2013,Agency Staff,Localism,MANPOWER UK LTD,,Large,,5106196687,Contingent Labour,,3 month extension,3 month extension,UB8 1AB,830.28,
Communities & Local Government,DCLG,02/09/2013,Courier Services,Finance & Corporate Services,INTERSERVE (FACILITIES MANAGEMENT),,Large,,5106196686,Post & Courier,,Eland House Mail 13-14,Eland House Mail 13-14,BS32 4NH,"7,886.12",
Communities & Local Government,DCLG,02/09/2013,Courier Services,Finance & Corporate Services,INTERSERVE (FACILITIES MANAGEMENT),,Large,,5106196686,Post & Courier,,Rivergate Mail 13-14,Rivergate Mail 13-14,BS32 4NH,"1,519.43",
Communities & Local Government,DCLG,02/09/2013,Domestic Services,Finance & Corporate Services,INTERSERVE (FACILITIES MANAGEMENT),,Large,,5106196686,Cleaning,,Eland House Cleaning 13-14,Eland House Cleaning 13-14,BS32 4NH,"27,469.95",
Communities & Local Government,DCLG,02/09/2013,Domestic Services,Finance & Corporate Services,INTERSERVE (FACILITIES MANAGEMENT),,Large,,5106196686,Cleaning,,TQH Cleaning 13-14,TQH Cleaning 13-14,BS32 4NH,"9,032.52",
Communities & Local Government,DCLG,02/09/2013,Domestic Services,Finance & Corporate Services,INTERSERVE (FACILITIES MANAGEMENT),,Large,,5106196686,Cleaning,,Hemel Hemp Cleaning 13-14,Hemel Hemp Cleaning 13-14,BS32 4NH,"2,185.31",
Communities & Local Government,DCLG,02/09/2013,Domestic Services,Finance & Corporate Services,INTERSERVE (FACILITIES MANAGEMENT),,Large,,5106196686,Cleaning,,Rivergate Cleaning 13-14,Rivergate Cleaning 13-14,BS32 4NH,"5,167.99",
Communities & Local Government,DCLG,02/09/2013,Domestic Services,Finance & Corporate Services,INTERSERVE (FACILITIES MANAGEMENT),,Large,,5106196686,Cleaning,,Bridge House Cleaning 13-14,Bridge House Cleaning 13-14,BS32 4NH,"3,029.46",
Communities & Local Government,DCLG,02/09/2013,Domestic Services,Finance & Corporate Services,INTERSERVE (FACILITIES MANAGEMENT),,Large,,5106196686,Cleaning,,Citygate Cleaning 13-14,Citygate Cleaning 13-14,BS32 4NH,"3,046.41",
Communities & Local Government,DCLG,02/09/2013,Domestic Services,Finance & Corporate Services,INTERSERVE (FACILITIES MANAGEMENT),,Large,,5106196686,Cleaning,,Queen Street Cleaning 13-14,Queen Street Cleaning 13-14,BS32 4NH,"2,566.06",
Communities & Local Government,DCLG,02/09/2013,Domestic Services,Finance & Corporate Services,INTERSERVE (FACILITIES MANAGEMENT),,Large,,5106196686,Cleaning,,5SPP Cleaning 13-14,5SPP Cleaning 13-14,BS32 4NH,"6,808.15",
Communities & Local Government,DCLG,02/09/2013,Domestic Services,Finance & Corporate Services,INTERSERVE (FACILITIES MANAGEMENT),,Large,,5106196686,Cleaning,,Paradise Cleaning 13-14,Paradise Cleaning 13-14,BS32 4NH,"3,114.09",
Communities & Local Government,DCLG,02/09/2013,Facilities Management (ISD use only),Finance & Corporate Services,INTERSERVE (FACILITIES MANAGEMENT),,Large,,5106196686,Building Management,,Eland House Off Site Management 13-14,Eland House Off Site Management 13-14,BS32 4NH,"11,118.18",
Communities & Local Government,DCLG,02/09/2013,Facilities Management (ISD use only),Finance & Corporate Services,INTERSERVE (FACILITIES MANAGEMENT),,Large,,5106196686,Building Management,,Eland House Reception 13-14,Eland House Reception 13-14,BS32 4NH,"4,902.61",
Communities & Local Government,DCLG,02/09/2013,Facilities Management (ISD use only),Finance & Corporate Services,INTERSERVE (FACILITIES MANAGEMENT),,Large,,5106196686,Building Management,,TQH Off Site Management 13-14,TQH Off Site Management 13-14,BS32 4NH,"7,874.37",
Communities & Local Government,DCLG,02/09/2013,Facilities Management (ISD use only),Finance & Corporate Services,INTERSERVE (FACILITIES MANAGEMENT),,Large,,5106196686,Building Management,,TQH On Site Management 13-14,TQH On Site Management 13-14,BS32 4NH,"3,181.32",
Communities & Local Government,DCLG,02/09/2013,Facilities Management (ISD use only),Finance & Corporate Services,INTERSERVE (FACILITIES MANAGEMENT),,Large,,5106196686,Building Management,,TQH Reception 13-14,TQH Reception 13-14,BS32 4NH,"1,663.29",
Communities & Local Government,DCLG,02/09/2013,Facilities Management (ISD use only),Finance & Corporate Services,INTERSERVE (FACILITIES MANAGEMENT),,Large,,5106196686,Building Management,,Hemel Hemp Off Site Management 13-14,Hemel Hemp Off Site Management 13-14,BS32 4NH,877.78,
Communities & Local Government,DCLG,02/09/2013,Facilities Management (ISD use only),Finance & Corporate Services,INTERSERVE (FACILITIES MANAGEMENT),,Large,,5106196686,Building Management,,Rivergate Off Site Management 13-14,Rivergate Off Site Management 13-14,BS32 4NH,"3,589.89",
Communities & Local Government,DCLG,02/09/2013,Facilities Management (ISD use only),Finance & Corporate Services,INTERSERVE (FACILITIES MANAGEMENT),,Large,,5106196686,Building Management,,Rivergate Reception 13-14,Rivergate Reception 13-14,BS32 4NH,"1,653.74",
Communities & Local Government,DCLG,02/09/2013,Facilities Management (ISD use only),Finance & Corporate Services,INTERSERVE (FACILITIES MANAGEMENT),,Large,,5106196686,Building Management,,Bridge House Off Site Management 13-14,Bridge House Off Site Management 13-14,BS32 4NH,"1,733.80",
Communities & Local Government,DCLG,02/09/2013,Facilities Management (ISD use only),Finance & Corporate Services,INTERSERVE (FACILITIES MANAGEMENT),,Large,,5106196686,Building Management,,Bridge House On Site Management 13-14,Bridge House On Site Management 13-14,BS32 4NH,"3,611.43",
Communities & Local Government,DCLG,02/09/2013,Facilities Management (ISD use only),Finance & Corporate Services,INTERSERVE (FACILITIES MANAGEMENT),,Large,,5106196686,Building Management,,Citygate Off Site Management 13-14,Citygate Off Site Management 13-14,BS32 4NH,"2,946.06",
Communities & Local Government,DCLG,02/09/2013,Facilities Management (ISD use only),Finance & Corporate Services,INTERSERVE (FACILITIES MANAGEMENT),,Large,,5106196686,Building Management,,Citygate On Site Management 13-14,Citygate On Site Management 13-14,BS32 4NH,"2,493.40",
Communities & Local Government,DCLG,02/09/2013,Facilities Management (ISD use only),Finance & Corporate Services,INTERSERVE (FACILITIES MANAGEMENT),,Large,,5106196686,Building Management,,Citygate Reception 13-14,Citygate Reception 13-14,BS32 4NH,"1,589.29",
Communities & Local Government,DCLG,02/09/2013,Facilities Management (ISD use only),Finance & Corporate Services,INTERSERVE (FACILITIES MANAGEMENT),,Large,,5106196686,Building Management,,Queen Street Off Site Management 13-14,Queen Street Off Site Management 13-14,BS32 4NH,"1,596.05",
Communities & Local Government,DCLG,02/09/2013,Facilities Management (ISD use only),Finance & Corporate Services,INTERSERVE (FACILITIES MANAGEMENT),,Large,,5106196686,Building Management,,5SPP Off Site Management 13-14,5SPP Off Site Management 13-14,BS32 4NH,"2,911.74",
Communities & Local Government,DCLG,02/09/2013,Facilities Management (ISD use only),Finance & Corporate Services,INTERSERVE (FACILITIES MANAGEMENT),,Large,,5106196686,Building Management,,5SPP On Site Management 13-14,5SPP On Site Management 13-14,BS32 4NH,"2,989.01",
Communities & Local Government,DCLG,02/09/2013,Facilities Management (ISD use only),Finance & Corporate Services,INTERSERVE (FACILITIES MANAGEMENT),,Large,,5106196686,Building Management,,5SPP Reception 13-14,5SPP Reception 13-14,BS32 4NH,"2,813.24",
Communities & Local Government,DCLG,02/09/2013,Facilities Management (ISD use only),Finance & Corporate Services,INTERSERVE (FACILITIES MANAGEMENT),,Large,,5106196686,Building Management,,Pardise Off Site Management 13-14,Pardise Off Site Management 13-14,BS32 4NH,"1,673.87",
Communities & Local Government,DCLG,02/09/2013,Fixed Maintenance,Finance & Corporate Services,INTERSERVE (FACILITIES MANAGEMENT),,Large,,5106196686,Environmental Services,,Bridge House Grounds Maintenance 13-14,Bridge House Grounds Maintenance 13-14,BS32 4NH,259.21,
Communities & Local Government,DCLG,02/09/2013,Fixed Maintenance,Finance & Corporate Services,INTERSERVE (FACILITIES MANAGEMENT),,Large,,5106196686,Environmental Services,,Queen Street Grounds Maintenance 13-14,Queen Street Grounds Maintenance 13-14,BS32 4NH,13.16,
Communities & Local Government,DCLG,02/09/2013,Fixed Maintenance,Finance & Corporate Services,INTERSERVE (FACILITIES MANAGEMENT),,Large,,5106196686,Construction Service Providers,,Eland House Maintenance 13-14,Eland House Maintenance 13-14,BS32 4NH,"39,360.08",
Communities & Local Government,DCLG,02/09/2013,Fixed Maintenance,Finance & Corporate Services,INTERSERVE (FACILITIES MANAGEMENT),,Large,,5106196686,Construction Service Providers,,TQH Maintenance 13-14,TQH Maintenance 13-14,BS32 4NH,"6,027.81",
Communities & Local Government,DCLG,02/09/2013,Fixed Maintenance,Finance & Corporate Services,INTERSERVE (FACILITIES MANAGEMENT),,Large,,5106196686,Construction Service Providers,,Hemel Hemp Maintenance 13-14,Hemel Hemp Maintenance 13-14,BS32 4NH,"5,359.95",
Communities & Local Government,DCLG,02/09/2013,Fixed Maintenance,Finance & Corporate Services,INTERSERVE (FACILITIES MANAGEMENT),,Large,,5106196686,Construction Service Providers,,Rivergate Maintenance 13-14,Rivergate Maintenance 13-14,BS32 4NH,"3,840.85",
Communities & Local Government,DCLG,02/09/2013,Fixed Maintenance,Finance & Corporate Services,INTERSERVE (FACILITIES MANAGEMENT),,Large,,5106196686,Construction Service Providers,,Bridge House Maintenance 13-14,Bridge House Maintenance 13-14,BS32 4NH,"4,987.45",
Communities & Local Government,DCLG,02/09/2013,Fixed Maintenance,Finance & Corporate Services,INTERSERVE (FACILITIES MANAGEMENT),,Large,,5106196686,Construction Service Providers,,Citygate Maintenance 13-14,Citygate Maintenance 13-14,BS32 4NH,"3,585.11",
Communities & Local Government,DCLG,02/09/2013,Fixed Maintenance,Finance & Corporate Services,INTERSERVE (FACILITIES MANAGEMENT),,Large,,5106196686,Construction Service Providers,,Queen Street Maintenance 13-14,Queen Street Maintenance 13-14,BS32 4NH,"6,538.37",
Communities & Local Government,DCLG,02/09/2013,Fixed Maintenance,Finance & Corporate Services,INTERSERVE (FACILITIES MANAGEMENT),,Large,,5106196686,Construction Service Providers,,5SPP Maintenance 13-14,5SPP Maintenance 13-14,BS32 4NH,"10,796.00",
Communities & Local Government,DCLG,02/09/2013,Fixed Maintenance,Finance & Corporate Services,INTERSERVE (FACILITIES MANAGEMENT),,Large,,5106196686,Construction Service Providers,,Paradise Maintenance 13-14,Paradise Maintenance 13-14,BS32 4NH,"7,797.99",
Communities & Local Government,DCLG,02/09/2013,Fixed Maintenance,Neighbourhoods,E C HARRIS LLP,,Large,,5106196690,Construction Service Providers,,ERDF WM LDU QS Services to Feb 14,ERDF WM LDU QS Services to Feb 14,N1 9AB,"3,505.00",
Communities & Local Government,DCLG,02/09/2013,Legal Fees,Neighbourhoods,SLAUGHTER & MAY,,Large,,5106196649,Legal,GRN completd MMCDOWEL-R block removed,Legal Support,Legal Support,EC1Y 8YY,"7,096.80",
Communities & Local Government,DCLG,02/09/2013,NNDR Outturn Adjustments,Localism,BRENTWOOD BC,,,,5000233659,,Grant Payable by Exchequer,,Grant Payable by Exchequer,CM15 8AY,"1,420,125.00",Yes
Communities & Local Government,DCLG,02/09/2013,NNDR Outturn Adjustments,Localism,BRISTOL CITY CNCL,,,,5000233660,,Grant Payable by Exchequer,,Grant Payable by Exchequer,BS99 7BL,"3,672,630.00",Yes
Communities & Local Government,DCLG,02/09/2013,NNDR Outturn Adjustments,Localism,BURY MBC,,,,5000233661,,Grant Payable by Exchequer,,Grant Payable by Exchequer,BL9 0SP,"434,892.00",Yes
Communities & Local Government,DCLG,02/09/2013,NNDR Outturn Adjustments,Localism,CENTRAL BEDFORDSHIRE COUNCIL,,,,5000233680,,Grant Payable by Exchequer,,Grant Payable by Exchequer,SG17 5TQ,"2,737,499.00",Yes
Communities & Local Government,DCLG,02/09/2013,NNDR Outturn Adjustments,Localism,CITY OF WAKEFIELD MDC,,,,5000233676,,Grant Payable by Exchequer,,Grant Payable by Exchequer,WF1 2QW,"2,651,411.00",Yes
Communities & Local Government,DCLG,02/09/2013,NNDR Outturn Adjustments,Localism,CROYDON LB,,,,5000233662,,Grant Payable by Exchequer,,Grant Payable by Exchequer,CR9 3JS,"1,889,419.00",Yes
Communities & Local Government,DCLG,02/09/2013,NNDR Outturn Adjustments,Localism,EAST DORSET DC,,,,5000233664,,Grant Payable by Exchequer,,Grant Payable by Exchequer,BH21 4HN,"293,503.00",Yes
Communities & Local Government,DCLG,02/09/2013,NNDR Outturn Adjustments,Localism,FAREHAM BC,,,,5000233665,,Grant Payable by Exchequer,,Grant Payable by Exchequer,PO16 7PU,"994,930.00",Yes
Communities & Local Government,DCLG,02/09/2013,NNDR Outturn Adjustments,Localism,FOREST OF DEAN DC,,,,5000233666,,Grant Payable by Exchequer,,Grant Payable by Exchequer,GL16 8HG,"1,312,204.00",Yes
Communities & Local Government,DCLG,02/09/2013,NNDR Outturn Adjustments,Localism,MID DEVON DC,,,,5000233667,,Grant Payable by Exchequer,,Grant Payable by Exchequer,EX16 6PP,"394,025.00",Yes
Communities & Local Government,DCLG,02/09/2013,NNDR Outturn Adjustments,Localism,NORTH WEST LEICESTER DC,,,,5000233668,,Grant Payable by Exchequer,,Grant Payable by Exchequer,LE67 3FJ,"387,079.00",Yes
Communities & Local Government,DCLG,02/09/2013,NNDR Outturn Adjustments,Localism,PETERBOROUGH CITY CNCL,,,,5000233669,,Grant Payable by Exchequer,,Grant Payable by Exchequer,PE1 1HG,"2,409,431.00",Yes
Communities & Local Government,DCLG,02/09/2013,NNDR Outturn Adjustments,Localism,READING BC,,,,5000233670,,Grant Payable by Exchequer,,Grant Payable by Exchequer,RG1 7TD,"4,300,908.00",Yes
Communities & Local Government,DCLG,02/09/2013,NNDR Outturn Adjustments,Localism,REDCAR & CLEVELAND BOROUGH COUNCIL,,,,5000233671,,Grant Payable by Exchequer,,Grant Payable by Exchequer,TS6 9AR,"2,647,225.00",Yes
Communities & Local Government,DCLG,02/09/2013,NNDR Outturn Adjustments,Localism,SOUTH CAMBRIDGESHIRE DC,,,,5000233673,,Grant Payable by Exchequer,,Grant Payable by Exchequer,CB3 6EA,"1,003,356.00",Yes
Communities & Local Government,DCLG,02/09/2013,NNDR Outturn Adjustments,Localism,THURROCK  BOROUGH COUNCIL,,,,5000233674,,Grant Payable by Exchequer,,Grant Payable by Exchequer,RM17 6LT,"6,450,944.00",Yes
Communities & Local Government,DCLG,02/09/2013,NNDR Outturn Adjustments,Localism,TRAFFORD MBC,,,,5000233675,,Grant Payable by Exchequer,,Grant Payable by Exchequer,M32 0YY,"6,083,844.00",Yes
Communities & Local Government,DCLG,02/09/2013,NNDR Outturn Adjustments,Localism,WEALDEN DC,,,,5000233677,,Grant Payable by Exchequer,,Grant Payable by Exchequer,BN22 9LN,"38,014.00",Yes
Communities & Local Government,DCLG,02/09/2013,NNDR Outturn Adjustments,Localism,WEST LANCASHIRE BC,,,,5000233679,,Grant Payable by Exchequer,,Grant Payable by Exchequer,L39 2DF,"142,814.00",Yes
Communities & Local Government,DCLG,02/09/2013,Office Supplies,Finance & Corporate Services,BANNER BUSINESS SUPPLIES LTD,,Large,,5106196640,Office Supplies,,DELWEEKLY Banner A4 Recycled Copier Pape,DELWEEKLY Banner A4 Recycled Copier Pape,NR3 1PD,263.28,
Communities & Local Government,DCLG,02/09/2013,Office Supplies,Finance & Corporate Services,BANNER BUSINESS SUPPLIES LTD,,Large,,5106196640,Office Supplies,,DELWEEKLY Banner A4 Recycled Side Spiral,DELWEEKLY Banner A4 Recycled Side Spiral,NR3 1PD,90.48,
Communities & Local Government,DCLG,02/09/2013,Office Supplies,Finance & Corporate Services,BANNER BUSINESS SUPPLIES LTD,,Large,,5106196640,Office Supplies,,DELWEEKLY Banner Brilliant Page Marker 3,DELWEEKLY Banner Brilliant Page Marker 3,NR3 1PD,3.12,
Communities & Local Government,DCLG,02/09/2013,Office Supplies,Finance & Corporate Services,BANNER BUSINESS SUPPLIES LTD,,Large,,5106196640,Office Supplies,,DELWEEKLY Banner Envelope 324 x 229mm Pl,DELWEEKLY Banner Envelope 324 x 229mm Pl,NR3 1PD,6.31,
Communities & Local Government,DCLG,02/09/2013,Office Supplies,Finance & Corporate Services,BANNER BUSINESS SUPPLIES LTD,,Large,,5106196640,Office Supplies,,DELWEEKLY Banner Recycled Casebound Book,DELWEEKLY Banner Recycled Casebound Book,NR3 1PD,9.60,
Communities & Local Government,DCLG,02/09/2013,Office Supplies,Finance & Corporate Services,BANNER BUSINESS SUPPLIES LTD,,Large,,5106196640,Office Supplies,,DELWEEKLY Invisible Tape 18mm x 33m,DELWEEKLY Invisible Tape 18mm x 33m,NR3 1PD,0.65,
Communities & Local Government,DCLG,02/09/2013,Office Supplies,Finance & Corporate Services,BANNER BUSINESS SUPPLIES LTD,,Large,,5106196685,Office Supplies,,DELWEEKLY Banner A4 Recycled Copier Pape,DELWEEKLY Banner A4 Recycled Copier Pape,NR3 1PD,263.28,
Communities & Local Government,DCLG,02/09/2013,Photocopying,Finance & Corporate Services,INTERSERVE (FACILITIES MANAGEMENT),,Large,,5106196686,Operational Services,,Eland House Reproduction 13-14,Eland House Reproduction 13-14,BS32 4NH,348.04,
Communities & Local Government,DCLG,02/09/2013,Photocopying,Finance & Corporate Services,INTERSERVE (FACILITIES MANAGEMENT),,Large,,5106196686,Operational Services,,TQH Reproduction 13-14,TQH Reproduction 13-14,BS32 4NH,"6,529.09",
Communities & Local Government,DCLG,02/09/2013,Photocopying,Finance & Corporate Services,INTERSERVE (FACILITIES MANAGEMENT),,Large,,5106196686,Operational Services,,Hemel Hemp Reproduction 13-14,Hemel Hemp Reproduction 13-14,BS32 4NH,124.53,
Communities & Local Government,DCLG,02/09/2013,Photocopying,Finance & Corporate Services,INTERSERVE (FACILITIES MANAGEMENT),,Large,,5106196686,Operational Services,,5SPP Reproduction 13-14,5SPP Reproduction 13-14,BS32 4NH,348.04,
Communities & Local Government,DCLG,02/09/2013,Professional services,Finance & Corporate Services,GVA GRIMLEY LTD,,Large,,5106196643,Building Management,,Property & Treasury Management fee Rent,Property & Treasury Management fee Rent,B1 2JB,"3,600.00",
Communities & Local Government,DCLG,02/09/2013,Security,Finance & Corporate Services,INTERSERVE (FACILITIES MANAGEMENT),,Large,,5106196686,Security,,Eland House Security 13-14,Eland House Security 13-14,BS32 4NH,"19,761.04",
Communities & Local Government,DCLG,02/09/2013,Security,Finance & Corporate Services,INTERSERVE (FACILITIES MANAGEMENT),,Large,,5106196686,Security,,TQH Security 13-14,TQH Security 13-14,BS32 4NH,"9,286.58",
Communities & Local Government,DCLG,02/09/2013,Security,Finance & Corporate Services,INTERSERVE (FACILITIES MANAGEMENT),,Large,,5106196686,Security,,Hemel Hemp Security 13-14,Hemel Hemp Security 13-14,BS32 4NH,"4,209.91",
Communities & Local Government,DCLG,02/09/2013,Security,Finance & Corporate Services,INTERSERVE (FACILITIES MANAGEMENT),,Large,,5106196686,Security,,Rivergate Security 13-14,Rivergate Security 13-14,BS32 4NH,"6,764.25",
Communities & Local Government,DCLG,02/09/2013,Security,Finance & Corporate Services,INTERSERVE (FACILITIES MANAGEMENT),,Large,,5106196686,Security,,Bridge House Security 13-14,Bridge House Security 13-14,BS32 4NH,"3,164.70",
Communities & Local Government,DCLG,02/09/2013,Security,Finance & Corporate Services,INTERSERVE (FACILITIES MANAGEMENT),,Large,,5106196686,Security,,Citygate Security 13-14,Citygate Security 13-14,BS32 4NH,"2,510.43",
Communities & Local Government,DCLG,02/09/2013,Security,Finance & Corporate Services,INTERSERVE (FACILITIES MANAGEMENT),,Large,,5106196686,Security,,Queen Street Security 13-14,Queen Street Security 13-14,BS32 4NH,"2,321.36",
Communities & Local Government,DCLG,02/09/2013,Security,Finance & Corporate Services,INTERSERVE (FACILITIES MANAGEMENT),,Large,,5106196686,Security,,5SPP Security 13-14,5SPP Security 13-14,BS32 4NH,"4,747.65",
Communities & Local Government,DCLG,02/09/2013,Security,Finance & Corporate Services,INTERSERVE (FACILITIES MANAGEMENT),,Large,,5106196686,Security,,Paradise Security 13-14,Paradise Security 13-14,BS32 4NH,"2,114.36",
Communities & Local Government,DCLG,02/09/2013,Steady State Service Provision,Finance & Corporate Services,CGI IT UK LTD,,Large,,5106196691,Business Process Outsourcing Services,,Payroll Services 2012/13,Payroll Services 2012/13,CF31 9AP,727.86,
Communities & Local Government,DCLG,02/09/2013,Steady State Service Provision,Finance & Corporate Services,OGC BUYING SOLUTIONS,,Public Bodies,,5106196689,Business Process Outsourcing Services,,12/13 Payroll Consortium Annual Recharge,12/13 Payroll Consortium Annual Recharge,L3 1PE,"2,817.20",
Communities & Local Government,DCLG,02/09/2013,Waste Disposal and pest control,Finance & Corporate Services,INTERSERVE (FACILITIES MANAGEMENT),,Large,,5106196686,Waste Management Services,,Eland House Waste 13-14,Eland House Waste 13-14,BS32 4NH,"3,244.34",
Communities & Local Government,DCLG,02/09/2013,Waste Disposal and pest control,Finance & Corporate Services,INTERSERVE (FACILITIES MANAGEMENT),,Large,,5106196686,Waste Management Services,,TQH Waste 13-14,TQH Waste 13-14,BS32 4NH,"1,301.76",
Communities & Local Government,DCLG,02/09/2013,Waste Disposal and pest control,Finance & Corporate Services,INTERSERVE (FACILITIES MANAGEMENT),,Large,,5106196686,Waste Management Services,,Hemel Hemp Waste 13-14,Hemel Hemp Waste 13-14,BS32 4NH,267.48,
Communities & Local Government,DCLG,02/09/2013,Waste Disposal and pest control,Finance & Corporate Services,INTERSERVE (FACILITIES MANAGEMENT),,Large,,5106196686,Waste Management Services,,Rivergate Waste 13-14,Rivergate Waste 13-14,BS32 4NH,917.18,
Communities & Local Government,DCLG,02/09/2013,Waste Disposal and pest control,Finance & Corporate Services,INTERSERVE (FACILITIES MANAGEMENT),,Large,,5106196686,Waste Management Services,,Bridge House Waste 13-14,Bridge House Waste 13-14,BS32 4NH,516.30,
Communities & Local Government,DCLG,02/09/2013,Waste Disposal and pest control,Finance & Corporate Services,INTERSERVE (FACILITIES MANAGEMENT),,Large,,5106196686,Waste Management Services,,Citygate Waste 13-14,Citygate Waste 13-14,BS32 4NH,868.70,
Communities & Local Government,DCLG,02/09/2013,Waste Disposal and pest control,Finance & Corporate Services,INTERSERVE (FACILITIES MANAGEMENT),,Large,,5106196686,Waste Management Services,,Queen Street Waste 13-14,Queen Street Waste 13-14,BS32 4NH,476.25,
Communities & Local Government,DCLG,02/09/2013,Waste Disposal and pest control,Finance & Corporate Services,INTERSERVE (FACILITIES MANAGEMENT),,Large,,5106196686,Waste Management Services,,5SPP Waste 13-14,5SPP Waste 13-14,BS32 4NH,858.73,
Communities & Local Government,DCLG,02/09/2013,Waste Disposal and pest control,Finance & Corporate Services,INTERSERVE (FACILITIES MANAGEMENT),,Large,,5106196686,Waste Management Services,,Paradise Waste 13-14,Paradise Waste 13-14,BS32 4NH,498.92,
Communities & Local Government,DCLG,02/09/2013,Web Services,Finance & Corporate Services,DEXTROUS WEB LTD,,Micro,,5106196681,ICT Services,GRN completd MMCDOWEL-R block removed,Hosting,Hosting,N1 7NG,540.00,
Communities & Local Government,DCLG,02/09/2013,Work In Progress Pre-Cert 40373 Spend,Neighbourhoods,CORNWALL DEVELOPMENT COMPANY LTD,,,,7600006031,,Revenue Grant Clawback Offset,,Revenue Grant Clawback Offset,TR1 1EA,-62.79,Yes
Communities & Local Government,DCLG,02/09/2013,Work In Progress Pre-Cert 40373 Spend,Neighbourhoods,CORNWALL DEVELOPMENT COMPANY LTD,,,,7600006031,,Revenue Grant To Be Paid,,Revenue Grant To Be Paid,TR1 1EA,"68,647.48",Yes
Communities & Local Government,DCLG,02/09/2013,Work In Progress Pre-Cert 40373 Spend,Neighbourhoods,COVENTRY UNIVERSITY ENTERPRISES LTD,,Medium,,7600006023,,Revenue Grant Clawback Offset,,Revenue Grant Clawback Offset,CV1 2TT,-315.77,Yes
Communities & Local Government,DCLG,02/09/2013,Work In Progress Pre-Cert 40373 Spend,Neighbourhoods,COVENTRY UNIVERSITY ENTERPRISES LTD,,Medium,,7600006023,,Revenue Grant To Be Paid,,Revenue Grant To Be Paid,CV1 2TT,"21,322.93",Yes
Communities & Local Government,DCLG,02/09/2013,Work In Progress Pre-Cert 40373 Spend,Neighbourhoods,COVENTRY UNIVERSITY ENTERPRISES LTD,,Medium,,7600006028,,Revenue Grant To Be Paid,,Revenue Grant To Be Paid,CV1 2TT,"15,595.19",Yes
Communities & Local Government,DCLG,02/09/2013,Work In Progress Pre-Cert 40373 Spend,Neighbourhoods,COVENTRY UNIVERSITY ENTERPRISES LTD,,Medium,,7600006029,,Revenue Grant To Be Paid,,Revenue Grant To Be Paid,CV1 2TT,"21,145.61",Yes
Communities & Local Government,DCLG,02/09/2013,Work In Progress Pre-Cert 40373 Spend,Neighbourhoods,INTERNATIONAL SYNERGIES LTD,,Small,,7600006025,,Revenue Grant To Be Paid,,Revenue Grant To Be Paid,B30 3ES,"11,155.04",Yes
Communities & Local Government,DCLG,02/09/2013,Work In Progress Pre-Cert 40373 Spend,Neighbourhoods,INTERNATIONAL SYNERGIES LTD,,Small,,7600006027,,Revenue Grant To Be Paid,,Revenue Grant To Be Paid,B30 3ES,"12,480.45",Yes
Communities & Local Government,DCLG,02/09/2013,Work In Progress Pre-Cert 40373 Spend,Neighbourhoods,MEDILINK EAST MIDLANDS,,Small,,7600006033,,Revenue Grant To Be Paid,,Revenue Grant To Be Paid,NG1 1GF,"50,745.92",Yes
Communities & Local Government,DCLG,02/09/2013,Work In Progress Pre-Cert 40373 Spend,Neighbourhoods,SERCO REGIONAL SERVICES LTD,,,,7600006032,,Revenue Grant To Be Paid,,Revenue Grant To Be Paid,PL6 8BT,"120,677.19",Yes
Communities & Local Government,DCLG,02/09/2013,Work In Progress Pre-Cert 40373 Spend,Neighbourhoods,UNIVERSITY OF BIRMINGHAM,,Large,,7600006022,,Revenue Grant To Be Paid,,Revenue Grant To Be Paid,B15 2TT,"43,706.85",Yes
Communities & Local Government,DCLG,02/09/2013,Work In Progress Pre-Cert 40373 Spend,Neighbourhoods,UNIVERSITY OF PLYMOUTH GENERAL A/C,,,,7600006030,,Revenue Grant To Be Paid,,Revenue Grant To Be Paid,PL4 8AA,"12,585.12",Yes
Communities & Local Government,DCLG,02/09/2013,Work In Progress Pre-Cert 40373 Spend,Neighbourhoods,UNIVERSITY OF WARWICK,,Large,,7600006021,,Revenue Grant To Be Paid,,Revenue Grant To Be Paid,CV4 8UW,"25,894.47",Yes
Communities & Local Government,DCLG,02/09/2013,Work In Progress Pre-Cert 40467 Spend,Neighbourhoods,NORTH SOMERSET ENT AGENCY PROP SERV,,Micro,,7600006024,,Capital Grant To Be Paid,,Capital Grant To Be Paid,BS24 9AY,"66,354.22",Yes
Communities & Local Government,DCLG,02/09/2013,Work In Progress Pre-Cert 40467 Spend,Neighbourhoods,ROBOTMOTHER LTD,,Small,,7600006026,,Capital Grant To Be Paid,,Capital Grant To Be Paid,TR10 8AE,"55,315.47",Yes
Communities & Local Government,DCLG,02/09/2013,Work In Progress Pre-Cert 40467 Spend,Neighbourhoods,UNIVERSITY OF BIRMINGHAM,,Large,,7600006022,,Capital Grant To Be Paid,,Capital Grant To Be Paid,B15 2TT,"22,094.84",Yes
Communities & Local Government,DCLG,02/09/2013,Work In Progress Pre-Cert 40467 Spend,Neighbourhoods,UNIVERSITY OF PLYMOUTH GENERAL A/C,,,,7600006030,,Capital Grant To Be Paid,,Capital Grant To Be Paid,PL4 8AA,"70,335.12",Yes
Communities & Local Government,DCLG,03/09/2013,Accommodation Service Charges,Neighbourhoods,GVA GRIMLEY LTD,,Large,,5106196661,Accommodation Services,,ERDF SWC LDU Valuation Service to Dec 13,ERDF SWC LDU Valuation Service to Dec 13,B1 2JB,"3,364.80",
Communities & Local Government,DCLG,03/09/2013,Agency Staff,Finance & Corporate Services,ALLEN LANE FINANCIAL RECRUITMENT,,Medium,Yes,5106196696,Contingent Labour,,Interim Manager (Qualified Accountant),Interim Manager (Qualified Accountant),,"3,796.08",
Communities & Local Government,DCLG,03/09/2013,Agency Staff,Finance & Corporate Services,MANPOWER UK LTD,,Large,,5106196705,Contingent Labour,,+12 weeks Higher Rate,+12 weeks Higher Rate,UB8 1AB,380.28,
Communities & Local Government,DCLG,03/09/2013,Agency Staff,Finance & Corporate Services,SQUARE ONE RESOURCES LTD,,Medium,,5106196694,Contingent Labour,,Interim Manager,Interim Manager,EC2A 2AD,"2,858.82",
Communities & Local Government,DCLG,03/09/2013,Cap Grants to Local Authorities (DEL),Neighbourhoods,GATESHEAD MBC,,Public Bodies,,2100234003,,Funding to bring back clusters of Empty Homes back,,Funding to bring back clusters of Empty Homes back,NE8 3HN,"10,445.00",Yes
Communities & Local Government,DCLG,03/09/2013,Electricity,Finance & Corporate Services,HM REVENUE & CUSTOMS,,Public Bodies,,5106196708,Energy,,Lysnoweth Utilities 2013-14,Lysnoweth Utilities 2013-14,BN12 4XH,"1,078.67",
Communities & Local Government,DCLG,03/09/2013,Professional services,Neighbourhoods,MR R S MILNE,,,,2100233997,Environmental Services,PAYMENT OF INVOICE DATED 27 AUGUST 2013,,Production of weekly e-newsletter sent via Planning Portal,,"1,133.00",
Communities & Local Government,DCLG,03/09/2013,Professional services,Neighbourhoods,MS E M COCHRANE,,,,2100234001,Environmental Services,PAYMENT OF INVOICE DATED 27 AUGUST 2013,,Production of weekly e-newsletter sent via Planning Portal,,"1,359.60",
Communities & Local Government,DCLG,03/09/2013,Rates,Finance & Corporate Services,HM REVENUE & CUSTOMS,,Public Bodies,,5106196708,Non Addressable,,Lysnoweth Rates 2013-14,Lysnoweth Rates 2013-14,BN12 4XH,"5,782.13",
Communities & Local Government,DCLG,03/09/2013,Removals and Porterage,Finance & Corporate Services,NOMS AGENCY,,Public Bodies,,5106196700,Transport,,JR308 -1st Floor clearance 5SPP,JR308 -1st Floor clearance 5SPP,NP20 9BB,"1,340.07",
Communities & Local Government,DCLG,03/09/2013,Removals and Porterage,Finance & Corporate Services,NOMS AGENCY,,Public Bodies,,5106196700,Transport,,JR309 - 1st floor  5SPP to TQH,JR309 - 1st floor  5SPP to TQH,NP20 9BB,840.75,
Communities & Local Government,DCLG,03/09/2013,Rent,Finance & Corporate Services,HM REVENUE & CUSTOMS,,Public Bodies,,5106196708,Accommodation Services,,Lysnoweth Rent 2013-14,Lysnoweth Rent 2013-14,BN12 4XH,"2,377.34",
Communities & Local Government,DCLG,03/09/2013,Software Licences,Localism,BYTES SOFTWARE SERVICES,,Medium,,5106196637,Software,,Citrix Access Gateway VPX Licence,Citrix Access Gateway VPX Licence,KT17 1TS,309.60,
Communities & Local Government,DCLG,03/09/2013,Telecoms equipment (non-capitalised),Finance & Corporate Services,DAMOVO UK LTD,,Large,,5106196704,Telecoms,,Telephone Support Services,Telephone Support Services,RH12 4QP,"10,134.00",
Communities & Local Government,DCLG,03/09/2013,Training,Finance & Corporate Services,AMBERHAWK TRAINING LTD,,Micro,,5106196693,Development and Training,,ISEB Certificate in Information Security,ISEB Certificate in Information Security,LS18 4TJ,"1,795.00",
Communities & Local Government,DCLG,03/09/2013,Vehicle hire,Finance & Corporate Services,GOVERNMENT CAR & DESPATCH AGENCY,,Public Bodies,,5106196701,Vehicle Hire and Lease,,Ministerial Cars,Ministerial Cars,SW8 5AX,368.90,
Communities & Local Government,DCLG,03/09/2013,Work In Progress Pre-Cert 40373 Spend,Neighbourhoods,DONCASTER METROPOLITAN BC,,,,7600006037,,Revenue Grant To Be Paid,,Revenue Grant To Be Paid,DN1 1DE,"23,388.93",Yes
Communities & Local Government,DCLG,03/09/2013,Work In Progress Pre-Cert 40373 Spend,Neighbourhoods,DONCASTER METROPOLITAN BC,,,,7600006040,,Revenue Grant To Be Paid,,Revenue Grant To Be Paid,DN1 1DE,"44,120.50",Yes
Communities & Local Government,DCLG,03/09/2013,Work In Progress Pre-Cert 40373 Spend,Neighbourhoods,LEEDS CITY COLLEGE,,,,7600006042,,Revenue Grant To Be Paid,,Revenue Grant To Be Paid,LS3 1AA,"32,243.06",Yes
Communities & Local Government,DCLG,03/09/2013,Work In Progress Pre-Cert 40373 Spend,Neighbourhoods,LEEDS CITY COLLEGE,,,,7600006044,,Revenue Grant To Be Paid,,Revenue Grant To Be Paid,LS3 1AA,"39,663.08",Yes
Communities & Local Government,DCLG,03/09/2013,Work In Progress Pre-Cert 40373 Spend,Neighbourhoods,LEICESTER CITY COUNCIL,,Large,,7600006041,,Revenue Grant To Be Paid,,Revenue Grant To Be Paid,LE1 6ZG,"1,168.70",Yes
Communities & Local Government,DCLG,03/09/2013,Work In Progress Pre-Cert 40373 Spend,Neighbourhoods,NEWCASTLE UNIVERSITY,,,,7600006043,,Revenue Grant To Be Paid,,Revenue Grant To Be Paid,NE1 7RU,"9,388.24",Yes
Communities & Local Government,DCLG,03/09/2013,Work In Progress Pre-Cert 40373 Spend,Neighbourhoods,NORFOLK & WAVENEY ENTERPRISE SERV'S,,Medium,,7600006047,,Revenue Grant To Be Paid,,Revenue Grant To Be Paid,NR2 1JH,"33,624.25",Yes
Communities & Local Government,DCLG,03/09/2013,Work In Progress Pre-Cert 40373 Spend,Neighbourhoods,NOTTINGHAM TRENT UNIVERSITY,,Large,,7600006049,,Revenue Grant To Be Paid,,Revenue Grant To Be Paid,NG1 4FZ,"17,214.29",Yes
Communities & Local Government,DCLG,03/09/2013,Work In Progress Pre-Cert 40373 Spend,Neighbourhoods,NOTTINGHAM UNIVERSITY,,Large,,7600006051,,Revenue Grant To Be Paid,,Revenue Grant To Be Paid,NG7 2RD,"75,557.42",Yes
Communities & Local Government,DCLG,03/09/2013,Work In Progress Pre-Cert 40373 Spend,Neighbourhoods,REDCAR & CLEVELAND BC,,,,7600006039,,Revenue Grant Clawback Offset,,Revenue Grant Clawback Offset,TS10 1YA,"-7,752.47",Yes
Communities & Local Government,DCLG,03/09/2013,Work In Progress Pre-Cert 40373 Spend,Neighbourhoods,REDCAR & CLEVELAND BC,,,,7600006039,,Revenue Grant To Be Paid,,Revenue Grant To Be Paid,TS10 1YA,"61,257.30",Yes
Communities & Local Government,DCLG,03/09/2013,Work In Progress Pre-Cert 40373 Spend,Neighbourhoods,SERCO REGIONAL SERVICES LTD,,,,7600006050,,Revenue Grant To Be Paid,,Revenue Grant To Be Paid,PL6 8BT,"17,244.83",Yes
Communities & Local Government,DCLG,03/09/2013,Work In Progress Pre-Cert 40373 Spend,Neighbourhoods,SUFFOLK COUNTY COUNCIL,,,,7600006034,,Revenue Grant Clawback Offset,,Revenue Grant Clawback Offset,IP1 2BX,-142.00,Yes
Communities & Local Government,DCLG,03/09/2013,Work In Progress Pre-Cert 40373 Spend,Neighbourhoods,SUFFOLK COUNTY COUNCIL,,,,7600006034,,Revenue Grant To Be Paid,,Revenue Grant To Be Paid,IP1 2BX,"1,169.43",Yes
Communities & Local Government,DCLG,03/09/2013,Work In Progress Pre-Cert 40373 Spend,Neighbourhoods,SUFFOLK COUNTY COUNCIL,,,,7600006035,,Revenue Grant To Be Paid,,Revenue Grant To Be Paid,IP1 2BX,"1,395.73",Yes
Communities & Local Government,DCLG,03/09/2013,Work In Progress Pre-Cert 40373 Spend,Neighbourhoods,SUFFOLK COUNTY COUNCIL,,,,7600006036,,Revenue Grant To Be Paid,,Revenue Grant To Be Paid,IP1 2BX,"3,500.51",Yes
Communities & Local Government,DCLG,03/09/2013,Work In Progress Pre-Cert 40373 Spend,Neighbourhoods,SUNDERLAND CITY COUNCIL,,,,7600006046,,Revenue Grant Clawback Offset,,Revenue Grant Clawback Offset,SR2 7DN,"-1,220.14",Yes
Communities & Local Government,DCLG,03/09/2013,Work In Progress Pre-Cert 40373 Spend,Neighbourhoods,SUNDERLAND CITY COUNCIL,,,,7600006046,,Revenue Grant To Be Paid,,Revenue Grant To Be Paid,SR2 7DN,"113,609.64",Yes
Communities & Local Government,DCLG,03/09/2013,Work In Progress Pre-Cert 40373 Spend,Neighbourhoods,UNIVERSITY OF THE WEST OF ENGLAND,,,,7600006045,,Revenue Grant To Be Paid,,Revenue Grant To Be Paid,BS16 1QY,"82,831.26",Yes
Communities & Local Government,DCLG,03/09/2013,Work In Progress Pre-Cert 40467 Spend,Neighbourhoods,LEICESTER CITY COUNCIL,,Large,,7600006041,,Capital Grant To Be Paid,,Capital Grant To Be Paid,LE1 6ZG,"3,491.36",Yes
Communities & Local Government,DCLG,03/09/2013,Work In Progress Pre-Cert 40467 Spend,Neighbourhoods,NOTTINGHAM UNIVERSITY,,Large,,7600006051,,Capital Grant To Be Paid,,Capital Grant To Be Paid,NG7 2RD,"88,007.71",Yes
Communities & Local Government,DCLG,03/09/2013,Work In Progress Pre-Cert 40467 Spend,Neighbourhoods,POLYMERMEDICS LTD,,Small,,7600006048,,Capital Grant To Be Paid,,Capital Grant To Be Paid,PL25 3FR,"158,816.00",Yes
Communities & Local Government,DCLG,04/09/2013,Agency Staff,Finance & Corporate Services,CAPITA RESOURCING LTD,,Large,,5106196717,Contingent Labour,,Interim Manager (IAS),Interim Manager (IAS),SL6 1DP,"1,960.20",
Communities & Local Government,DCLG,04/09/2013,Agency Staff,Finance & Corporate Services,CAPITA RESOURCING LTD,,Large,,5106196718,Contingent Labour,,CPD 0492030 Capita MSP,CPD 0492030 Capita MSP,SL6 1DP,408.00,
Communities & Local Government,DCLG,04/09/2013,Agency Staff,Finance & Corporate Services,CAPITA RESOURCING LTD,,Large,,5106196720,Contingent Labour,,Extension (1),Extension (1),SL6 1DP,"3,446.58",
Communities & Local Government,DCLG,04/09/2013,Agency Staff,Finance & Corporate Services,CAPITA RESOURCING LTD,,Large,,5106196723,Contingent Labour,,Expenses,Expenses,SL6 1DP,16.92,
Communities & Local Government,DCLG,04/09/2013,Agency Staff,Finance & Corporate Services,CAPITA RESOURCING LTD,,Large,,5106196743,Contingent Labour,,Interim Manager,Interim Manager,SL6 1DP,"1,769.20",
Communities & Local Government,DCLG,04/09/2013,Agency Staff,Finance & Corporate Services,PREMIERE EMPLOYMENT GROUP LTD,,Large,,5106196732,Contingent Labour,,Closing off the balance,Temporary PA Support - Agency Staff,M3 2JA,597.67,
Communities & Local Government,DCLG,04/09/2013,Agency Staff,Finance & Corporate Services,PREMIERE EMPLOYMENT GROUP LTD,,Large,,5106196760,Contingent Labour,,Admin clerical support,Admin clerical support,M3 2JA,541.80,
Communities & Local Government,DCLG,04/09/2013,Agency Staff,Localism,CAPITA RESOURCING LTD,,Large,,5106196625,Contingent Labour,,Interim Manager,Interim Manager,SL6 1DP,"10,432.80",
Communities & Local Government,DCLG,04/09/2013,Agency Staff,Localism,CAPITA RESOURCING LTD,,Large,,5106196712,Contingent Labour,,Interim Manager,Interim Manager,SL6 1DP,745.20,
Communities & Local Government,DCLG,04/09/2013,Agency Staff,Localism,CAPITA RESOURCING LTD,,Large,,5106196721,Contingent Labour,,Interim Manager (Ext 01),Interim Manager (Ext 01),SL6 1DP,"2,995.32",
Communities & Local Government,DCLG,04/09/2013,Agency Staff,Localism,CAPITA RESOURCING LTD,,Large,,5106196723,Contingent Labour,,Interim Manager (Ext 01),Interim Manager (Ext 01),SL6 1DP,"5,737.56",
Communities & Local Government,DCLG,04/09/2013,Agency Staff,Neighbourhoods,CAPITA RESOURCING LTD,,Large,,5106196715,Contingent Labour,,Expenses,Expenses,SL6 1DP,6.54,
Communities & Local Government,DCLG,04/09/2013,Agency Staff,Neighbourhoods,CAPITA RESOURCING LTD,,Large,,5106196715,Contingent Labour,,Interim Manager,Interim Manager,SL6 1DP,"1,912.50",
Communities & Local Government,DCLG,04/09/2013,Agency Staff,Neighbourhoods,CAPITA RESOURCING LTD,,Large,,5106196716,Contingent Labour,,Interim Manager,Interim Manager,SL6 1DP,"2,018.28",
Communities & Local Government,DCLG,04/09/2013,Agency Staff,Neighbourhoods,CAPITA RESOURCING LTD,,Large,,5106196718,Contingent Labour,,CPD 0492030 Capita MSP,CPD 0492030 Capita MSP,SL6 1DP,73.13,
Communities & Local Government,DCLG,04/09/2013,Agency Staff,Neighbourhoods,CAPITA RESOURCING LTD,,Large,,5106196719,Contingent Labour,,Interim Manager,Interim Manager,SL6 1DP,"1,863.00",
Communities & Local Government,DCLG,04/09/2013,Agency Staff,Neighbourhoods,CAPITA RESOURCING LTD,,Large,,5106196722,Contingent Labour,,Interim Manager,Interim Manager,SL6 1DP,"2,320.56",
Communities & Local Government,DCLG,04/09/2013,Agency Staff,Neighbourhoods,CAPITA RESOURCING LTD,,Large,,5106196724,Contingent Labour,,Expenses,Expenses,SL6 1DP,111.72,
Communities & Local Government,DCLG,04/09/2013,Agency Staff,Neighbourhoods,CAPITA RESOURCING LTD,,Large,,5106196724,Contingent Labour,,Interim Manager,Interim Manager,SL6 1DP,"1,912.50",
Communities & Local Government,DCLG,04/09/2013,Agency Staff,Neighbourhoods,CAPITA RESOURCING LTD,,Large,,5106196743,Contingent Labour,,Expenses INTERREG 2Seas-Territorial Faci,Expenses INTERREG 2Seas-Territorial Faci,SL6 1DP,60.46,
Communities & Local Government,DCLG,04/09/2013,Agency Staff,Neighbourhoods,CAPITA RESOURCING LTD,,Large,,5106196745,Contingent Labour,,Interim Manager,Interim Manager,SL6 1DP,"5,355.00",
Communities & Local Government,DCLG,04/09/2013,Agency Staff,Neighbourhoods,CAPITA RESOURCING LTD,,Large,,5106196745,Contingent Labour,,Interim Manager (Expenses),Interim Manager (Expenses),SL6 1DP,388.20,
Communities & Local Government,DCLG,04/09/2013,Agency Staff,Neighbourhoods,CAPITA RESOURCING LTD,,Large,,5106196746,Contingent Labour,,Interim Manager,Interim Manager,SL6 1DP,"2,375.94",
Communities & Local Government,DCLG,04/09/2013,Agency Staff,Neighbourhoods,CAPITA RESOURCING LTD,,Large,,5106196754,Contingent Labour,,Contractor ERDF,Contractor ERDF,SL6 1DP,"1,020.00",
Communities & Local Government,DCLG,04/09/2013,Electricity,Finance & Corporate Services,EDF ENERGY 1 LIMITED,,Large,,5106196763,Energy,,EoE Waterbeach Electricity 2013-14,EoE Waterbeach Electricity 2013-14,PL3 5XQ,"2,963.30",
Communities & Local Government,DCLG,04/09/2013,Electricity,Finance & Corporate Services,HM REVENUE & CUSTOMS,,Public Bodies,,5106196782,Energy,,Longbrook Utilities 2013-14,Longbrook Utilities 2013-14,BN12 4XH,"1,029.36",
Communities & Local Government,DCLG,04/09/2013,Grant in Aid to NDPBs (non budget),Neighbourhoods,HOMES & COMMUNITIES AGENCY,,Public Bodies,,2100234039,,Monthly HCA Grant In Aid Claim for Sept 2013,,Monthly HCA Grant In Aid Claim for Sept 2013,NE11 0NA,"124,638,231.00",Yes
Communities & Local Government,DCLG,04/09/2013,IT - Software Maintenance,Finance & Corporate Services,SPEECH CENTRE,,Micro,,5106196540,Managed / Outsourced Services,,JAWS configuration Quote 208385,JAWS configuration Quote 208385,TN6 1DL,480.00,
Communities & Local Government,DCLG,04/09/2013,Management Consultancy,Neighbourhoods,AMEC ENVIRONMENT & INFRASTRUCTURE,,Large,,5106196652,Consultancy,,Provision of EIA Services,Environmental Impact Assessment,NE3 3AF,"6,318.85",
Communities & Local Government,DCLG,04/09/2013,NNDR Outturn Adjustments,Localism,WELLINGBOROUGH BOROUGH COUNCIL,,Large,,5000233678,,Grant Payable by Exchequer,,Grant Payable by Exchequer,NN8 1BP,"789,522.00",Yes
Communities & Local Government,DCLG,04/09/2013,Office machinery consumables,Finance & Corporate Services,X M A LTD,,Large,,5106196730,Office Supplies,,Delweekly Hp Laserjet 4200 Maintenance K,Delweekly Hp Laserjet 4200 Maintenance K,NG11 7EP,253.06,
Communities & Local Government,DCLG,04/09/2013,Office machinery consumables,Finance & Corporate Services,X M A LTD,,Large,,5106196730,Office Supplies,,Delweekly Longbow Hp Lj5500 Smartprint C,Delweekly Longbow Hp Lj5500 Smartprint C,NG11 7EP,59.40,
Communities & Local Government,DCLG,04/09/2013,Printing,Finance & Corporate Services,WILLIAMS LEA LIMITED,,Large,,5106196756,Printing Services,,Year 2 Print services,Year 2 Print services,W2 6LG,239.80,
Communities & Local Government,DCLG,04/09/2013,Printing,Finance & Corporate Services,WILLIAMS LEA LIMITED,,Large,,5106196756,Printing Services,,Year 2 Print services (0% VAT),Year 2 Print services (0% VAT),W2 6LG,"9,796.32",
Communities & Local Government,DCLG,04/09/2013,Professional services,Finance & Corporate Services,DAWES & FRASER CONSULTING LTD,,Small,,5106196682,Business and Commercial Services,GRN 5000671197 MMCDOWAL,Contract and Technical support for IPC C,Contract and Technical support for IPC C,SE20 7BS,"2,844.00",
Communities & Local Government,DCLG,04/09/2013,Professional services,Finance & Corporate Services,E C HARRIS LLP,,Large,,5106196710,Construction Service Providers,GRN 5000671198 MMCDOWAL,PAMU Com 38 - Eland House Re-Stack,PAMU Com 38 - Eland House Re-Stack,N1 9AB,"3,714.00",
Communities & Local Government,DCLG,04/09/2013,Publications,Finance & Corporate Services,JONES YARRELL LEADENHALL LTD,,Large,,5106196734,Learning and Development Materials,,Newspaper and Journal susbcription,Newspaper and Journal susbcription,E3 3JH,723.92,
Communities & Local Government,DCLG,04/09/2013,Rates,Finance & Corporate Services,HM REVENUE & CUSTOMS,,Public Bodies,,5106196782,Non Addressable,,Longbrook Rates 2013-14,Longbrook Rates 2013-14,BN12 4XH,"5,462.52",
Communities & Local Government,DCLG,04/09/2013,Removals and Porterage,Finance & Corporate Services,NOMS AGENCY,,Public Bodies,,5106196653,Transport,GRN 5000671199 MMCDOWAL,JR276 - 2  Rivergate clearance,JR276 - 2  Rivergate clearance,NP20 9BB,"2,157.99",
Communities & Local Government,DCLG,04/09/2013,Rent,Finance & Corporate Services,HM REVENUE & CUSTOMS,,Public Bodies,,5106196782,Accommodation Services,,Longbrook Rent 2013-14,Longbrook Rent 2013-14,BN12 4XH,"6,951.48",
Communities & Local Government,DCLG,04/09/2013,Research,Neighbourhoods,BUILDING RESEARCH ESTABLISHMENT,,Large,,5106196713,Operational Services,,Milestone 6-12,Milestone 6-12,WD25 9XX,"19,623.60",
Communities & Local Government,DCLG,04/09/2013,Training,Finance & Corporate Services,LEARNING TREE INTERNATIONAL LTD,,Large,,5106194047,Development and Training,,SQL Server 2012: A Comprehensive Hands-,SQL Server 2012: A Comprehensive Hands-,KT22 7FG,"-1,787.00",
Communities & Local Government,DCLG,04/09/2013,Training,Finance & Corporate Services,MEDIA TRAINING LTD,,Small,,5106196711,Development and Training,,Writing for the web_training course,Writing for the web_training course,WC1X 8QJ,325.00,
Communities & Local Government,DCLG,04/09/2013,Training,Finance & Corporate Services,MEDIA TRAINING LTD,,Small,,5106196726,Development and Training,,Adobe Photoshop CS6: Introduction Course,Adobe Photoshop CS6: Introduction Course,WC1X 8QJ,435.00,
Communities & Local Government,DCLG,04/09/2013,Training,Finance & Corporate Services,MEDIA TRAINING LTD,,Small,,5106196735,Development and Training,,Adobe InDesign CS6: Introduction Course,Adobe InDesign CS6: Introduction Course,WC1X 8QJ,435.00,
Communities & Local Government,DCLG,04/09/2013,Training,Finance & Corporate Services,MEDIA TRAINING LTD,,Small,,5106196786,Development and Training,,Adobe InDesign CS6: Introduction Course,Adobe InDesign CS6: Introduction Course,WC1X 8QJ,435.00,
Communities & Local Government,DCLG,04/09/2013,Vehicle Maintenance,Localism,BABCOCK CRITICAL SERVICES LTD,,Large,,5106196654,Fleet Management,,Fixed cost 13/14,Fixed cost 13/14,NG15 0DR,"543,813.19",
Communities & Local Government,DCLG,04/09/2013,Vehicle Maintenance,Localism,BABCOCK CRITICAL SERVICES LTD,,Large,,5106196768,Fleet Management,,Unplanned Maintainance,Unplanned Maintainance,NG15 0DR,"33,962.50",
Communities & Local Government,DCLG,04/09/2013,Work In Progress Pre-Cert 40373 Spend,Neighbourhoods,CORNWALL DEVELOPMENT COMPANY LTD,,,,7600006052,,Revenue Grant To Be Paid,,Revenue Grant To Be Paid,TR1 1EA,"179,234.57",Yes
Communities & Local Government,DCLG,04/09/2013,Work In Progress Pre-Cert 40373 Spend,Neighbourhoods,LEEDS CITY COUNCIL,,,,7600006056,,Revenue Grant To Be Paid,,Revenue Grant To Be Paid,LS1 1UR,"4,919.85",Yes
Communities & Local Government,DCLG,04/09/2013,Work In Progress Pre-Cert 40373 Spend,Neighbourhoods,SHROPSHIRE ENTERPRISE PARTNERSHIP,,Micro,,7600006053,,Revenue Grant To Be Paid,,Revenue Grant To Be Paid,TF1 6QJ,"23,827.77",Yes
Communities & Local Government,DCLG,04/09/2013,Work In Progress Pre-Cert 40467 Spend,Neighbourhoods,HORNCASTLE GROUP PLC,,Medium,,7600006057,,Capital Grant To Be Paid,,Capital Grant To Be Paid,HU15 2AT,"114,489.50",Yes
Communities & Local Government,DCLG,04/09/2013,Work In Progress Pre-Cert 40467 Spend,Neighbourhoods,SCREEN YORKSHIRE LIMITED,,,,7600006054,,Capital Grant To Be Paid,,Capital Grant To Be Paid,LS2 7EY,"350,000.00",Yes
Communities & Local Government,DCLG,04/09/2013,Work In Progress Pre-Cert 40467 Spend,Neighbourhoods,SCREEN YORKSHIRE LIMITED,,,,7600006055,,Capital Grant To Be Paid,,Capital Grant To Be Paid,LS2 7EY,"250,000.00",Yes
Communities & Local Government,DCLG,05/09/2013,Accommodation Service Charges,Neighbourhoods,GVA GRIMLEY LTD,,Large,,5106196706,Accommodation Services,,ERDF YH LDU Valuation Services to Dec 13,ERDF YH LDU Valuation Services to Dec 13,B1 2JB,"3,000.00",
Communities & Local Government,DCLG,05/09/2013,Capital Grants to Private Sect Non Profit,Neighbourhoods,TRIBAL EDUCATION-MANAGEMENT FEES,,Large,,2100234002,,Payment to Tribal for EH Community Fund,,Payment to Tribal for EH Community Fund,BS2 8RR,"3,014,908.00",Yes
Communities & Local Government,DCLG,05/09/2013,Conferences and Meeting Facilities,Localism,SOLACE LTD,,Medium,,5106196824,Promotion,,Patrick White Solace Summit 2013,Patrick White Solace Summit 2013,WF8 1WT,268.80,
Communities & Local Government,DCLG,05/09/2013,Courier Services,Finance & Corporate Services,DEPARTMENT FOR TRANSPORT (RAIL),,Public Bodies,,5106196791,Post & Courier,,Ashdown House Postal Charges 2013-14,Ashdown House Postal Charges 2013-14,SW1H 0EU,"2,355.84",
Communities & Local Government,DCLG,05/09/2013,Current (non AEF) Grants to Local Authorities,Finance & Corporate Services,DURHAM & DARLINGTON FIRE RESCUE SER,,Public Bodies,,2100234007,,Regional Control Centre Grant for Sept 2013,,Regional Control Centre Grant for Sept 2013,DH1 1TW,"149,608.75",Yes
Communities & Local Government,DCLG,05/09/2013,Current (non AEF) Grants to Local Authorities,Finance & Corporate Services,GREATER LONDON AUTHORITY,,Large,,2100234006,,Regional Control Centre Grant for Sept 2013,,Regional Control Centre Grant for Sept 2013,SE10 1AP,"142,073.90",Yes
Communities & Local Government,DCLG,05/09/2013,Current (non AEF) Grants to Local Authorities,Finance & Corporate Services,GREATER MANCHESTER FIRE & RESCUE,,Public Bodies,,2100234005,,Regional Control Centre Grant for Sept 2013,,Regional Control Centre Grant for Sept 2013,M27 8US,"158,883.00",Yes
Communities & Local Government,DCLG,05/09/2013,Current Grants to Non Profit Bodies,Neighbourhoods,CENTRE FOR ENGINEERING & MANUF EXCE,,,,2100234065,,9th grant payments on CEME project in ER,,9th grant payments on CEME project in ER,RM13 8EU,"154,681.00",Yes
Communities & Local Government,DCLG,05/09/2013,Grant in Aid to NDPBs (non budget),Localism,VALUATION TRIBUNAL SERVICE,,,,2100234064,,,,,E1 1DU,"669,447.00",Yes
Communities & Local Government,DCLG,05/09/2013,IT - Software Maintenance,Neighbourhoods,BRAMBLE. CC,,Public Bodies,,5106196822,Managed / Outsourced Services,,App Support 2012-2014,Applications Support for the Portal website,SE1 7SP,"34,200.00",
Communities & Local Government,DCLG,05/09/2013,IT - Software Maintenance,Neighbourhoods,BRAMBLE. CC,,Public Bodies,,5106196822,Managed / Outsourced Services,,Test Harness,Software testing for the Portal IT site,SE1 7SP,"12,819.60",
Communities & Local Government,DCLG,05/09/2013,Medals,Localism,ROYAL MINT,,Public Bodies,,5106196709,Learning and Development Materials,,FS Long Service and Good Conduct Medals,FS Long Service and Good Conduct Medals,CF72 8YT,445.50,
Communities & Local Government,DCLG,05/09/2013,Printing,Finance & Corporate Services,WILLIAMS LEA LIMITED,,Large,,5106196795,Printing Services,GRN 5000671232 PMARTIN,Year 2 Print services (0% VAT),Year 2 Print services (0% VAT),W2 6LG,463.20,
Communities & Local Government,DCLG,05/09/2013,Professional services,Localism,VALUATION OFFICE AGENCY,,Public Bodies,,2100234063,Environmental Services,,,,W1B 5BU,"12,000,000.00",
Communities & Local Government,DCLG,05/09/2013,Publications,Finance & Corporate Services,JONES YARRELL LEADENHALL LTD,,Large,,5106196731,Learning and Development Materials,grn 5000671223 PMARTIN,Journals supply 2013-14,Journals supply 2013-14,E3 3JH,324.14,
Communities & Local Government,DCLG,05/09/2013,Publicity,Finance & Corporate Services,GORKANA GROUP LTD,,Large,,5106196817,Advertising,,Press Cuttings,Press Cuttings,EC1Y 8QE,"3,182.54",
Communities & Local Government,DCLG,05/09/2013,Publicity,Finance & Corporate Services,PRESS ASSOCIATION,,Large,,5106196789,Advertising,GRN 5000671231 PMARTIN,Press Association - NewsWire service,Press Association - NewsWire service,DN14 7YH,"1,240.93",
Communities & Local Government,DCLG,05/09/2013,Recruitment,Finance & Corporate Services,PENNA PLC,,Large,,2100234060,Business Process Outsourcing Services,MR8M,Implementation of Assm't (variable costs,Implementation of Assm't (variable costs,EC4M 7RD,-491.88,
Communities & Local Government,DCLG,05/09/2013,Recruitment,Finance & Corporate Services,PENNA PLC,,Large,,5106196797,Business Process Outsourcing Services,Reversed by 2100234060,Implementation of Assm't (variable costs,Implementation of Assm't (variable costs,EC4M 7RD,491.88,
Communities & Local Government,DCLG,05/09/2013,Services provided by other Govt Orgs,Finance & Corporate Services,CABINET OFFICE,,Public Bodies,,5106196818,Business and Commercial Services,,CS resorcing core sercvices,Civil Service Human Resources,CF14 3UW,"24,482.40",Yes
Communities & Local Government,DCLG,05/09/2013,Services provided by other Govt Orgs,Finance & Corporate Services,CABINET OFFICE,,Public Bodies,,5106196818,Business and Commercial Services,,CS learning,Civil Service Human Resources,CF14 3UW,"41,678.40",Yes
Communities & Local Government,DCLG,05/09/2013,Services provided by other Govt Orgs,Finance & Corporate Services,CABINET OFFICE,,Public Bodies,,5106196818,Business and Commercial Services,,CS employee policy expert services,Civil Service Human Resources,CF14 3UW,"35,284.80",Yes
Communities & Local Government,DCLG,05/09/2013,Services provided by other Govt Orgs,Finance & Corporate Services,CABINET OFFICE,,Public Bodies,,5106196818,Business and Commercial Services,,CS organisational development,Civil Service Human Resources,CF14 3UW,"2,840.40",Yes
Communities & Local Government,DCLG,05/09/2013,Software Licences,Neighbourhoods,BRAMBLE. CC,,Public Bodies,,5106196823,Software,,SugarCRM Yr 3,Software for the Portal IT site,SE1 7SP,"50,220.00",
Communities & Local Government,DCLG,05/09/2013,Technical Aids for the disabled,Finance & Corporate Services,DCLG GOVERNMENT PROCUREMENT CARD,,,,1000003862,,AT294 - RW Gold and Inspiration - Assistive tech,,AT294 - RW Gold and Inspiration - Assistive tech,TN37 7GA,379.36,
Communities & Local Government,DCLG,05/09/2013,Training,Finance & Corporate Services,CESG,,Public Bodies,,5106196790,Development and Training,,SUAC - Accreditors' Professional event,SUAC - Accreditors' Professional event,GL51 0EX,300.00,
Communities & Local Government,DCLG,05/09/2013,Web Services,Neighbourhoods,BRAMBLE. CC,,Public Bodies,,5106196822,Managed / Outsourced Services,,Development days 1-200,Training courses,SE1 7SP,"1,740.00",
Communities & Local Government,DCLG,05/09/2013,Work In Progress Pre-Cert 40373 Spend,Neighbourhoods,ASTON UNIVERSITY,,Large,,7600006058,,Revenue Grant To Be Paid,,Revenue Grant To Be Paid,B4 7ET,"15,624.43",Yes
Communities & Local Government,DCLG,05/09/2013,Work In Progress Pre-Cert 40373 Spend,Neighbourhoods,ASTON UNIVERSITY,,Large,,7600006062,,Revenue Grant To Be Paid,,Revenue Grant To Be Paid,B4 7ET,"19,726.58",Yes
Communities & Local Government,DCLG,05/09/2013,Work In Progress Pre-Cert 40373 Spend,Neighbourhoods,COVENTRY UNIVERSITY,,Large,,7600006060,,Revenue Grant Clawback Offset,,Revenue Grant Clawback Offset,CV1 5FB,"-3,169.32",Yes
Communities & Local Government,DCLG,05/09/2013,Work In Progress Pre-Cert 40373 Spend,Neighbourhoods,COVENTRY UNIVERSITY,,Large,,7600006060,,Revenue Grant To Be Paid,,Revenue Grant To Be Paid,CV1 5FB,"21,717.63",Yes
Communities & Local Government,DCLG,05/09/2013,Work In Progress Pre-Cert 40373 Spend,Neighbourhoods,GWE BUSINESS WEST LTD,,,,7600006063,,Revenue Grant To Be Paid,,Revenue Grant To Be Paid,BS8 3RA,"236,616.74",Yes
Communities & Local Government,DCLG,05/09/2013,Work In Progress Pre-Cert 40373 Spend,Neighbourhoods,UNIVERSITY OF EXETER,,,,7600006059,,Revenue Grant Clawback Offset,,Revenue Grant Clawback Offset,EX4 4QJ,-782.39,Yes
Communities & Local Government,DCLG,05/09/2013,Work In Progress Pre-Cert 40373 Spend,Neighbourhoods,UNIVERSITY OF EXETER,,,,7600006059,,Revenue Grant To Be Paid,,Revenue Grant To Be Paid,EX4 4QJ,"616,499.71",Yes
Communities & Local Government,DCLG,05/09/2013,Work In Progress Pre-Cert 40373 Spend,Neighbourhoods,UNIVERSITY OF WOLVERHAMPTON,,Large,,7600006061,,Revenue Grant To Be Paid,,Revenue Grant To Be Paid,WV1 1SB,"8,987.39",Yes
Communities & Local Government,DCLG,05/09/2013,Work In Progress Pre-Cert 40373 Spend,Neighbourhoods,WSX ENTERPRISE LIMITED,,,,7600006064,,Revenue Grant To Be Paid,,Revenue Grant To Be Paid,PO16 7BJ,"38,013.81",Yes
Communities & Local Government,DCLG,05/09/2013,Work In Progress Pre-Cert 40467 Spend,Neighbourhoods,ASTON UNIVERSITY,,Large,,7600006058,,Capital Grant To Be Paid,,Capital Grant To Be Paid,B4 7ET,"6,205.82",Yes
Communities & Local Government,DCLG,05/09/2013,Work In Progress Pre-Cert 40467 Spend,Neighbourhoods,ASTON UNIVERSITY,,Large,,7600006062,,Capital Grant To Be Paid,,Capital Grant To Be Paid,B4 7ET,"78,954.89",Yes
Communities & Local Government,DCLG,05/09/2013,Work In Progress Pre-Cert 40467 Spend,Neighbourhoods,COVENTRY UNIVERSITY,,Large,,7600006060,,Capital Grant To Be Paid,,Capital Grant To Be Paid,CV1 5FB,"2,490.30",Yes
Communities & Local Government,DCLG,05/09/2013,Work In Progress Pre-Cert 40467 Spend,Neighbourhoods,WATERGATE BAY HOTEL LTD,,,,7600006065,,Capital Grant To Be Paid,,Capital Grant To Be Paid,TR8 4AA,"76,800.80",Yes
Communities & Local Government,DCLG,06/09/2013,Advertising,Finance & Corporate Services,DATA LATERAL LTD,,Medium,,5106196852,Advertising,,Right to Buy Phase 2,Right to Buy Phase 2,NG17 5FB,"39,510.65",
Communities & Local Government,DCLG,06/09/2013,Agency Staff,Finance & Corporate Services,CERTES COMPUTING LTD,,Medium,,5106196850,Contingent Labour,,Extension Susse Linct Contract 1-9 Augst,Extension Susse Linct Contract 1-9 Augst,B46 1HQ,"1,031.18",
Communities & Local Government,DCLG,06/09/2013,Agency Staff,Finance & Corporate Services,CERTES COMPUTING LTD,,Medium,,5106196850,Contingent Labour,,Temporary Staff July 2013 (Susse Licht),Temporary Staff July 2013 (Susse Licht),B46 1HQ,441.94,
Communities & Local Government,DCLG,06/09/2013,Agency Staff,Finance & Corporate Services,PREMIERE EMPLOYMENT GROUP LTD,,Large,,5106196796,Contingent Labour,,Admin clerical support,Admin clerical support,M3 2JA,541.80,
Communities & Local Government,DCLG,06/09/2013,Agency Staff,Finance & Corporate Services,REED EMPLOYMENT SERVICES,,Large,,5106196804,Contingent Labour,,Temporary EO,Temporary Admin Support - Agency Staff,SW20 0BA,617.76,
Communities & Local Government,DCLG,06/09/2013,Agency Staff,Finance & Corporate Services,REED EMPLOYMENT SERVICES,,Large,,5106196808,Contingent Labour,,PA admin,PA admin,SW20 0BA,262.63,
Communities & Local Government,DCLG,06/09/2013,Agency Staff,Finance & Corporate Services,SQUARE ONE RESOURCES LTD,,Medium,,5106196799,Contingent Labour,,Interim Manager,Interim Manager,EC2A 2AD,"2,858.82",
Communities & Local Government,DCLG,06/09/2013,Agency Staff,Finance & Corporate Services,SQUARE ONE RESOURCES LTD,,Medium,,5106196800,Contingent Labour,,Interim Manager,Interim Manager,EC2A 2AD,"2,858.82",
Communities & Local Government,DCLG,06/09/2013,Agency Staff,Localism,MANPOWER UK LTD,,Large,,5106196697,Contingent Labour,,3 month extension,3 month extension,UB8 1AB,887.76,
Communities & Local Government,DCLG,06/09/2013,Agency Staff,Neighbourhoods,REED EMPLOYMENT SERVICES,,Large,,5106196803,Contingent Labour,,Extension of Support- Rate Adjustment,Extension of Support- Rate Adjustment,SW20 0BA,"1,635.42",
Communities & Local Government,DCLG,06/09/2013,Current Grants to Non Profit Bodies,Neighbourhoods,EARTH TENANT MANAGEMENT ORGANISATIO,,Small,,5000233795,,Right to Manage,,Right to Manage,BS2 0BL,"5,000.00",Yes
Communities & Local Government,DCLG,06/09/2013,Current Grants to Non Profit Bodies,Neighbourhoods,GLOUCESTER GROVE TENANT MANG ORG CI,,Micro,,5000233796,,Right to Manage,,Right to Manage,SE15 6AD,"15,000.00",Yes
Communities & Local Government,DCLG,06/09/2013,"Furniture, Fittings and carpets",Finance & Corporate Services,POSTURITE,,Medium,,5106196830,"Furniture, Fixtures and Fittings",GRN 5000671257 MMCDOWAL,Deskrite 200 Crank Map/Sil 110x80,Deskrite 200 Crank Map/Sil 110x80,BN26 6SZ,416.58,
Communities & Local Government,DCLG,06/09/2013,IT Maintenance,Finance & Corporate Services,DELL CORPORATION LTD,,Large,,5106196831,ICT Services,GRN 5000671271 MMCDOWAL,2YR ProSupport for ITand4Hr Mission Crit,2YR ProSupport for ITand4Hr Mission Crit,RG12 1LF,"1,049.00",
Communities & Local Government,DCLG,06/09/2013,Legal Fees,Finance & Corporate Services,TREASURY SOLICITOR,,Public Bodies,,2100234105,Legal,REF:  Z1315582/JDI/A4,,REF:  Z1315582/JDI/A4,WC2B 4TS,"43,864.70",
Communities & Local Government,DCLG,06/09/2013,Recruitment,Finance & Corporate Services,PENNA PLC,,Large,,5106196835,Business Process Outsourcing Services,,Implementation of Assessment Centres,Implementation of Assessment Centres,EC4M 7RD,"34,617.60",
Communities & Local Government,DCLG,06/09/2013,Recruitment,Finance & Corporate Services,PENNA PLC,,Large,,5106196835,Business Process Outsourcing Services,,Implementation of Assm't (variable costs,Implementation of Assm't (variable costs,EC4M 7RD,"46,039.84",
Communities & Local Government,DCLG,06/09/2013,Recruitment,Finance & Corporate Services,PENNA PLC,,Large,,5106196836,Business Process Outsourcing Services,,Implementation of Assm't (variable costs,Implementation of Assm't (variable costs,EC4M 7RD,491.88,
Communities & Local Government,DCLG,06/09/2013,Research,Finance & Corporate Services,ECORYS UK LTD,,Medium,,5106196792,Operational Services,GRN 5000671270 PMARTIN,Monthly payment,Research - Troubled families Programme,B1 2RA,"20,179.20",
Communities & Local Government,DCLG,06/09/2013,Steady State Service Provision,Neighbourhoods,CEL GROUP,,Medium,,5106196851,Business Process Outsourcing Services,,Payments for 1/10/12 - 30/09/13,Payments for 1/10/12 - 30/09/13,SK13 8HT,"71,179.67",
Communities & Local Government,DCLG,06/09/2013,Telecoms equipment (non-capitalised),Finance & Corporate Services,DAMOVO UK LTD,,Large,,5106196842,Telecoms,,MPLS Circuit Charges 9 sites,MPLS Circuit Charges 9 sites,RH12 4QP,"6,988.44",
Communities & Local Government,DCLG,06/09/2013,Telecoms equipment (non-capitalised),Finance & Corporate Services,DAMOVO UK LTD,,Large,,5106196842,Telecoms,,Regional Hubs Mont5hly recurring and Lin,Regional Hubs Mont5hly recurring and Lin,RH12 4QP,"10,477.81",
Communities & Local Government,DCLG,06/09/2013,Telecoms equipment (non-capitalised),Finance & Corporate Services,DAMOVO UK LTD,,Large,,5106196842,Telecoms,,Telephone Support Services,Telephone Support Services,RH12 4QP,"93,123.23",
Communities & Local Government,DCLG,06/09/2013,Training,Neighbourhoods,TCPSS SERVICES LTD,,Micro,,5106196794,Development and Training,GRN 5000671272 PMARTIN,Planning Summer School 6-9 Sep,Training course for Planners,SP1 1DX,895.00,
Communities & Local Government,DCLG,06/09/2013,Training,Neighbourhoods,TCPSS SERVICES LTD,,Micro,,5106196856,Development and Training,,Planning Summer School 6-9 Sep,Training course for Planners,SP1 1DX,945.00,
Communities & Local Government,DCLG,06/09/2013,Vehicle hire,Finance & Corporate Services,GOVERNMENT CAR & DESPATCH AGENCY,,Public Bodies,,5106196827,Vehicle Hire and Lease,,Ministerial Cars,Ministerial Cars,SW8 5AX,277.50,
Communities & Local Government,DCLG,06/09/2013,Work In Progress Pre-Cert 40373 Spend,Neighbourhoods,BRECKLAND COUNCIL,,,,7600006067,,Revenue Grant To Be Paid,,Revenue Grant To Be Paid,NR19 1EE,"53,383.93",Yes
Communities & Local Government,DCLG,06/09/2013,Work In Progress Pre-Cert 40373 Spend,Neighbourhoods,GOODWIN DEVELOPMENT TRUST LTD,,,,7600006066,,Revenue Grant To Be Paid,,Revenue Grant To Be Paid,HU3 2HQ,"87,533.49",Yes
Communities & Local Government,DCLG,06/09/2013,Work In Progress Pre-Cert 40467 Spend,Neighbourhoods,BRECKLAND COUNCIL,,,,7600006067,,Capital Grant To Be Paid,,Capital Grant To Be Paid,NR19 1EE,"388,926.43",Yes
Communities & Local Government,DCLG,06/09/2013,Work In Progress Pre-Cert 40467 Spend,Neighbourhoods,KEO ENERGYSHARE LTD,,,,7600006068,,Capital Grant To Be Paid,,Capital Grant To Be Paid,TR7 2NE,"72,347.33",Yes
Communities & Local Government,DCLG,09/09/2013,Agency Staff,Neighbourhoods,CAPITA RESOURCING LTD,,Large,,5106196869,Contingent Labour,,Expenses,Expenses,SL6 1DP,181.44,
Communities & Local Government,DCLG,09/09/2013,Agency Staff,Neighbourhoods,CAPITA RESOURCING LTD,,Large,,5106196869,Contingent Labour,,Interim Manager,Interim Manager,SL6 1DP,"2,018.28",
Communities & Local Government,DCLG,09/09/2013,Current (non AEF) Grants to Local Authorities,Neighbourhoods,EAST HAMPSHIRE DC,,,,2100234004,,Resource Grant for Housing Development,,Resource Grant for Housing Development,GU31 4EX,"660,665.00",Yes
Communities & Local Government,DCLG,09/09/2013,Electricity,Finance & Corporate Services,EDF ENERGY 1 LIMITED,,Large,,5106196707,Energy,,EoE Waterbeach Electricity 2013-14,EoE Waterbeach Electricity 2013-14,PL3 5XQ,"-4,115.30",
Communities & Local Government,DCLG,09/09/2013,Electricity,Finance & Corporate Services,EDF ENERGY 1 LIMITED,,Large,,5106196870,Energy,,WM Wolverhampton Electricity - 2013-14,WM Wolverhampton Electricity - 2013-14,PL3 5XQ,"3,474.48",
Communities & Local Government,DCLG,09/09/2013,Electricity,Finance & Corporate Services,SIEMANS METERING SERVICES,,Large,,5106196859,Energy,,RCC Castle Don Metering 2013-14,RCC Castle Don Metering 2013-14,NG8 1GB,564.00,
Communities & Local Government,DCLG,09/09/2013,Grant in Aid to NDPBs (non budget),Localism,COMMISSION LOCAL ADMINISTRATION,,,,2100234066,,CLAE Grant In Aid for Sept 2013,,CLAE Grant In Aid for Sept 2013,SW1P 4QP,"2,586,300.00",Yes
Communities & Local Government,DCLG,09/09/2013,IT - Service Contracts,Finance & Corporate Services,PROCSERVE SHARED SERVICES LTD,,Large,,5106196868,Managed / Outsourced Services,GRN 5000671279 MMCDOWAL,32mths subscriptions Jul 2011-Jul 2014,32mths subscriptions Jul 2011-Jul 2014,SW1W 9SR,"6,176.64",
Communities & Local Government,DCLG,09/09/2013,IT - Service Contracts,Finance & Corporate Services,PTFS EUROPE LTD,,Micro,,5106196862,Managed / Outsourced Services,GRN 5000671280 MMCDOWAL,Koha and VuFind hosting and support,Koha and VuFind hosting and support,W1S 1DX,"14,490.00",
Communities & Local Government,DCLG,09/09/2013,IT - Service Contracts,Localism,AIRWAVE SOLUTIONS LTD,,Large,,5106196872,Managed / Outsourced Services,,Phase A Wales 2013/14,Phase A Wales 2013/14,SL1 2EJ,"121,968.28",
Communities & Local Government,DCLG,09/09/2013,IT - Service Contracts,Localism,AIRWAVE SOLUTIONS LTD,,Large,,5106196873,Managed / Outsourced Services,,Phase A Scotland 2013/14,Phase A Scotland 2013/14,SL1 2EJ,"237,293.00",
Communities & Local Government,DCLG,09/09/2013,IT - Service Contracts,Localism,AIRWAVE SOLUTIONS LTD,,Large,,5106196875,Managed / Outsourced Services,,Phase B England 2013/14,Phase B England 2013/14,SL1 2EJ,"237,863.31",
Communities & Local Government,DCLG,09/09/2013,IT - Service Contracts,Localism,AIRWAVE SOLUTIONS LTD,,Large,,5106196876,Managed / Outsourced Services,,Phase B Wales 2013/14,Phase B Wales 2013/14,SL1 2EJ,"27,984.55",
Communities & Local Government,DCLG,09/09/2013,IT - Service Contracts,Localism,AIRWAVE SOLUTIONS LTD,,Large,,5106196877,Managed / Outsourced Services,,Phase B Scotland 2013/14,Phase B Scotland 2013/14,SL1 2EJ,"23,642.59",
Communities & Local Government,DCLG,09/09/2013,IT - Service Contracts,Localism,AIRWAVE SOLUTIONS LTD,,Large,,5106196880,Managed / Outsourced Services,,Phase C England (MDT1A) 2013/14,Phase C England (MDT1A) 2013/14,SL1 2EJ,"94,406.92",
Communities & Local Government,DCLG,09/09/2013,IT - Service Contracts,Finance & Corporate Services,PARITY RESOURCES LTD,,Large,,5106196863,Managed / Outsourced Services,,Business Planning & Consolidation System,Business Planning & Consolidation System,SW19 3RY,"20,877.50",
Communities & Local Government,DCLG,09/09/2013,Management Consultancy,Neighbourhoods,AMEC ENVIRONMENT & INFRASTRUCTURE,,Large,,5106196866,Consultancy,,Provision of EIA Services,Provision of EIA Services,NE3 3AF,"5,754.78",
Communities & Local Government,DCLG,09/09/2013,Work In Progress Pre-Cert 40373 Spend,Neighbourhoods,NAT INS OF AGRICULTURAL BOTANY TRUS,,Medium,,7600006073,,Revenue Grant To Be Paid,,Revenue Grant To Be Paid,CB3 0LE,"5,015.19",Yes
Communities & Local Government,DCLG,09/09/2013,Work In Progress Pre-Cert 40373 Spend,Neighbourhoods,NAT INS OF AGRICULTURAL BOTANY TRUS,,Medium,,7600006075,,Revenue Grant To Be Paid,,Revenue Grant To Be Paid,CB3 0LE,"32,712.06",Yes
Communities & Local Government,DCLG,09/09/2013,Work In Progress Pre-Cert 40373 Spend,Neighbourhoods,NAT INS OF AGRICULTURAL BOTANY TRUS,,Medium,,7600006076,,Revenue Grant To Be Paid,,Revenue Grant To Be Paid,CB3 0LE,"4,972.11",Yes
Communities & Local Government,DCLG,09/09/2013,Work In Progress Pre-Cert 40373 Spend,Neighbourhoods,NEWCASTLE CITY COUNCIL,,,,7600006070,,Revenue Grant To Be Paid,,Revenue Grant To Be Paid,NE1 8QN,"5,508.77",Yes
Communities & Local Government,DCLG,09/09/2013,Work In Progress Pre-Cert 40373 Spend,Neighbourhoods,NEWCASTLE CITY COUNCIL,,,,7600006072,,Revenue Grant To Be Paid,,Revenue Grant To Be Paid,NE1 8QN,"100,258.07",Yes
Communities & Local Government,DCLG,09/09/2013,Work In Progress Pre-Cert 40373 Spend,Neighbourhoods,REDCAR & CLEVELAND BC,,,,7600006071,,Revenue Grant To Be Paid,,Revenue Grant To Be Paid,TS10 1YA,169.46,Yes
Communities & Local Government,DCLG,09/09/2013,Work In Progress Pre-Cert 40373 Spend,Neighbourhoods,UNIVERSITY OF NORTHUM'BLD AT NEWC'S,,,,7600006069,,Revenue Grant To Be Paid,,Revenue Grant To Be Paid,NE1 8ST,"67,720.84",Yes
Communities & Local Government,DCLG,09/09/2013,Work In Progress Pre-Cert 40467 Spend,Neighbourhoods,NAT INS OF AGRICULTURAL BOTANY TRUS,,Medium,,7600006073,,Capital Grant To Be Paid,,Capital Grant To Be Paid,CB3 0LE,"3,503.92",Yes
Communities & Local Government,DCLG,09/09/2013,Work In Progress Pre-Cert 40467 Spend,Neighbourhoods,NAT INS OF AGRICULTURAL BOTANY TRUS,,Medium,,7600006075,,Capital Grant Clawback Offset,,Capital Grant Clawback Offset,CB3 0LE,"-10,571.48",Yes
Communities & Local Government,DCLG,09/09/2013,Work In Progress Pre-Cert 40467 Spend,Neighbourhoods,NAT INS OF AGRICULTURAL BOTANY TRUS,,Medium,,7600006075,,Capital Grant To Be Paid,,Environmental Impact Assessment,CB3 0LE,"10,917.31",Yes
Communities & Local Government,DCLG,09/09/2013,Work In Progress Pre-Cert 40467 Spend,Neighbourhoods,NAT INS OF AGRICULTURAL BOTANY TRUS,,Medium,,7600006076,,Capital Grant To Be Paid,,Capital Grant To Be Paid,CB3 0LE,"17,023.20",Yes
Communities & Local Government,DCLG,09/09/2013,Work In Progress Pre-Cert 40467 Spend,Neighbourhoods,REDCAR & CLEVELAND BC,,,,7600006071,,Capital Grant To Be Paid,,Capital Grant To Be Paid,TS10 1YA,"117,634.77",Yes
Communities & Local Government,DCLG,10/09/2013,Accommodation Service Charges,Neighbourhoods,GVA GRIMLEY LTD,,Large,,5106196834,Accommodation Services,,ERDF NE LDU Valuation Services to Dec 13,ERDF NE LDU Valuation Services to Dec 13,B1 2JB,"3,906.00",
Communities & Local Government,DCLG,10/09/2013,Agency Staff,Finance & Corporate Services,SBS GROUP (UK) LTD,,Large,,5106196899,Contingent Labour,,SAP Technical Support,SAP Technical Support,EC1N 8TS,"17,020.80",
Communities & Local Government,DCLG,10/09/2013,Electricity,Finance & Corporate Services,EDF ENERGY 1 LIMITED,,Large,,5106196854,Energy,,EoE Waterbeach Electricity 2013-14,EoE Waterbeach Electricity 2013-14,PL3 5XQ,"2,856.90",
Communities & Local Government,DCLG,10/09/2013,Electricity,Finance & Corporate Services,EDF ENERGY 1 LIMITED,,Large,,5106196871,Energy,,Y&H Wakefeild Electricity 2013-14,Y&H Wakefeild Electricity 2013-14,PL3 5XQ,"2,799.23",
Communities & Local Government,DCLG,10/09/2013,Electricity,Finance & Corporate Services,EDF ENERGY 1 LIMITED,,Large,,5106196871,Energy,,Y&H Wakefeild Electricity 2013-14 0% VAT,Y&H Wakefeild Electricity 2013-14 0% VAT,PL3 5XQ,8.53,
Communities & Local Government,DCLG,10/09/2013,Electricity,Finance & Corporate Services,EDF ENERGY 1 LIMITED,,Large,,5106196878,Energy,,SW Taunton Electricity 2013-14,SW Taunton Electricity 2013-14,PL3 5XQ,"3,135.37",
Communities & Local Government,DCLG,10/09/2013,Electricity,Finance & Corporate Services,EDF ENERGY 1 LIMITED,,Large,,5106196879,Energy,,EM Castle Don Electricity 2013-14,EM Castle Don Electricity 2013-14,PL3 5XQ,"4,000.88",
Communities & Local Government,DCLG,10/09/2013,Electricity,Finance & Corporate Services,EDF ENERGY 1 LIMITED,,Large,,5106196905,Energy,,EoE Waterbeach Electricity 2013-14,EoE Waterbeach Electricity 2013-14,PL3 5XQ,"-4,019.53",
Communities & Local Government,DCLG,10/09/2013,Fixed Maintenance,Finance & Corporate Services,BABCOCK SUPPORT SERVICES LTD,,Large,,5106196894,Construction Service Providers,, EM Castle Don Fixed Maintainance 2,EM Castle Don Fixed Maintainance 2,BS34 8JH,"15,300.72",
Communities & Local Government,DCLG,10/09/2013,Fixed Maintenance,Finance & Corporate Services,BABCOCK SUPPORT SERVICES LTD,,Large,,5106196895,Construction Service Providers,, Y&H Wakefield Fixed Maintainance2013-14,Y&H Wakefield Fixed Maintainance2013-14,BS34 8JH,"15,300.72",
Communities & Local Government,DCLG,10/09/2013,Fixed Maintenance,Finance & Corporate Services,BABCOCK SUPPORT SERVICES LTD,,Large,,5106196896,Construction Service Providers,, EoE Waterbeach Fixed Maintainanc 2,EoE Waterbeach Fixed Maintainanc 2,BS34 8JH,"15,300.72",
Communities & Local Government,DCLG,10/09/2013,Fixed Maintenance,Finance & Corporate Services,BABCOCK SUPPORT SERVICES LTD,,Large,,5106196897,Construction Service Providers,, SW Taunton Fixed Maintainance 2013,SW Taunton Fixed Maintainance 2013,BS34 8JH,"15,300.72",
Communities & Local Government,DCLG,10/09/2013,Fixed Maintenance,Finance & Corporate Services,BABCOCK SUPPORT SERVICES LTD,,Large,,5106196898,Construction Service Providers,,WM Wolv Fixed Maintainance 2013-14,WM Wolv Fixed Maintainance 2013-14,BS34 8JH,"15,300.72",
Communities & Local Government,DCLG,10/09/2013,IT - Service Contracts,Localism,AIRWAVE SOLUTIONS LTD,,Large,,5106196874,Managed / Outsourced Services,,Phase A England 2013/14,Phase A England 2013/14,SL1 2EJ,"895,112.18",
Communities & Local Government,DCLG,10/09/2013,IT - Service Contracts,Localism,EARTHED DESIGN LIMITED,,Micro,,5106196882,Managed / Outsourced Services,,Document processing and digitisation,Document processing and digitisation,NW6 3QD,"1,080.00",
Communities & Local Government,DCLG,10/09/2013,IT - Software Maintenance,Finance & Corporate Services,METHODS CONSULTING LTD,,Medium,,5106196902,Managed / Outsourced Services,,PIMS Application Support,PIMS Application Support,WC2H 8AD,"24,000.00",
Communities & Local Government,DCLG,10/09/2013,Legal Fees,Finance & Corporate Services,LOVETTS SOLICITORS,,,,2100234209,Legal,PAYMENT REF:  Z1219449/DZL/AB,,PAYMENT REF:  Z1219449/DZL/AB,GU3 1LR,"5,595.61",
Communities & Local Government,DCLG,10/09/2013,Travel and Subsistence Account,Finance & Corporate Services,REDFERN TRAVEL LIMITED,,Small,,2100234183,Business Travel,Monthly Consolidated Travel Costs August 13,,Monthly Consolidated Travel Costs August 13,BD1 3AZ,302.54,
Communities & Local Government,DCLG,10/09/2013,Travel and Subsistence Account,Finance & Corporate Services,REDFERN TRAVEL LIMITED,,Small,,2100234183,Business Travel,Monthly Consolidated Travel Costs August 13,,Monthly Consolidated Travel Costs August 13,BD1 3AZ,644.78,
Communities & Local Government,DCLG,10/09/2013,Travel and Subsistence Account,Finance & Corporate Services,REDFERN TRAVEL LIMITED,,Small,,2100234183,Business Travel,Monthly Consolidated Travel Costs August 13,,Monthly Consolidated Travel Costs August 13,BD1 3AZ,"3,998.38",
Communities & Local Government,DCLG,10/09/2013,Travel and Subsistence Account,Finance & Corporate Services,REDFERN TRAVEL LIMITED,,Small,,2100234183,Business Travel,Monthly Consolidated Travel Costs August 13,,Monthly Consolidated Travel Costs August 13,BD1 3AZ,508.00,
Communities & Local Government,DCLG,10/09/2013,Travel and Subsistence Account,Finance & Corporate Services,REDFERN TRAVEL LIMITED,,Small,,2100234183,Business Travel,Monthly Consolidated Travel Costs August 13,,Monthly Consolidated Travel Costs August 13,BD1 3AZ,590.32,
Communities & Local Government,DCLG,10/09/2013,Travel and Subsistence Account,Finance & Corporate Services,REDFERN TRAVEL LIMITED,,Small,,2100234183,Business Travel,Monthly Consolidated Travel Costs August 13,,Monthly Consolidated Travel Costs August 13,BD1 3AZ,845.42,
Communities & Local Government,DCLG,10/09/2013,Travel and Subsistence Account,Finance & Corporate Services,REDFERN TRAVEL LIMITED,,Small,,2100234183,Business Travel,Monthly Consolidated Travel Costs August 13,,Monthly Consolidated Travel Costs August 13,BD1 3AZ,"4,631.57",
Communities & Local Government,DCLG,10/09/2013,Travel and Subsistence Account,Finance & Corporate Services,REDFERN TRAVEL LIMITED,,Small,,2100234183,Business Travel,Monthly Consolidated Travel Costs August 13,,Monthly Consolidated Travel Costs August 13,BD1 3AZ,444.33,
Communities & Local Government,DCLG,10/09/2013,Travel and Subsistence Account,Finance & Corporate Services,REDFERN TRAVEL LIMITED,,Small,,2100234183,Business Travel,Monthly Consolidated Travel Costs August 13,,Monthly Consolidated Travel Costs August 13,BD1 3AZ,588.01,
Communities & Local Government,DCLG,10/09/2013,Travel and Subsistence Account,Finance & Corporate Services,REDFERN TRAVEL LIMITED,,Small,,2100234183,Business Travel,Monthly Consolidated Travel Costs August 13,,Monthly Consolidated Travel Costs August 13,BD1 3AZ,"1,485.45",
Communities & Local Government,DCLG,10/09/2013,Travel and Subsistence Account,Finance & Corporate Services,REDFERN TRAVEL LIMITED,,Small,,2100234183,Business Travel,Monthly Consolidated Travel Costs August 13,,Monthly Consolidated Travel Costs August 13,BD1 3AZ,660.04,
Communities & Local Government,DCLG,10/09/2013,Travel and Subsistence Account,Localism,REDFERN TRAVEL LIMITED,,Small,,2100234183,Business Travel,Monthly Consolidated Travel Costs August 13,,Monthly Consolidated Travel Costs August 13,BD1 3AZ,530.38,
Communities & Local Government,DCLG,10/09/2013,Travel and Subsistence Account,Localism,REDFERN TRAVEL LIMITED,,Small,,2100234183,Business Travel,Monthly Consolidated Travel Costs August 13,,Monthly Consolidated Travel Costs August 13,BD1 3AZ,685.34,
Communities & Local Government,DCLG,10/09/2013,Travel and Subsistence Account,Localism,REDFERN TRAVEL LIMITED,,Small,,2100234183,Business Travel,Monthly Consolidated Travel Costs August 13,,Monthly Consolidated Travel Costs August 13,BD1 3AZ,821.09,
Communities & Local Government,DCLG,10/09/2013,Travel and Subsistence Account,Localism,REDFERN TRAVEL LIMITED,,Small,,2100234183,Business Travel,Monthly Consolidated Travel Costs August 13,,Monthly Consolidated Travel Costs August 13,BD1 3AZ,518.17,
Communities & Local Government,DCLG,10/09/2013,Travel and Subsistence Account,Localism,REDFERN TRAVEL LIMITED,,Small,,2100234183,Business Travel,Monthly Consolidated Travel Costs August 13,,Monthly Consolidated Travel Costs August 13,BD1 3AZ,938.02,
Communities & Local Government,DCLG,10/09/2013,Travel and Subsistence Account,Localism,REDFERN TRAVEL LIMITED,,Small,,2100234183,Business Travel,Monthly Consolidated Travel Costs August 13,,Monthly Consolidated Travel Costs August 13,BD1 3AZ,738.15,
Communities & Local Government,DCLG,10/09/2013,Travel and Subsistence Account,Localism,REDFERN TRAVEL LIMITED,,Small,,2100234183,Business Travel,Monthly Consolidated Travel Costs August 13,,Monthly Consolidated Travel Costs August 13,BD1 3AZ,549.26,
Communities & Local Government,DCLG,10/09/2013,Travel and Subsistence Account,Localism,REDFERN TRAVEL LIMITED,,Small,,2100234183,Business Travel,Monthly Consolidated Travel Costs August 13,,Monthly Consolidated Travel Costs August 13,BD1 3AZ,640.98,
Communities & Local Government,DCLG,10/09/2013,Travel and Subsistence Account,Localism,REDFERN TRAVEL LIMITED,,Small,,2100234183,Business Travel,Monthly Consolidated Travel Costs August 13,,Monthly Consolidated Travel Costs August 13,BD1 3AZ,"1,002.87",
Communities & Local Government,DCLG,10/09/2013,Travel and Subsistence Account,Localism,REDFERN TRAVEL LIMITED,,Small,,2100234183,Business Travel,Monthly Consolidated Travel Costs August 13,,Monthly Consolidated Travel Costs August 13,BD1 3AZ,254.88,
Communities & Local Government,DCLG,10/09/2013,Travel and Subsistence Account,Localism,REDFERN TRAVEL LIMITED,,Small,,2100234183,Business Travel,Monthly Consolidated Travel Costs August 13,,Monthly Consolidated Travel Costs August 13,BD1 3AZ,252.10,
Communities & Local Government,DCLG,10/09/2013,Travel and Subsistence Account,Localism,REDFERN TRAVEL LIMITED,,Small,,2100234183,Business Travel,Monthly Consolidated Travel Costs August 13,,Monthly Consolidated Travel Costs August 13,BD1 3AZ,"1,289.30",
Communities & Local Government,DCLG,10/09/2013,Travel and Subsistence Account,Localism,REDFERN TRAVEL LIMITED,,Small,,2100234183,Business Travel,Monthly Consolidated Travel Costs August 13,,Monthly Consolidated Travel Costs August 13,BD1 3AZ,"2,325.72",
Communities & Local Government,DCLG,10/09/2013,Travel and Subsistence Account,Localism,REDFERN TRAVEL LIMITED,,Small,,2100234183,Business Travel,Monthly Consolidated Travel Costs August 13,,Monthly Consolidated Travel Costs August 13,BD1 3AZ,556.40,
Communities & Local Government,DCLG,10/09/2013,Travel and Subsistence Account,Localism,REDFERN TRAVEL LIMITED,,Small,,2100234183,Business Travel,Monthly Consolidated Travel Costs August 13,,Monthly Consolidated Travel Costs August 13,BD1 3AZ,804.97,
Communities & Local Government,DCLG,10/09/2013,Travel and Subsistence Account,Localism,REDFERN TRAVEL LIMITED,,Small,,2100234183,Business Travel,Monthly Consolidated Travel Costs August 13,,Monthly Consolidated Travel Costs August 13,BD1 3AZ,813.61,
Communities & Local Government,DCLG,10/09/2013,Travel and Subsistence Account,Localism,REDFERN TRAVEL LIMITED,,Small,,2100234183,Business Travel,Monthly Consolidated Travel Costs August 13,,Monthly Consolidated Travel Costs August 13,BD1 3AZ,898.64,
Communities & Local Government,DCLG,10/09/2013,Travel and Subsistence Account,Localism,REDFERN TRAVEL LIMITED,,Small,,2100234183,Business Travel,Monthly Consolidated Travel Costs August 13,,Monthly Consolidated Travel Costs August 13,BD1 3AZ,"4,736.00",
Communities & Local Government,DCLG,10/09/2013,Travel and Subsistence Account,Neighbourhoods,REDFERN TRAVEL LIMITED,,Small,,2100234183,Business Travel,Monthly Consolidated Travel Costs August 13,,Monthly Consolidated Travel Costs August 13,BD1 3AZ,852.65,
Communities & Local Government,DCLG,10/09/2013,Travel and Subsistence Account,Neighbourhoods,REDFERN TRAVEL LIMITED,,Small,,2100234183,Business Travel,Monthly Consolidated Travel Costs August 13,,Monthly Consolidated Travel Costs August 13,BD1 3AZ,324.06,
Communities & Local Government,DCLG,10/09/2013,Travel and Subsistence Account,Neighbourhoods,REDFERN TRAVEL LIMITED,,Small,,2100234183,Business Travel,Monthly Consolidated Travel Costs August 13,,Monthly Consolidated Travel Costs August 13,BD1 3AZ,334.98,
Communities & Local Government,DCLG,10/09/2013,Travel and Subsistence Account,Neighbourhoods,REDFERN TRAVEL LIMITED,,Small,,2100234183,Business Travel,Monthly Consolidated Travel Costs August 13,,Monthly Consolidated Travel Costs August 13,BD1 3AZ,"1,285.77",
Communities & Local Government,DCLG,10/09/2013,Travel and Subsistence Account,Neighbourhoods,REDFERN TRAVEL LIMITED,,Small,,2100234183,Business Travel,Monthly Consolidated Travel Costs August 13,,Monthly Consolidated Travel Costs August 13,BD1 3AZ,"1,066.09",
Communities & Local Government,DCLG,10/09/2013,Travel and Subsistence Account,Neighbourhoods,REDFERN TRAVEL LIMITED,,Small,,2100234183,Business Travel,Monthly Consolidated Travel Costs August 13,,Monthly Consolidated Travel Costs August 13,BD1 3AZ,"1,311.88",
Communities & Local Government,DCLG,10/09/2013,Travel and Subsistence Account,Neighbourhoods,REDFERN TRAVEL LIMITED,,Small,,2100234183,Business Travel,Monthly Consolidated Travel Costs August 13,,Monthly Consolidated Travel Costs August 13,BD1 3AZ,"4,257.29",
Communities & Local Government,DCLG,10/09/2013,Travel and Subsistence Account,Neighbourhoods,REDFERN TRAVEL LIMITED,,Small,,2100234183,Business Travel,Monthly Consolidated Travel Costs August 13,,Monthly Consolidated Travel Costs August 13,BD1 3AZ,"6,063.54",
Communities & Local Government,DCLG,10/09/2013,Travel and Subsistence Account,Neighbourhoods,REDFERN TRAVEL LIMITED,,Small,,2100234183,Business Travel,Monthly Consolidated Travel Costs August 13,,Monthly Consolidated Travel Costs August 13,BD1 3AZ,"2,506.02",
Communities & Local Government,DCLG,10/09/2013,Travel and Subsistence Account,Neighbourhoods,REDFERN TRAVEL LIMITED,,Small,,2100234183,Business Travel,Monthly Consolidated Travel Costs August 13,,Monthly Consolidated Travel Costs August 13,BD1 3AZ,967.50,
Communities & Local Government,DCLG,10/09/2013,Travel and Subsistence Account,Neighbourhoods,REDFERN TRAVEL LIMITED,,Small,,2100234183,Business Travel,Monthly Consolidated Travel Costs August 13,,Monthly Consolidated Travel Costs August 13,BD1 3AZ,"1,163.49",
Communities & Local Government,DCLG,10/09/2013,Travel and Subsistence Account,Neighbourhoods,REDFERN TRAVEL LIMITED,,Small,,2100234183,Business Travel,Monthly Consolidated Travel Costs August 13,,Monthly Consolidated Travel Costs August 13,BD1 3AZ,"1,243.63",
Communities & Local Government,DCLG,10/09/2013,Travel and Subsistence Account,Neighbourhoods,REDFERN TRAVEL LIMITED,,Small,,2100234183,Business Travel,Monthly Consolidated Travel Costs August 13,,Monthly Consolidated Travel Costs August 13,BD1 3AZ,"1,503.49",
Communities & Local Government,DCLG,10/09/2013,Travel and Subsistence Account,Neighbourhoods,REDFERN TRAVEL LIMITED,,Small,,2100234183,Business Travel,Monthly Consolidated Travel Costs August 13,,Monthly Consolidated Travel Costs August 13,BD1 3AZ,"2,429.36",
Communities & Local Government,DCLG,10/09/2013,Travel and Subsistence Account,Neighbourhoods,REDFERN TRAVEL LIMITED,,Small,,2100234183,Business Travel,Monthly Consolidated Travel Costs August 13,,Monthly Consolidated Travel Costs August 13,BD1 3AZ,"2,552.23",
Communities & Local Government,DCLG,10/09/2013,Travel and Subsistence Account,Neighbourhoods,REDFERN TRAVEL LIMITED,,Small,,2100234183,Business Travel,Monthly Consolidated Travel Costs August 13,,Monthly Consolidated Travel Costs August 13,BD1 3AZ,741.07,
Communities & Local Government,DCLG,10/09/2013,Travel and Subsistence Account,Neighbourhoods,REDFERN TRAVEL LIMITED,,Small,,2100234183,Business Travel,Monthly Consolidated Travel Costs August 13,,Monthly Consolidated Travel Costs August 13,BD1 3AZ,"1,182.50",
Communities & Local Government,DCLG,10/09/2013,Travel and Subsistence Account,Neighbourhoods,REDFERN TRAVEL LIMITED,,Small,,2100234183,Business Travel,Monthly Consolidated Travel Costs August 13,,Monthly Consolidated Travel Costs August 13,BD1 3AZ,"4,672.24",
Communities & Local Government,DCLG,10/09/2013,Travel and Subsistence Account,Neighbourhoods,REDFERN TRAVEL LIMITED,,Small,,2100234183,Business Travel,Monthly Consolidated Travel Costs August 13,,Monthly Consolidated Travel Costs August 13,BD1 3AZ,"1,625.92",
Communities & Local Government,DCLG,10/09/2013,Travel and Subsistence Account,Neighbourhoods,REDFERN TRAVEL LIMITED,,Small,,2100234183,Business Travel,Monthly Consolidated Travel Costs August 13,,Monthly Consolidated Travel Costs August 13,BD1 3AZ,"2,426.60",
Communities & Local Government,DCLG,10/09/2013,Travel and Subsistence Account,Strategic Performance Team,REDFERN TRAVEL LIMITED,,Small,,2100234183,Business Travel,Monthly Consolidated Travel Costs August 13,,Monthly Consolidated Travel Costs August 13,BD1 3AZ,"1,315.99",
Communities & Local Government,DCLG,10/09/2013,Travel and Subsistence Account,Troubled Families,REDFERN TRAVEL LIMITED,,Small,,2100234183,Business Travel,Monthly Consolidated Travel Costs August 13,,Monthly Consolidated Travel Costs August 13,BD1 3AZ,"4,846.19",
Communities & Local Government,DCLG,10/09/2013,Work In Progress Pre-Cert 40373 Spend,Neighbourhoods,GWE BUSINESS WEST LTD,,,,7600006079,,Revenue Grant To Be Paid,,Revenue Grant To Be Paid,BS8 3RA,"166,464.38",Yes
Communities & Local Government,DCLG,10/09/2013,Work In Progress Pre-Cert 40373 Spend,Neighbourhoods,GWE BUSINESS WEST LTD,,,,7600006080,,Revenue Grant To Be Paid,,Revenue Grant To Be Paid,BS8 3RA,"51,167.87",Yes
Communities & Local Government,DCLG,10/09/2013,Work In Progress Pre-Cert 40373 Spend,Neighbourhoods,ONE EAST MIDLANDS,,,,7600006082,,Revenue Grant To Be Paid,,Revenue Grant To Be Paid,NG1 3FB,"11,958.45",Yes
Communities & Local Government,DCLG,10/09/2013,Work In Progress Pre-Cert 40373 Spend,Neighbourhoods,REMADE SOUTH EAST,,Micro,,7600006083,,Revenue Grant Clawback Offset,,Revenue Grant Clawback Offset,ME19 6BJ,-454.92,Yes
Communities & Local Government,DCLG,10/09/2013,Work In Progress Pre-Cert 40373 Spend,Neighbourhoods,REMADE SOUTH EAST,,Micro,,7600006083,,Revenue Grant To Be Paid,,Revenue Grant To Be Paid,ME19 6BJ,"2,854.39",Yes
Communities & Local Government,DCLG,10/09/2013,Work In Progress Pre-Cert 40373 Spend,Neighbourhoods,REMADE SOUTH EAST,,Micro,,7600006084,,Revenue Grant To Be Paid,,Revenue Grant To Be Paid,ME19 6BJ,"3,018.45",Yes
Communities & Local Government,DCLG,10/09/2013,Work In Progress Pre-Cert 40373 Spend,Neighbourhoods,REMADE SOUTH EAST,,Micro,,7600006085,,Revenue Grant To Be Paid,,Revenue Grant To Be Paid,ME19 6BJ,534.88,Yes
Communities & Local Government,DCLG,10/09/2013,Work In Progress Pre-Cert 40373 Spend,Neighbourhoods,WSX ENTERPRISE LIMITED,,,,7600006077,,Revenue Grant To Be Paid,,Revenue Grant To Be Paid,PO16 7BJ,"54,984.17",Yes
Communities & Local Government,DCLG,10/09/2013,Work In Progress Pre-Cert 40467 Spend,Neighbourhoods,LEICESTER CITY COUNCIL,,Large,,2300002049,,FAO Barry Pritchard. In respect of expenditure dee,,Repayment of ERDF grant on the Rail Station Gateway Enhancement project,LE1 6ZG,"-3,221.38",Yes
Communities & Local Government,DCLG,10/09/2013,Work In Progress Pre-Cert 40467 Spend,Neighbourhoods,MILLFIELDS COMMUNITY ECONOMIC DEV T,Yes,,,7600006078,,Capital Grant To Be Paid,,Capital Grant To Be Paid,PL1 3HQ,"156,914.18",Yes
Communities & Local Government,DCLG,10/09/2013,Work In Progress Pre-Cert 40467 Spend,Neighbourhoods,MILLFIELDS COMMUNITY ECONOMIC DEV T,Yes,,,7600006081,,Capital Grant To Be Paid,,Capital Grant To Be Paid,PL1 3HQ,"15,810.04",Yes
Communities & Local Government,DCLG,10/09/2013,Work In Progress Pre-Cert 40467 Spend,Neighbourhoods,SUB10 SYSTEMS LTD,,Small,,7600005212,,Capital Grant To Be Paid,,Capital Grant To Be Paid,TQ10 3RZ,"14,012.41",Yes
Communities & Local Government,DCLG,11/09/2013,Agency Staff,Finance & Corporate Services,ALLEN LANE FINANCIAL RECRUITMENT,,Medium,Yes,5106196980,Contingent Labour,,Interim Manager (Qualified Accountant),Interim Manager (Qualified Accountant),,"3,796.08",
Communities & Local Government,DCLG,11/09/2013,Agency Staff,Finance & Corporate Services,CAPITA RESOURCING LTD,,Large,,5106196922,Contingent Labour,,Interim Manager (IAS),Interim Manager (IAS),SL6 1DP,871.20,
Communities & Local Government,DCLG,11/09/2013,Agency Staff,Finance & Corporate Services,CAPITA RESOURCING LTD,,Large,,5106196928,Contingent Labour,,Extension (1),Extension (1),SL6 1DP,"3,446.58",
Communities & Local Government,DCLG,11/09/2013,Agency Staff,Finance & Corporate Services,CAPITA RESOURCING LTD,,Large,,5106196930,Contingent Labour,,CPD 0492030 Capita MSP,CPD 0492030 Capita MSP,SL6 1DP,"1,593.76",
Communities & Local Government,DCLG,11/09/2013,Agency Staff,Finance & Corporate Services,CAPITA RESOURCING LTD,,Large,,5106196935,Contingent Labour,,Interim Manager,Interim Manager,SL6 1DP,"5,151.60",
Communities & Local Government,DCLG,11/09/2013,Agency Staff,Finance & Corporate Services,CAPITA RESOURCING LTD,,Large,,5106196943,Contingent Labour,,Extension of Interim Mgr,Extension of Interim Mgr,SL6 1DP,"9,900.00",
Communities & Local Government,DCLG,11/09/2013,Agency Staff,Finance & Corporate Services,CAPITA RESOURCING LTD,,Large,,5106196945,Contingent Labour,,Interim Manager - Ext 01,Interim Manager - Ext 01,SL6 1DP,"2,235.60",
Communities & Local Government,DCLG,11/09/2013,Agency Staff,Finance & Corporate Services,MANPOWER UK LTD,,Large,,5106196900,Contingent Labour,,+12 weeks Higher Rate,+12 weeks Higher Rate,UB8 1AB,382.28,
Communities & Local Government,DCLG,11/09/2013,Agency Staff,Localism,CAPITA RESOURCING LTD,,Large,,5106196934,Contingent Labour,,Interim Manager (Ext 01),Interim Manager (Ext 01),SL6 1DP,"2,995.32",
Communities & Local Government,DCLG,11/09/2013,Agency Staff,Localism,CAPITA RESOURCING LTD,,Large,,5106196938,Contingent Labour,,Interim Manager (Ext 01),Interim Manager (Ext 01),SL6 1DP,"2,868.78",
Communities & Local Government,DCLG,11/09/2013,Agency Staff,Neighbourhoods,CAPITA RESOURCING LTD,,Large,,5106196923,Contingent Labour,,Expenses,Expenses,SL6 1DP,78.62,
Communities & Local Government,DCLG,11/09/2013,Agency Staff,Neighbourhoods,CAPITA RESOURCING LTD,,Large,,5106196923,Contingent Labour,,Interim Manager,Interim Manager,SL6 1DP,"1,614.63",
Communities & Local Government,DCLG,11/09/2013,Agency Staff,Neighbourhoods,CAPITA RESOURCING LTD,,Large,,5106196924,Contingent Labour,,Expenses,Expenses,SL6 1DP,116.72,
Communities & Local Government,DCLG,11/09/2013,Agency Staff,Neighbourhoods,CAPITA RESOURCING LTD,,Large,,5106196924,Contingent Labour,,Interim Manager,Interim Manager,SL6 1DP,"1,530.00",
Communities & Local Government,DCLG,11/09/2013,Agency Staff,Neighbourhoods,CAPITA RESOURCING LTD,,Large,,5106196925,Contingent Labour,,Interim Manager,Interim Manager,SL6 1DP,"3,074.00",
Communities & Local Government,DCLG,11/09/2013,Agency Staff,Neighbourhoods,CAPITA RESOURCING LTD,,Large,,5106196926,Contingent Labour,,Expenses,Expenses,SL6 1DP,12.36,
Communities & Local Government,DCLG,11/09/2013,Agency Staff,Neighbourhoods,CAPITA RESOURCING LTD,,Large,,5106196926,Contingent Labour,,Interim Manager,Interim Manager,SL6 1DP,"2,794.50",
Communities & Local Government,DCLG,11/09/2013,Agency Staff,Neighbourhoods,CAPITA RESOURCING LTD,,Large,,5106196927,Contingent Labour,,Expenses,Expenses,SL6 1DP,54.12,
Communities & Local Government,DCLG,11/09/2013,Agency Staff,Neighbourhoods,CAPITA RESOURCING LTD,,Large,,5106196927,Contingent Labour,,Interim Manager,Interim Manager,SL6 1DP,"3,230.50",
Communities & Local Government,DCLG,11/09/2013,Agency Staff,Neighbourhoods,CAPITA RESOURCING LTD,,Large,,5106196932,Contingent Labour,,Interim Manager,Interim Manager,SL6 1DP,621.00,
Communities & Local Government,DCLG,11/09/2013,Agency Staff,Neighbourhoods,CAPITA RESOURCING LTD,,Large,,5106196937,Contingent Labour,,Interim Manager,Interim Manager,SL6 1DP,"1,900.75",
Communities & Local Government,DCLG,11/09/2013,Agency Staff,Neighbourhoods,CAPITA RESOURCING LTD,,Large,,5106196941,Contingent Labour,,Interim Manager,Interim Manager,SL6 1DP,"1,530.00",
Communities & Local Government,DCLG,11/09/2013,Agency Staff,Neighbourhoods,CAPITA RESOURCING LTD,,Large,,5106196944,Contingent Labour,,Interim Manager,Interim Manager,SL6 1DP,"1,856.45",
Communities & Local Government,DCLG,11/09/2013,Central Share,Localism,OFFICE OF THE PAYMASTER GENERAL (NN,,,,2100234213,,BRR: Central Share Receipts - Sept 2013,,BRR: Central Share Receipts - Sept 2013,RH10 1UH,"1,140,350,921.00",
Communities & Local Government,DCLG,11/09/2013,Courier Services,Finance & Corporate Services,INTERSERVE (FACILITIES MANAGEMENT),,Large,,5106196985,Post & Courier,,DfECC/0009 Pitney Bowes,DfECC/0009 Pitney Bowes,BS32 4NH,443.75,
Communities & Local Government,DCLG,11/09/2013,Courier Services,Finance & Corporate Services,INTERSERVE (FACILITIES MANAGEMENT),,Large,,5106196985,Post & Courier,,DfECC/0028 Franking Machine,DfECC/0028 Franking Machine,BS32 4NH,370.57,
Communities & Local Government,DCLG,11/09/2013,Courier Services,Finance & Corporate Services,INTERSERVE (FACILITIES MANAGEMENT),,Large,,5106196985,Post & Courier,,DfECC/0005 Pitney Bowes,DfECC/0005 Pitney Bowes,BS32 4NH,370.57,
Communities & Local Government,DCLG,11/09/2013,Domestic Services,Finance & Corporate Services,AMEY COMMUNITY LTD,,Large,,5106196955,Cleaning,,2013-14 Lateral Cleaning,2013-14 Lateral Cleaning,OX4 4DQ,"4,690.94",
Communities & Local Government,DCLG,11/09/2013,Domestic Services,Finance & Corporate Services,AMEY COMMUNITY LTD,,Large,,5106196955,Cleaning,,2013-14 Lateral General Waste Provision,2013-14 Lateral General Waste Provision,OX4 4DQ,631.27,
Communities & Local Government,DCLG,11/09/2013,Electricity,Finance & Corporate Services,EDF ENERGY 1 LIMITED,,Large,,5106196907,Energy,,EoE Waterbeach Electricity 2013-14,EoE Waterbeach Electricity 2013-14,PL3 5XQ,"2,962.66",
Communities & Local Government,DCLG,11/09/2013,Electricity,Finance & Corporate Services,WESTERN POWER DISTRIBUTION,,Large,,5106196942,Energy,,SW RCC Meter Charges 2013-14,SW RCC Meter Charges 2013-14,PL4 0YU,432.00,
Communities & Local Government,DCLG,11/09/2013,Facilities Management (ISD use only),Finance & Corporate Services,AMEY COMMUNITY LTD,,Large,,5106196955,Building Management,,2013-14 Lateral Asset & Prop Management,2013-14 Lateral Asset & Prop Management,OX4 4DQ,181.73,
Communities & Local Government,DCLG,11/09/2013,Facilities Management (ISD use only),Finance & Corporate Services,AMEY COMMUNITY LTD,,Large,,5106196955,Building Management,,2013-14 Lateral Estate Service,2013-14 Lateral Estate Service,OX4 4DQ,"1,927.81",
Communities & Local Government,DCLG,11/09/2013,Facilities Management (ISD use only),Finance & Corporate Services,AMEY COMMUNITY LTD,,Large,,5106196955,Building Management,,2013-14 Lateral General Requirements,2013-14 Lateral General Requirements,OX4 4DQ,"4,790.84",
Communities & Local Government,DCLG,11/09/2013,Facilities Management (ISD use only),Finance & Corporate Services,AMEY COMMUNITY LTD,,Large,,5106196955,Building Management,,2013-14 Lateral Helpdesk,2013-14 Lateral Helpdesk,OX4 4DQ,823.62,
Communities & Local Government,DCLG,11/09/2013,Facilities Management (ISD use only),Finance & Corporate Services,AMEY COMMUNITY LTD,,Large,,5106196955,Building Management,,2013-14 Lateral Porterage Services,2013-14 Lateral Porterage Services,OX4 4DQ,24.44,
Communities & Local Government,DCLG,11/09/2013,Facilities Management (ISD use only),Finance & Corporate Services,AMEY COMMUNITY LTD,,Large,,5106196955,Building Management,,2013-14 Lateral X-Ray devices,2013-14 Lateral X-Ray devices,OX4 4DQ,54.20,
Communities & Local Government,DCLG,11/09/2013,Facilities Management (ISD use only),Finance & Corporate Services,INTERSERVE (FACILITIES MANAGEMENT),,Large,,5106196985,Building Management,, DfECC/0055 H & S Admin - E/H,DfECC/0055 H & S Admin - E/H,BS32 4NH,508.04,
Communities & Local Government,DCLG,11/09/2013,Facilities Management (ISD use only),Finance & Corporate Services,INTERSERVE (FACILITIES MANAGEMENT),,Large,,5106196985,Building Management,,DfECC/0006 RC Labour,DfECC/0006 RC Labour,BS32 4NH,"4,133.87",
Communities & Local Government,DCLG,11/09/2013,Facilities Management (ISD use only),Finance & Corporate Services,INTERSERVE (FACILITIES MANAGEMENT),,Large,,5106196985,Building Management,,DfECC/0036 EH Courier Service,DfECC/0036 EH Courier Service,BS32 4NH,"2,430.63",
Communities & Local Government,DCLG,11/09/2013,Facilities Management (ISD use only),Finance & Corporate Services,INTERSERVE (FACILITIES MANAGEMENT),,Large,,5106196985,Building Management,,DfECC/0038 Customer Relationship Manager,DfECC/0038 Customer Relationship Manager,BS32 4NH,"2,286.28",
Communities & Local Government,DCLG,11/09/2013,Facilities Management (ISD use only),Finance & Corporate Services,INTERSERVE (FACILITIES MANAGEMENT),,Large,,5106196985,Building Management,,DfeCC/0045 IB TUPE E/H,DfeCC/0045 IB TUPE E/H,BS32 4NH,887.00,
Communities & Local Government,DCLG,11/09/2013,Facilities Management (ISD use only),Finance & Corporate Services,INTERSERVE (FACILITIES MANAGEMENT),,Large,,5106196985,Building Management,, DfECC/0042 Customer Services Manag,DfECC/0042 Customer Services Manag,BS32 4NH,"3,552.75",
Communities & Local Government,DCLG,11/09/2013,Facilities Management (ISD use only),Finance & Corporate Services,INTERSERVE (FACILITIES MANAGEMENT),,Large,,5106196985,Building Management,, DfECC/0055 H & S Admin - Hemel,DfECC/0055 H & S Admin - Hemel,BS32 4NH,40.11,
Communities & Local Government,DCLG,11/09/2013,Facilities Management (ISD use only),Finance & Corporate Services,INTERSERVE (FACILITIES MANAGEMENT),,Large,,5106196985,Building Management,,DfECC/0045 IB TUPE Hemel Hemp,DfECC/0045 IB TUPE Hemel Hemp,BS32 4NH,70.03,
Communities & Local Government,DCLG,11/09/2013,Facilities Management (ISD use only),Finance & Corporate Services,INTERSERVE (FACILITIES MANAGEMENT),,Large,,5106196985,Building Management,, DfECC/0045 IB TUPE Bridge House,DfECC/0045 IB TUPE Bridge House,BS32 4NH,138.32,
Communities & Local Government,DCLG,11/09/2013,Facilities Management (ISD use only),Finance & Corporate Services,INTERSERVE (FACILITIES MANAGEMENT),,Large,,5106196985,Building Management,,DfECC/0055 H & S Admin - Bridge HS,DfECC/0055 H & S Admin - Bridge HS,BS32 4NH,79.23,
Communities & Local Government,DCLG,11/09/2013,Facilities Management (ISD use only),Finance & Corporate Services,INTERSERVE (FACILITIES MANAGEMENT),,Large,,5106196985,Building Management,, DfECC/0045 IB TUPE CityGate,DfECC/0045 IB TUPE CityGate,BS32 4NH,235.03,
Communities & Local Government,DCLG,11/09/2013,Facilities Management (ISD use only),Finance & Corporate Services,INTERSERVE (FACILITIES MANAGEMENT),,Large,,5106196985,Building Management,,DfECC/0055 H & S Admin - CityGate,DfECC/0055 H & S Admin - CityGate,BS32 4NH,134.62,
Communities & Local Government,DCLG,11/09/2013,Facilities Management (ISD use only),Finance & Corporate Services,INTERSERVE (FACILITIES MANAGEMENT),,Large,,5106196985,Building Management,, DfECC/0045 IB TUPE Queen St,DfECC/0045 IB TUPE Queen St,BS32 4NH,127.33,
Communities & Local Government,DCLG,11/09/2013,Facilities Management (ISD use only),Finance & Corporate Services,INTERSERVE (FACILITIES MANAGEMENT),,Large,,5106196985,Building Management,, DfECC/0055 H & S Admin - Queens St,DfECC/0055 H & S Admin - Queens St,BS32 4NH,72.93,
Communities & Local Government,DCLG,11/09/2013,Facilities Management (ISD use only),Finance & Corporate Services,INTERSERVE (FACILITIES MANAGEMENT),,Large,,5106196985,Building Management,, DfECC/0055 H & S Admin - St PP,DfECC/0055 H & S Admin - St PP,BS32 4NH,133.05,
Communities & Local Government,DCLG,11/09/2013,Facilities Management (ISD use only),Finance & Corporate Services,INTERSERVE (FACILITIES MANAGEMENT),,Large,,5106196985,Building Management,,DfECC/0045 IB TUPE St PP,DfECC/0045 IB TUPE St PP,BS32 4NH,232.30,
Communities & Local Government,DCLG,11/09/2013,Facilities Management (ISD use only),Finance & Corporate Services,INTERSERVE (FACILITIES MANAGEMENT),,Large,,5106196985,Building Management,, DfECC/0055 H & S Admin - Paradise,DfECC/0055 H & S Admin - Paradise,BS32 4NH,76.49,
Communities & Local Government,DCLG,11/09/2013,Facilities Management (ISD use only),Finance & Corporate Services,INTERSERVE (FACILITIES MANAGEMENT),,Large,,5106196985,Building Management,,DfECC/0045 IB TUPE Paradise Cir,DfECC/0045 IB TUPE Paradise Cir,BS32 4NH,133.54,
Communities & Local Government,DCLG,11/09/2013,Facilities Management (ISD use only),Finance & Corporate Services,INTERSERVE (FACILITIES MANAGEMENT),,Large,,5106196985,Building Management,,DfECC/0056 on-call for Cobourg Hou,DfECC/0056 on-call for Cobourg Hou,BS32 4NH,18.38,
Communities & Local Government,DCLG,11/09/2013,Fixed Maintenance,Finance & Corporate Services,AMEY COMMUNITY LTD,,Large,,5106196955,Environmental Services,,2013-14 Lateral Grounds &Gardens,2013-14 Lateral Grounds &Gardens,OX4 4DQ,177.48,
Communities & Local Government,DCLG,11/09/2013,Fixed Maintenance,Finance & Corporate Services,INTERSERVE (FACILITIES MANAGEMENT),,Large,,5106196985,Construction Service Providers,,DfECC/0011 Semi Comp Maint - Eland House,DfECC/0011 Semi Comp Maint - Eland House,BS32 4NH,"1,619.08",
Communities & Local Government,DCLG,11/09/2013,Fixed Maintenance,Finance & Corporate Services,INTERSERVE (FACILITIES MANAGEMENT),,Large,,5106196985,Construction Service Providers,,DfECC/0011Semi Comp Maint - Hemel,DfECC/0011Semi Comp Maint - Hemel,BS32 4NH,220.48,
Communities & Local Government,DCLG,11/09/2013,Fixed Maintenance,Finance & Corporate Services,INTERSERVE (FACILITIES MANAGEMENT),,Large,,5106196985,Construction Service Providers,,DfECC/0011Semi Comp Maint - Bridge House,DfECC/0011Semi Comp Maint - Bridge House,BS32 4NH,205.16,
Communities & Local Government,DCLG,11/09/2013,Fixed Maintenance,Finance & Corporate Services,INTERSERVE (FACILITIES MANAGEMENT),,Large,,5106196985,Construction Service Providers,,DfECC/0011Semi Comp Maint - Citygate,DfECC/0011Semi Comp Maint - Citygate,BS32 4NH,147.47,
Communities & Local Government,DCLG,11/09/2013,Fixed Maintenance,Finance & Corporate Services,INTERSERVE (FACILITIES MANAGEMENT),,Large,,5106196985,Construction Service Providers,,DfECC/0011Semi Comp Maint - Queen Street,DfECC/0011Semi Comp Maint - Queen Street,BS32 4NH,268.96,
Communities & Local Government,DCLG,11/09/2013,Fixed Maintenance,Finance & Corporate Services,INTERSERVE (FACILITIES MANAGEMENT),,Large,,5106196985,Construction Service Providers,,DfECC/0011Semi Comp Maint - 5 SPP,DfECC/0011Semi Comp Maint - 5 SPP,BS32 4NH,444.09,
Communities & Local Government,DCLG,11/09/2013,Fixed Maintenance,Finance & Corporate Services,INTERSERVE (FACILITIES MANAGEMENT),,Large,,5106196985,Construction Service Providers,,DfECC/0011Semi Comp Maint - Paradise Cir,DfECC/0011Semi Comp Maint - Paradise Cir,BS32 4NH,320.77,
Communities & Local Government,DCLG,11/09/2013,IT - Service Contracts,Finance & Corporate Services,STERIA LIMITED,,Large,,5106196921,Managed / Outsourced Services,,SQ149 - DCLG MFD Equitrac Licence Renewa,Multi Functional Device Equitrac Licence Renewal,M14 0WN,"10,815.38",
Communities & Local Government,DCLG,11/09/2013,IT - Software Maintenance,Finance & Corporate Services,I B M UK LTD,,Large,,5106196974,Managed / Outsourced Services,,12mths support for Cognos licences above,12mths support for Cognos licences above,PO6 3AE,"23,632.06",
Communities & Local Government,DCLG,11/09/2013,IT - Software Maintenance,Finance & Corporate Services,READSOFT LTD,,Medium,,5106196975,Managed / Outsourced Services,,Readsoft Invoices upgrade,Readsoft Invoices upgrade,MK9 1BZ,"1,440.00",
Communities & Local Government,DCLG,11/09/2013,NNDR Central List Receipts,Localism,OFFICE OF THE PAYMASTER GENERAL (NN,,,,2100234213,,NNDR Central List Receipts - Sept 2013,,NNDR Central List Receipts - Sept 2013,RH10 1UH,"124,066,347.00",Yes
Communities & Local Government,DCLG,11/09/2013,Office Supplies,Neighbourhoods,BANNER BUSINESS SUPPLIES LTD,,Large,,5106196812,Office Supplies,,DELWEEKLY Banner A4 Recycled Copier Pape,DELWEEKLY Banner A4 Recycled Copier Pape,NR3 1PD,263.28,
Communities & Local Government,DCLG,11/09/2013,Office Supplies,Neighbourhoods,BANNER BUSINESS SUPPLIES LTD,,Large,,5106196812,Office Supplies,,DELWEEKLY Banner Brilliant Page Marker 3,DELWEEKLY Banner Brilliant Page Marker 3,NR3 1PD,4.68,
Communities & Local Government,DCLG,11/09/2013,Photocopying,Finance & Corporate Services,INTERSERVE (FACILITIES MANAGEMENT),,Large,,5106196985,Operational Services,,DfECC/0041 Provision of Repro Equ,DfECC/0041 Provision of Repro Equ,BS32 4NH,"9,040.17",
Communities & Local Government,DCLG,11/09/2013,Physical Storage,Finance & Corporate Services,IRON MOUNTAIN (UK) LIMITED,,Large,,5106196918,Warehousing and Storage,,Offsite storage - tapes,Offsite storage - tapes,EH54 7DF,388.54,
Communities & Local Government,DCLG,11/09/2013,Printing,Finance & Corporate Services,STATIONERY OFFICE LTD,,Large,,5106196966,Printing Services,,Non-Vatable printing services,Non-Vatable printing services,NR3 1PD,160.00,
Communities & Local Government,DCLG,11/09/2013,Printing,Finance & Corporate Services,STATIONERY OFFICE LTD,,Large,,5106196966,Printing Services,,VAT chargeable printing services,VAT chargeable printing services,NR3 1PD,130.00,
Communities & Local Government,DCLG,11/09/2013,Printing,Finance & Corporate Services,STATIONERY OFFICE LTD,,Large,,5106196970,Printing Services,,Non-Vatable printing services,Non-Vatable printing services,NR3 1PD,"1,095.43",
Communities & Local Government,DCLG,11/09/2013,Security,Finance & Corporate Services,AMEY COMMUNITY LTD,,Large,,5106196955,Security,,2013-14 Lateral Reception Services,2013-14 Lateral Reception Services,OX4 4DQ,"1,095.69",
Communities & Local Government,DCLG,11/09/2013,Security,Finance & Corporate Services,AMEY COMMUNITY LTD,,Large,,5106196955,Security,,2013-14 Lateral Security Services,2013-14 Lateral Security Services,OX4 4DQ,"1,608.99",
Communities & Local Government,DCLG,11/09/2013,Security,Finance & Corporate Services,INTERSERVE (FACILITIES MANAGEMENT),,Large,,5106196985,Security,,DFECC/0053 Security - Natural Eng TQH,DFECC/0053 Security - Natural Eng TQH,BS32 4NH,"19,653.33",
Communities & Local Government,DCLG,11/09/2013,Services provided by other Govt Orgs,Finance & Corporate Services,DEPT FOR EDUCATION,,Public Bodies,,5106196860,Business and Commercial Services,,DCLG Security Vetting 2013-14,DCLG Security Vetting 2013-14,CF14 3UW,"4,555.92",Yes
Communities & Local Government,DCLG,11/09/2013,Software Licences,Finance & Corporate Services,I B M UK LTD,,Large,,5106196974,Software,,CognosBusinessIntelligence Recipient lic,CognosBusinessIntelligence Recipient lic,PO6 3AE,"45,319.20",
Communities & Local Government,DCLG,11/09/2013,Software Licences,Finance & Corporate Services,I B M UK LTD,,Large,,5106196974,Software,,CognosBusinessIntelligenceAdmin licence,CognosBusinessIntelligenceAdmin licence,PO6 3AE,"11,670.55",
Communities & Local Government,DCLG,11/09/2013,Software Licences,Finance & Corporate Services,I B M UK LTD,,Large,,5106196974,Software,,CognosBusinessIntelligenceConsumer lic,CognosBusinessIntelligenceConsumer lic,PO6 3AE,"37,578.19",
Communities & Local Government,DCLG,11/09/2013,Steady State Service Provision,Finance & Corporate Services,ALLPAY LIMITED,,Medium,,5106196964,Business Process Outsourcing Services,,DC/DC Transaction Charges,DC/DC Transaction Charges,HR1 3SE,384.10,
Communities & Local Government,DCLG,11/09/2013,Steady State Service Provision,Finance & Corporate Services,ALLPAY LIMITED,,Medium,,5106196964,Business Process Outsourcing Services,,Monthly Management Fee Payments,Monthly Management Fee Payments,HR1 3SE,500.00,
Communities & Local Government,DCLG,11/09/2013,Telephone call costs,Finance & Corporate Services,VERIZON UK LTD,,Large,,5106196977,Managed / Outsourced Services,GRN 5000671336 PMARTIN,20% Verizon charges for RAS services,20% Verizon charges for RAS services,RG2 6DA,373.15,
Communities & Local Government,DCLG,11/09/2013,Transitional Receipts,Localism,OFFICE OF THE PAYMASTER GENERAL (NN,,,,2100234213,,BRR: Transitional Protection Receipts - Sept 2013,,BRR: Transitional Protection Receipts - Sept 2013,RH10 1UH,"2,434,395.00",
Communities & Local Government,DCLG,11/09/2013,Variable Maintenance < 15k,Finance & Corporate Services,INTERSERVE (FACILITIES MANAGEMENT),,Large,,5106196976,Construction Service Providers,,Eland House Pass Through Costs,Eland House Pass Through Costs,BS32 4NH,510.48,
Communities & Local Government,DCLG,11/09/2013,Variable Maintenance < 15k,Finance & Corporate Services,INTERSERVE (FACILITIES MANAGEMENT),,Large,,5106196976,Construction Service Providers,,Eland House Variable Maintenance Costs,Eland House Variable Maintenance Costs,BS32 4NH,"1,190.36",
Communities & Local Government,DCLG,11/09/2013,Variable Maintenance < 15k,Finance & Corporate Services,INTERSERVE (FACILITIES MANAGEMENT),,Large,,5106196976,Construction Service Providers,,Temple Quay Pass Through Costs,Temple Quay Pass Through Costs,BS32 4NH,466.36,
Communities & Local Government,DCLG,11/09/2013,Variable Maintenance < 15k,Finance & Corporate Services,INTERSERVE (FACILITIES MANAGEMENT),,Large,,5106196976,Construction Service Providers,,Temple Quay Variable Maintenance Costs,Temple Quay Variable Maintenance Costs,BS32 4NH,"2,196.76",
Communities & Local Government,DCLG,11/09/2013,Variable Maintenance < 15k,Finance & Corporate Services,INTERSERVE (FACILITIES MANAGEMENT),,Large,,5106196976,Construction Service Providers,,Hemel Variable Maintenance Costs,Hemel Variable Maintenance Costs,BS32 4NH,"3,945.90",
Communities & Local Government,DCLG,11/09/2013,Variable Maintenance < 15k,Finance & Corporate Services,INTERSERVE (FACILITIES MANAGEMENT),,Large,,5106196976,Construction Service Providers,,Bridge House Pass Through Costs,Bridge House Pass Through Costs,BS32 4NH,264.75,
Communities & Local Government,DCLG,11/09/2013,Variable Maintenance < 15k,Finance & Corporate Services,INTERSERVE (FACILITIES MANAGEMENT),,Large,,5106196976,Construction Service Providers,,Citygate Pass Through Costs,Citygate Pass Through Costs,BS32 4NH,41.00,
Communities & Local Government,DCLG,11/09/2013,Variable Maintenance < 15k,Finance & Corporate Services,INTERSERVE (FACILITIES MANAGEMENT),,Large,,5106196976,Construction Service Providers,,Citygate Variable Maintenance Costs,Citygate Variable Maintenance Costs,BS32 4NH,951.58,
Communities & Local Government,DCLG,11/09/2013,Variable Maintenance < 15k,Finance & Corporate Services,INTERSERVE (FACILITIES MANAGEMENT),,Large,,5106196976,Construction Service Providers,,Queen Street Variable Maintenance Costs,Queen Street Variable Maintenance Costs,BS32 4NH,"1,288.04",
Communities & Local Government,DCLG,11/09/2013,Variable Maintenance < 15k,Finance & Corporate Services,INTERSERVE (FACILITIES MANAGEMENT),,Large,,5106196976,Construction Service Providers,,5 SPP  Variable Maintenance Costs,5 SPP  Variable Maintenance Costs,BS32 4NH,"27,329.70",
Communities & Local Government,DCLG,11/09/2013,Vehicle hire,Finance & Corporate Services,GOVERNMENT CAR & DESPATCH AGENCY,,Public Bodies,,5106196699,Vehicle Hire and Lease,,Ministerial Cars,Ministerial Cars,SW8 5AX,281.25,
Communities & Local Government,DCLG,11/09/2013,Waste Disposal and pest control,Finance & Corporate Services,AMEY COMMUNITY LTD,,Large,,5106196955,Environmental Services,,2013-14 Lateral Pest Control Services,2013-14 Lateral Pest Control Services,OX4 4DQ,44.64,
Communities & Local Government,DCLG,11/09/2013,Waste Disposal and pest control,Finance & Corporate Services,AMEY COMMUNITY LTD,,Large,,5106196955,Waste Management Services,,2013-14 Lateral Waste Management,2013-14 Lateral Waste Management,OX4 4DQ,480.36,
Communities & Local Government,DCLG,11/09/2013,Work In Progress Pre-Cert 40373 Spend,Neighbourhoods,UNIVERSITY OF THE WEST OF ENGLAND,,,,7600006086,,Revenue Grant To Be Paid,,Revenue Grant To Be Paid,BS16 1QY,"100,743.16",Yes
Communities & Local Government,DCLG,12/09/2013,Agency Staff,Finance & Corporate Services,REED EMPLOYMENT SERVICES,,Large,,5106196996,Contingent Labour,,PA admin,PA admin,SW20 0BA,482.66,
Communities & Local Government,DCLG,12/09/2013,Agency Staff,Neighbourhoods,LOCAL PARTNERSHIPS LLP,,,,5106197021,Contingent Labour,,Extension to Commercial Advisor,Extension to Commercial Advisor,SW1P 3HZ,"13,981.44",
Communities & Local Government,DCLG,12/09/2013,Agency Staff,Neighbourhoods,REED EMPLOYMENT SERVICES,,Large,,5106197007,Contingent Labour,,Extension of Support- Rate Adjustment,Extension of Support- Rate Adjustment,SW20 0BA,"1,325.44",
Communities & Local Government,DCLG,12/09/2013,Agency Staff,Neighbourhoods,REED EMPLOYMENT SERVICES,,Large,,5106197013,Contingent Labour,,POLICY SUPPORT FOR HGAH,POLICY SUPPORT FOR HGAH,SW20 0BA,817.73,
Communities & Local Government,DCLG,12/09/2013,Current (non AEF) Grants to Local Authorities,Localism,BIRMINGHAM CITY COUNCIL,,Public Bodies,,2100234283,,Supporting Implementation of NCBS,,Supporting Implementation of NCBS,B1 1BB,"35,000.00",Yes
Communities & Local Government,DCLG,12/09/2013,Current (non AEF) Grants to Local Authorities,Localism,RB KINGSTON UPON THAMES,,,,2100234284,,Supporting Implementation of NCBS,,Supporting Implementation of NCBS,KT1 1EU,"25,000.00",Yes
Communities & Local Government,DCLG,12/09/2013,Current (non AEF) Grants to Local Authorities,Localism,TUNBRIDGE WELLS BC,,,,2100234285,,Supporting Implementation of NCBS,,Supporting Implementation of NCBS,TN1 1RS,"50,000.00",Yes
Communities & Local Government,DCLG,12/09/2013,Current Grants to Non Profit Bodies,Neighbourhoods,ASSOCIATION TOWN CENTRE MANAGEMENT,,Micro,,2100234287,,Any queries please contact Sally Haslam at DCLG on,,ATCM support management for July 2013,SW1H 9BT,"57,460.42",Yes
Communities & Local Government,DCLG,12/09/2013,Current Grants to Non Profit Bodies,Neighbourhoods,ASSOCIATION TOWN CENTRE MANAGEMENT,,Micro,,2100234288,,June 2013 Grant Payment  - Support to Town Teams,,June 2013 Grant Payment  - Support to Town Teams,SW1H 9BT,"31,631.52",Yes
Communities & Local Government,DCLG,12/09/2013,Electricity,Finance & Corporate Services,EDF ENERGY 1 LIMITED,,Large,,5106197016,Energy,,Eland House Electricity 2013-14,Eland House Electricity 2013-14,PL3 5XQ,"46,877.22",
Communities & Local Government,DCLG,12/09/2013,Electricity,Finance & Corporate Services,EDF ENERGY 1 LIMITED,,Large,,5106197019,Energy,,Queen St Electricty 2013-14,Queen St Electricty 2013-14,PL3 5XQ,"2,705.82",
Communities & Local Government,DCLG,12/09/2013,Electricity,Finance & Corporate Services,EDF ENERGY 1 LIMITED,,Large,,5106197020,Energy,,St Philips Place Electricity 2013-14,St Philips Place Electricity 2013-14,PL3 5XQ,"11,892.25",
Communities & Local Government,DCLG,12/09/2013,"IT - PC, Network & Hardware",Neighbourhoods,REED SPECIALIST RECRUITMENT LTD,,Large,,5106197006,Contingent Labour,,Help to Buy Temp,Help to Buy Temp,NN1 1UE,682.56,
Communities & Local Government,DCLG,12/09/2013,"IT - PC, Network & Hardware",Neighbourhoods,REED SPECIALIST RECRUITMENT LTD,,Large,,5106197009,Contingent Labour,,Help to Buy Temp,Help to Buy Temp,NN1 1UE,466.42,
Communities & Local Government,DCLG,12/09/2013,IT - Software Maintenance,Finance & Corporate Services,KAIZEN ASSOCIATES LTD,,Micro,,5106196997,Managed / Outsourced Services,,SAP Application Support,SAP Application Support,SE1 6SW,"6,629.86",
Communities & Local Government,DCLG,12/09/2013,Legal Fees,Finance & Corporate Services,TREASURY SOLICITORS DEPT,,Public Bodies,,5106196893,Legal,GRN 5000671376 PMARTIN,Tsol Payments (20% VAT),Tsol Payments (20% VAT),WC2B 4TS,"118,707.53",
Communities & Local Government,DCLG,12/09/2013,Legal Fees,Finance & Corporate Services,TREASURY SOLICITORS DEPT,,Public Bodies,,5106196893,Legal,GRN 5000671376 PMARTIN,Tsol Payments with 0%VAT rate,Tsol Payments with 0%VAT rate,WC2B 4TS,"2,259.70",
Communities & Local Government,DCLG,12/09/2013,Office Supplies,Finance & Corporate Services,BANNER BUSINESS SUPPLIES LTD,,Large,,5106197001,Office Supplies,,DELWEEKLY Banner A4 Recycled Copier Pape,DELWEEKLY Banner A4 Recycled Copier Pape,NR3 1PD,263.28,
Communities & Local Government,DCLG,12/09/2013,Office Supplies,Finance & Corporate Services,BANNER BUSINESS SUPPLIES LTD,,Large,,5106197001,Office Supplies,,DELWEEKLY Banner Easy Tear Adhesive Tape,DELWEEKLY Banner Easy Tear Adhesive Tape,NR3 1PD,1.68,
Communities & Local Government,DCLG,12/09/2013,Office Supplies,Finance & Corporate Services,BANNER BUSINESS SUPPLIES LTD,,Large,,5106197001,Office Supplies,,DELWEEKLY Banner Paper On Board A4 2 Rin,DELWEEKLY Banner Paper On Board A4 2 Rin,NR3 1PD,11.93,
Communities & Local Government,DCLG,12/09/2013,Office Supplies,Localism,BANNER BUSINESS SUPPLIES LTD,,Large,,5106196998,Office Supplies,,DELWEEKLY Banner A4 Recycled Copier Pape,DELWEEKLY Banner A4 Recycled Copier Pape,NR3 1PD,394.92,
Communities & Local Government,DCLG,12/09/2013,Office Supplies,Neighbourhoods,BANNER BUSINESS SUPPLIES LTD,,Large,,5106197000,Office Supplies,,DELWEEKLY Banner A4 Recycled Copier Pape,DELWEEKLY Banner A4 Recycled Copier Pape,NR3 1PD,157.97,
Communities & Local Government,DCLG,12/09/2013,Office Supplies,Neighbourhoods,BANNER BUSINESS SUPPLIES LTD,,Large,,5106197000,Office Supplies,,DELWEEKLY Steinbeis Classic A3 Copier Pa,DELWEEKLY Steinbeis Classic A3 Copier Pa,NR3 1PD,163.08,
Communities & Local Government,DCLG,12/09/2013,Online Database Information Retrieval,Finance & Corporate Services,NEWSBANK INC,,Large,,5106196990,ICT Services,,NewsBank 2013-2014,NewsBank 2013-2014,34103,"9,087.00",
Communities & Local Government,DCLG,12/09/2013,Safety equipment,Localism,BRISTOL CARE,,Medium,,5106196983,Security,GRN 5000671378 PMARTIN,Provision of PPE equipment,Provision of PPE equipment,BS16 5LL,"2,617.20",
Communities & Local Government,DCLG,12/09/2013,Steady State Service Provision,Neighbourhoods,TRIBAL EDUCATION-MANAGEMENT FEES,,Large,,5106197031,Business Process Outsourcing Services,,Year 2 Grant Administration,Year 2 Grant Administration,BS2 8RR,"7,446.00",
Communities & Local Government,DCLG,12/09/2013,Telecoms equipment (non-capitalised),Localism,B T PAYMENT SERVICES LTD,,Large,,5106196565,Telecoms,GRN 5000671349 PMARTIN,SDSL Lines (HH),SDSL Lines (HH),DH98 1BT,"3,573.00",
Communities & Local Government,DCLG,12/09/2013,Transcription,Troubled Families,TYPEOUT,,Medium,,5106196989,,,Transc-Intervention Workers interviews,Transc-Intervention Workers interviews,GU8 6BH,239.40,
Communities & Local Government,DCLG,12/09/2013,Vehicle hire,Finance & Corporate Services,GOVERNMENT CAR & DESPATCH AGENCY,,Public Bodies,,5106196703,Vehicle Hire and Lease,,Ministerial Cars,Ministerial Cars,SW8 5AX,221.25,
Communities & Local Government,DCLG,12/09/2013,Vehicle hire,Finance & Corporate Services,GOVERNMENT CAR & DESPATCH AGENCY,,Public Bodies,,5106197024,Vehicle Hire and Lease,,Car of SOS -Duty Car 2- LT118,Car of SOS -Duty Car 2- LT118,SW8 5AX,"1,599.01",
Communities & Local Government,DCLG,12/09/2013,Water,Finance & Corporate Services,SEVERN TRENT WATER LTD,,Large,,5106197011,Operation of Water Supplies and Distribution,,West Midlands RCC  Water 2013-14,West Midlands RCC  Water 2013-14,CV3 9FJ,607.81,
Communities & Local Government,DCLG,12/09/2013,Work In Progress Pre-Cert 40373 Spend,Neighbourhoods,CORNWALL COLLEGE,,,,7600006095,,Revenue Grant To Be Paid,,Revenue Grant To Be Paid,TR15 3RD,"21,060.88",Yes
Communities & Local Government,DCLG,12/09/2013,Work In Progress Pre-Cert 40373 Spend,Neighbourhoods,GWE BUSINESS WEST LTD,,,,7600006093,,Revenue Grant To Be Paid,,Revenue Grant To Be Paid,BS8 3RA,"93,621.89",Yes
Communities & Local Government,DCLG,12/09/2013,Work In Progress Pre-Cert 40373 Spend,Neighbourhoods,KENT COUNTY COUNCIL,,Large,,7600006088,,Revenue Grant Clawback Offset,,Revenue Grant Clawback Offset,ME14 1XQ,-362.13,Yes
Communities & Local Government,DCLG,12/09/2013,Work In Progress Pre-Cert 40373 Spend,Neighbourhoods,KENT COUNTY COUNCIL,,Large,,7600006088,,Revenue Grant To Be Paid,,Revenue Grant To Be Paid,ME14 1XQ,"20,750.50",Yes
Communities & Local Government,DCLG,12/09/2013,Work In Progress Pre-Cert 40373 Spend,Neighbourhoods,RACE EQUALITY CENTRE,,,,7600006098,,Revenue Grant To Be Paid,,Revenue Grant To Be Paid,LE1 3SH,"18,681.36",Yes
Communities & Local Government,DCLG,12/09/2013,Work In Progress Pre-Cert 40373 Spend,Neighbourhoods,STAFFORDSHIRE & BLACK COUNTRY BIC L,,Small,,7600006091,,Revenue Grant To Be Paid,,Revenue Grant To Be Paid,ST18 0AR,"8,841.79",Yes
Communities & Local Government,DCLG,12/09/2013,Work In Progress Pre-Cert 40373 Spend,Neighbourhoods,STAFFORDSHIRE & BLACK COUNTRY BIC L,,Small,,7600006092,,Revenue Grant To Be Paid,,Revenue Grant To Be Paid,ST18 0AR,"11,788.91",Yes
Communities & Local Government,DCLG,12/09/2013,Work In Progress Pre-Cert 40373 Spend,Neighbourhoods,TORBAY COUNCIL,,,,7600006096,,Revenue Grant To Be Paid,,Revenue Grant To Be Paid,TQ1 3DS,"2,901.48",Yes
Communities & Local Government,DCLG,12/09/2013,Work In Progress Pre-Cert 40373 Spend,Neighbourhoods,UNIVERSITY OF WARWICK,,Large,,7600006087,,Revenue Grant To Be Paid,,Revenue Grant To Be Paid,CV4 8UW,"32,572.33",Yes
Communities & Local Government,DCLG,12/09/2013,Work In Progress Pre-Cert 40373 Spend,Neighbourhoods,UNIVERSITY OF WARWICK,,Large,,7600006089,,Revenue Grant To Be Paid,,Revenue Grant To Be Paid,CV4 8UW,"35,867.26",Yes
Communities & Local Government,DCLG,12/09/2013,Work In Progress Pre-Cert 40373 Spend,Neighbourhoods,UNIVERSITY OF WARWICK,,Large,,7600006094,,Revenue Grant To Be Paid,,Revenue Grant To Be Paid,CV4 8UW,"35,997.22",Yes
Communities & Local Government,DCLG,12/09/2013,Work In Progress Pre-Cert 40373 Spend,Neighbourhoods,UNIVERSITY OF WOLVERHAMPTON,,Large,,7600006090,,Revenue Grant Clawback Offset,,Revenue Grant Clawback Offset,WV1 1SB,"-4,885.07",Yes
Communities & Local Government,DCLG,12/09/2013,Work In Progress Pre-Cert 40373 Spend,Neighbourhoods,UNIVERSITY OF WOLVERHAMPTON,,Large,,7600006090,,Revenue Grant To Be Paid,,Revenue Grant To Be Paid,WV1 1SB,"11,829.22",Yes
Communities & Local Government,DCLG,12/09/2013,Work In Progress Pre-Cert 40373 Spend,Neighbourhoods,WEST OF ENGLAND AEROSPACE FORUM,,,,7600006099,,Revenue Grant Clawback Offset,,Revenue Grant Clawback Offset,BS21 6UP,"-2,259.52",Yes
Communities & Local Government,DCLG,12/09/2013,Work In Progress Pre-Cert 40373 Spend,Neighbourhoods,WEST OF ENGLAND AEROSPACE FORUM,,,,7600006099,,Revenue Grant To Be Paid,,Revenue Grant To Be Paid,BS21 6UP,"62,727.57",Yes
Communities & Local Government,DCLG,12/09/2013,Work In Progress Pre-Cert 40467 Spend,Neighbourhoods,UNIVERSITY OF WARWICK,,Large,,7600006087,,Capital Grant To Be Paid,,Capital Grant To Be Paid,CV4 8UW,"4,998.00",Yes
Communities & Local Government,DCLG,12/09/2013,Work In Progress Pre-Cert 40467 Spend,Neighbourhoods,UNIVERSITY OF WOLVERHAMPTON,,Large,,7600006090,,Capital Grant Clawback Offset,,Capital Grant Clawback Offset,WV1 1SB,"-6,659.96",Yes
Communities & Local Government,DCLG,12/09/2013,Work In Progress Pre-Cert 40467 Spend,Neighbourhoods,WARMSALE LTD,,,,7600006097,,Capital Grant To Be Paid,,Capital Grant To Be Paid,HU14 3JP,"47,863.86",Yes
Communities & Local Government,DCLG,13/09/2013,Accommodation Service Charges,Neighbourhoods,GVA GRIMLEY LTD,,Large,,5106196982,Accommodation Services,,ERDF NW LDU Valuation Services to Dec 13,ERDF NW LDU Valuation Services to Dec 13,B1 2JB,"5,400.00",
Communities & Local Government,DCLG,13/09/2013,Agency Staff,Localism,MANPOWER UK LTD,,Large,,5106197046,Contingent Labour,,3 month extension,3 month extension,UB8 1AB,650.76,
Communities & Local Government,DCLG,13/09/2013,Agency Staff,Neighbourhoods,REED EMPLOYMENT SERVICES,,Large,,5106197048,Contingent Labour,,1 Month Extension,Temporary staff for time limited project,SW20 0BA,948.60,
Communities & Local Government,DCLG,13/09/2013,Agency Staff,Neighbourhoods,REED EMPLOYMENT SERVICES,,Large,,5106197049,Contingent Labour,,1 Month Extension,Temporary staff for time limited project,SW20 0BA,"1,227.60",
Communities & Local Government,DCLG,13/09/2013,Agency Staff,Neighbourhoods,REED EMPLOYMENT SERVICES,,Large,,5106197050,Contingent Labour,,1 Month Extension,Temporary staff for time limited project,SW20 0BA,"1,178.77",
Communities & Local Government,DCLG,13/09/2013,Agency Staff,Neighbourhoods,REED EMPLOYMENT SERVICES,,Large,,5106197051,Contingent Labour,,1 Month Extension,Temporary staff for time limited project,SW20 0BA,"1,213.66",
Communities & Local Government,DCLG,13/09/2013,Agency Staff,Neighbourhoods,REED EMPLOYMENT SERVICES,,Large,,5106197052,Contingent Labour,,RFE 201302-01 Planning Temp E.H.,Temporary staff for time limited project,SW20 0BA,"1,167.77",
Communities & Local Government,DCLG,13/09/2013,Agency Staff,Neighbourhoods,REED EMPLOYMENT SERVICES,,Large,,5106197053,Contingent Labour,,1 Month Extension,Temporary staff for time limited project,SW20 0BA,"1,067.17",
Communities & Local Government,DCLG,13/09/2013,Agency Staff,Neighbourhoods,REED EMPLOYMENT SERVICES,,Large,,5106197054,Contingent Labour,,1 Month Extension,Temporary staff for time limited project,SW20 0BA,"1,192.73",
Communities & Local Government,DCLG,13/09/2013,Agency Staff,Neighbourhoods,REED EMPLOYMENT SERVICES,,Large,,5106197055,Contingent Labour,,1 Month Extension,Temporary staff for time limited project,SW20 0BA,997.43,
Communities & Local Government,DCLG,13/09/2013,Agency Staff,Neighbourhoods,REED EMPLOYMENT SERVICES,,Large,,5106197056,Contingent Labour,,1 Month Extension,Temporary staff for time limited project,SW20 0BA,"1,227.60",
Communities & Local Government,DCLG,13/09/2013,Current Grants to Non Profit Bodies,Localism,POPLAR HARCA LTD,,Medium,,2100234327,,Supporting Implementation of NCBS,,Supporting Implementation of NCBS,E14 0EA,"50,000.00",Yes
Communities & Local Government,DCLG,13/09/2013,Fees,Finance & Corporate Services,MRS S V WELLER,,,,2100234319,Financial,EXPENSES : 26/3 TO 3/7/2013,,EXPENSES : 26/3 TO 3/7/2013,,582.10,
Communities & Local Government,DCLG,13/09/2013,IT - Service Contracts,Finance & Corporate Services,VERIZON UK LTD,,Large,,5106197035,Managed / Outsourced Services,,Financial year 2012/13,Internet lease line for Interform (Data collection system),RG2 6DA,"1,241.18",
Communities & Local Government,DCLG,13/09/2013,IT - Service Contracts,Localism,AIRWAVE SOLUTIONS LTD,,Large,,5106197017,Managed / Outsourced Services,,Phase A England 2013/14,Phase A England 2013/14,SL1 2EJ,"129,098.67",
Communities & Local Government,DCLG,13/09/2013,IT - Service Contracts,Localism,AIRWAVE SOLUTIONS LTD,,Large,,5106197017,Managed / Outsourced Services,,Phase A Wales 2013/14,Phase A Wales 2013/14,SL1 2EJ,"14,738.91",
Communities & Local Government,DCLG,13/09/2013,IT - Service Contracts,Localism,AIRWAVE SOLUTIONS LTD,,Large,,5106197017,Managed / Outsourced Services,,Phase A Scotland 2013/14,Phase A Scotland 2013/14,SL1 2EJ,"33,739.68",
Communities & Local Government,DCLG,13/09/2013,Legal Fees,Finance & Corporate Services,TREASURY SOLICITOR,,Public Bodies,,2100234326,Legal,REFERENCE:  LT92085A/GHO/B5,,REFERENCE:  LT92085A/GHO/B5,WC2B 4TS,"4,228.30",
Communities & Local Government,DCLG,13/09/2013,Management Consultancy,Localism,LOCAL PARTNERSHIPS LLP,,,,5106197094,Consultancy,to correct misposting,Analysis on best practice guidance,Analysis on best practice guidance,SW1P 3HZ,"8,937.00",
Communities & Local Government,DCLG,13/09/2013,Management Consultancy,Neighbourhoods,LOCAL PARTNERSHIPS LLP,,,,2300002054,Consultancy,to correct misposting,Analysis on best practice guidance,Analysis on best practice guidance,SW1P 3HZ,"-8,937.00",
Communities & Local Government,DCLG,13/09/2013,Mobile phone costs,Localism,7E COMMUNICATIONS LTD,,Micro,,5106196933,Telecoms,,"Satellite - Iridium, Inmarsat & Thuraya","Satellite - Iridium, Inmarsat & Thuraya",KT8 2FF,426.83,
Communities & Local Government,DCLG,13/09/2013,Office machinery consumables,Localism,SAT NAV WAREHOUSE LTD,,Micro,,5106197045,Office Supplies,,S2500TMUK Snooper S2500 Truckmate,S2500TMUK Snooper S2500 Truckmate,WA14 5NL,"3,780.92",
Communities & Local Government,DCLG,13/09/2013,Professional services,Finance & Corporate Services,DEPT OF ENERGY & CLIMATE CHANGE,,Public Bodies,,5106197043,Operation of Industrial Facilities,,Carbon Reduction Allowance DCLG,Carbon Reduction Allowance DCLG,SW1A 2AW,"78,540.00",
Communities & Local Government,DCLG,13/09/2013,Professional services,Finance & Corporate Services,DEPT OF ENERGY & CLIMATE CHANGE,,Public Bodies,,5106197047,Operation of Industrial Facilities,,Carbon Reduction Allowance FSC,Carbon Reduction Allowance Fire Service College Residual Estate,SW1A 2AW,"35,352.00",
Communities & Local Government,DCLG,13/09/2013,Professional services,Finance & Corporate Services,GOVT ACTUARYS DEPARTMENT,,Public Bodies,,5106197036,Financial,,GAD contract on Pension Compariosons,Actuarial  Services,EC4A 1AB,"5,254.47",
Communities & Local Government,DCLG,13/09/2013,Professional services,Neighbourhoods,GOVT ACTUARYS DEPARTMENT,,Public Bodies,,5106197036,Financial,,GAD contract on Pension Compariosons,GAD contract on Pension Compariosons,EC4A 1AB,"5,254.46",
Communities & Local Government,DCLG,13/09/2013,Training,Finance & Corporate Services,EAST OF ENGLAND AMBULANCE SERVICE,,Public Bodies,,5106197042,Development and Training,GRN 5000671389 PMARTIN,GFP training Event,GFP training Event,NR6 5NA,370.00,
Communities & Local Government,DCLG,13/09/2013,Training,Localism,FIRE SERVICE COLLEGE LTD,,,,5106196981,Development and Training,,Breathing Apparatus VAT,Breathing Apparatus VAT,GL56 0RG,"28,800.00",
Communities & Local Government,DCLG,13/09/2013,Travel and Subsistence Account,Localism,LOCAL GOVERNMENT ASSOCIATION,,Public Bodies,,5106196845,Travel Management,,Accommodation for Boston USA,Accommodation for Boston USA,SW1P 3HZ,948.79,
Communities & Local Government,DCLG,13/09/2013,Work In Progress Pre-Cert 40373 Spend,Neighbourhoods,CORNWALL COUNCIL,,,,7600006108,,Revenue Grant Clawback Offset,,Revenue Grant Clawback Offset,TR1 3AY,-541.58,Yes
Communities & Local Government,DCLG,13/09/2013,Work In Progress Pre-Cert 40373 Spend,Neighbourhoods,CORNWALL COUNCIL,,,,7600006108,,Revenue Grant To Be Paid,,Revenue Grant To Be Paid,TR1 3AY,"40,569.63",Yes
Communities & Local Government,DCLG,13/09/2013,Work In Progress Pre-Cert 40373 Spend,Neighbourhoods,DERBY CITY COUNCIL,,Large,,7600006109,,Revenue Grant To Be Paid,,Revenue Grant To Be Paid,DE1 2FE,"4,025.09",Yes
Communities & Local Government,DCLG,13/09/2013,Work In Progress Pre-Cert 40373 Spend,Neighbourhoods,LINCONSHIRE COUNTY COUNCIL,,Large,,7600006100,,Revenue Grant To Be Paid,,Revenue Grant To Be Paid,LN1 1YT,"52,882.18",Yes
Communities & Local Government,DCLG,13/09/2013,Work In Progress Pre-Cert 40373 Spend,Neighbourhoods,NOTTINGHAM UNIVERSITY,,Large,,7600006107,,Revenue Grant To Be Paid,,Revenue Grant To Be Paid,NG7 2RD,"46,629.33",Yes
Communities & Local Government,DCLG,13/09/2013,Work In Progress Pre-Cert 40373 Spend,Neighbourhoods,ONE EAST MIDLANDS,,,,7600006104,,Revenue Grant To Be Paid,,Revenue Grant To Be Paid,NG1 3FB,"8,572.66",Yes
Communities & Local Government,DCLG,13/09/2013,Work In Progress Pre-Cert 40373 Spend,Neighbourhoods,YTKO LIMITED,,,,7600006102,,Revenue Grant To Be Paid,,Revenue Grant To Be Paid,CB4 0WS,"13,444.06",Yes
Communities & Local Government,DCLG,13/09/2013,Work In Progress Pre-Cert 40373 Spend,Neighbourhoods,YTKO LIMITED,,,,7600006106,,Revenue Grant To Be Paid,,Revenue Grant To Be Paid,CB4 0WS,"42,364.77",Yes
Communities & Local Government,DCLG,13/09/2013,Work In Progress Pre-Cert 40467 Spend,Neighbourhoods,DERBY CITY COUNCIL,,Large,,7600006109,,Capital Grant To Be Paid,,Capital Grant To Be Paid,DE1 2FE,"4,747.00",Yes
Communities & Local Government,DCLG,13/09/2013,Work In Progress Pre-Cert 40467 Spend,Neighbourhoods,INDIANA DEVELOPMENTS LLP,,Micro,,7600006101,,Capital Grant To Be Paid,,Capital Grant To Be Paid,EX21 5PU,"255,295.52",Yes
Communities & Local Government,DCLG,13/09/2013,Work In Progress Pre-Cert 40467 Spend,Neighbourhoods,NOTTINGHAM UNIVERSITY,,Large,,7600006107,,Capital Grant To Be Paid,,Capital Grant To Be Paid,NG7 2RD,"7,486.16",Yes
Communities & Local Government,DCLG,13/09/2013,Work In Progress Pre-Cert 40467 Spend,Neighbourhoods,PRACTICAL DEVELOPMENTS (SOUTH WEST),,,,7600006103,,Capital Grant To Be Paid,,Capital Grant To Be Paid,TR15 1SS,"203,181.56",Yes
Communities & Local Government,DCLG,13/09/2013,Work In Progress Pre-Cert 40467 Spend,Neighbourhoods,PRACTICAL DEVELOPMENTS (SOUTH WEST),,,,7600006105,,Capital Grant To Be Paid,,Capital Grant To Be Paid,TR15 1SS,"200,253.39",Yes
Communities & Local Government,DCLG,16/09/2013,Cap Grants to Private Sector Companies,Neighbourhoods,ACTEM UK LTD,,Small,,2100234236,,Regional Growth Fund Qtr 2 grant paymen,,Regional Growth Fund Qtr 2 grant paymen,SR8 4TQ,"193,432.00",Yes
Communities & Local Government,DCLG,16/09/2013,Cap Grants to Private Sector Companies,Neighbourhoods,AESSEAL PLC,,Large,,2100234216,,Regional Growth Fund Qtr 2 grant payment,,Regional Growth Fund Qtr 2 grant payment,S60 1BZ,"794,189.00",Yes
Communities & Local Government,DCLG,16/09/2013,Cap Grants to Private Sector Companies,Neighbourhoods,BATH & NE SOMERSET DC,,Large,,2100234273,,Regional Growth Fund Qtr 2 grant paymen,,Regional Growth Fund Qtr 2 grant paymen,BA1 5AW,"202,819.00",Yes
Communities & Local Government,DCLG,16/09/2013,Cap Grants to Private Sector Companies,Neighbourhoods,BENTLEY MOTORS LIMITED,,Large,,2100234221,,Regional Growth Fund Qtr 2 grant payment,,Regional Growth Fund Qtr 2 grant payment,CW1 3PL,"522,295.00",Yes
Communities & Local Government,DCLG,16/09/2013,Cap Grants to Private Sector Companies,Neighbourhoods,C-TEC,,,,2100234223,,Regional Growth Fund Qtr 2 grant payment,,Regional Growth Fund Qtr 2 grant payment,WN5 0LD,"68,455.00",Yes
Communities & Local Government,DCLG,16/09/2013,Cap Grants to Private Sector Companies,Neighbourhoods,CAB AUTOMOTIVE LTD,,,,2100234244,,Regional Growth Fund Qtr 2 grant paymen,,Regional Growth Fund Qtr 2 grant paymen,OY4 7UJ,"67,456.09",Yes
Communities & Local Government,DCLG,16/09/2013,Cap Grants to Private Sector Companies,Neighbourhoods,CLOSE BROTHERS LTD,,,,2100234278,,Regional Growth Fund Qtr 2 grant paymen,,Regional Growth Fund Qtr 2 grant paymen,EC2A 4FT,"3,500,000.00",Yes
Communities & Local Government,DCLG,16/09/2013,Cap Grants to Private Sector Companies,Neighbourhoods,CUMBRIA COUNTY COUNCIL,,Public Bodies,,2100234230,,Regional Growth Fund Qtr 2 grant payment,,Regional Growth Fund Qtr 2 grant payment,CA13 9PR,"168,000.00",Yes
Communities & Local Government,DCLG,16/09/2013,Cap Grants to Private Sector Companies,Neighbourhoods,EAST MIDLANDS BUSINESS LIMITED,,Medium,,2100234251,,Regional Growth Fund Qtr 2 grant paymen,,Regional Growth Fund Qtr 2 grant paymen,LE19 1RT,"621,685.00",Yes
Communities & Local Government,DCLG,16/09/2013,Cap Grants to Private Sector Companies,Neighbourhoods,ERLSON PRECISION COMPONENTS LTD,,Medium,,2100234222,,Regional Growth Fund Qtr 2 grant payment,,Regional Growth Fund Qtr 2 grant payment,WN8 9QB,"52,694.00",Yes
Communities & Local Government,DCLG,16/09/2013,Cap Grants to Private Sector Companies,Neighbourhoods,FINANCE FOR INDUSTRY LTD,,,,2100234279,,Regional Growth Fund Qtr 2 grant paymen,,Regional Growth Fund Qtr 2 grant paymen,WD4 8FR,"200,000.00",Yes
Communities & Local Government,DCLG,16/09/2013,Cap Grants to Private Sector Companies,Neighbourhoods,GOODWIN PLC,,Large,,2100234245,,Regional Growth Fund Qtr 2 grant paymen,,Regional Growth Fund Qtr 2 grant paymen,ST1 3NR,"223,035.29",Yes
Communities & Local Government,DCLG,16/09/2013,Cap Grants to Private Sector Companies,Neighbourhoods,GRANT THORNTON UK LLP,,Large,,2100234280,,Regional Growth Fund Qtr 2 grant paymen,,Regional Growth Fund Qtr 2 grant paymen,NW1 2EP,"1,781,000.00",Yes
Communities & Local Government,DCLG,16/09/2013,Cap Grants to Private Sector Companies,Neighbourhoods,GTR MANCHESTER COMBINED AUTHORITY,,Public Bodies,,2100234217,,Regional Growth Fund Qtr 2 grant payment,,Regional Growth Fund Qtr 2 grant payment,M60 2JR,"583,000.00",Yes
Communities & Local Government,DCLG,16/09/2013,Cap Grants to Private Sector Companies,Neighbourhoods,HALTON BOROUGH COUNCIL,,Large,,2100234219,,Regional Growth Fund Qtr 2 grant payment,,Regional Growth Fund Qtr 2 grant payment,WA8 7QF,"424,492.09",Yes
Communities & Local Government,DCLG,16/09/2013,Cap Grants to Private Sector Companies,Neighbourhoods,HMG PAINTS LIMITED,,Medium,,2100234232,,Regional Growth Fund Qtr 2 grant paymen,,Regional Growth Fund Qtr 2 grant paymen,M40 7RU,"57,134.00",Yes
Communities & Local Government,DCLG,16/09/2013,Cap Grants to Private Sector Companies,Neighbourhoods,INTERNATIONAL PIPELINE PRODUCTS LTD,,,,2100234238,,Regional Growth Fund Qtr 2 grant paymen,,Regional Growth Fund Qtr 2 grant paymen,DL10 7JH,"24,815.00",Yes
Communities & Local Government,DCLG,16/09/2013,Cap Grants to Private Sector Companies,Neighbourhoods,LAKELAND ARTS TRUST,,,,2100234229,,Regional Growth Fund Qtr 2 grant payment,,Regional Growth Fund Qtr 2 grant payment,LA23 3JT,"240,992.79",Yes
Communities & Local Government,DCLG,16/09/2013,Cap Grants to Private Sector Companies,Neighbourhoods,LEEANN FASHIONS LTD,,Medium,,2100234248,,Regional Growth Fund Qtr 2 grant paymen,,Regional Growth Fund Qtr 2 grant paymen,LE10 3EZ,"284,226.00",Yes
Communities & Local Government,DCLG,16/09/2013,Cap Grants to Private Sector Companies,Neighbourhoods,LEEDS CITY COUNCIL,,Large,,2100234215,,Regional Growth Fund Qtr 2 grant payment,,Regional Growth Fund Qtr 2 grant payment,LS1 1UR,"810,014.00",Yes
Communities & Local Government,DCLG,16/09/2013,Cap Grants to Private Sector Companies,Neighbourhoods,LEICESTER CITY COUNCIL,,Public Bodies,,2100234250,,Regional Growth Fund Qtr 2 grant paymen,,Regional Growth Fund Qtr 2 grant paymen,LE1 6ZG,"93,850.00",Yes
Communities & Local Government,DCLG,16/09/2013,Cap Grants to Private Sector Companies,Neighbourhoods,LIVERPOOL SCHOOL OF TROPICAL MEDICI,,Large,,2100234224,,Regional Growth Fund Qtr 2 grant payment,,Regional Growth Fund Qtr 2 grant payment,L3 5QA,"864,000.00",Yes
Communities & Local Government,DCLG,16/09/2013,Cap Grants to Private Sector Companies,Neighbourhoods,LLOYDS BANKING GROUP,,,,2100234275,,Regional Growth Fund Qtr 2 grant paymen,,Regional Growth Fund Qtr 2 grant paymen,BS99 7LB,"3,100,000.00",Yes
Communities & Local Government,DCLG,16/09/2013,Cap Grants to Private Sector Companies,Neighbourhoods,MAGMA GLOBAL LTD,,,,2100234267,,Regional Growth Fund Qtr 2 grant paymen,,Regional Growth Fund Qtr 2 grant paymen,PO6 3EZ,"336,000.00",Yes
Communities & Local Government,DCLG,16/09/2013,Cap Grants to Private Sector Companies,Neighbourhoods,MANCHESTER CITY COUNCIL,,Large,,2100234214,,Regional Growth Fund Qtr 2 grant payment,,Regional Growth Fund Qtr 2 grant payment,M60 2LA,"100,000.00",Yes
Communities & Local Government,DCLG,16/09/2013,Cap Grants to Private Sector Companies,Neighbourhoods,MEDIAWORKS UK LTD,,Small,,2100234237,,Regional Growth Fund Qtr 2 grant paymen,,Regional Growth Fund Qtr 2 grant paymen,NE11 0TU,"17,470.71",Yes
Communities & Local Government,DCLG,16/09/2013,Cap Grants to Private Sector Companies,Neighbourhoods,NORTH EAST LINCOLN DC,,Public Bodies,,2100234246,,Regional Growth Fund Qtr 2 grant paymen,,Regional Growth Fund Qtr 2 grant paymen,DN35 8LN,"3,005,000.00",Yes
Communities & Local Government,DCLG,16/09/2013,Cap Grants to Private Sector Companies,Neighbourhoods,NORTH STAFFS CHAMBER COMM & IND,,Small,,2100234243,,Regional Growth Fund Qtr 2 grant paymen,,Regional Growth Fund Qtr 2 grant paymen,ST1 5BE,"363,933.09",Yes
Communities & Local Government,DCLG,16/09/2013,Cap Grants to Private Sector Companies,Neighbourhoods,NORTHUMBERLAND CC,,Large,,2100234240,,Regional Growth Fund Qtr 2 grant paymen,,Regional Growth Fund Qtr 2 grant paymen,NE61 2EF,"306,683.69",Yes
Communities & Local Government,DCLG,16/09/2013,Cap Grants to Private Sector Companies,Neighbourhoods,NXP SEMICONDUCTORS UK LTD,,,,2100234225,,Regional Growth Fund Qtr 2 grant payment,,Regional Growth Fund Qtr 2 grant payment,SK7 5BJ,"23,356.28",Yes
Communities & Local Government,DCLG,16/09/2013,Cap Grants to Private Sector Companies,Neighbourhoods,PLESSEY SEMICONDUCTORS LTD,,Medium,,2100234271,,Regional Growth Fund Qtr 2 grant paymen,,Regional Growth Fund Qtr 2 grant paymen,PL6 7BQ,"225,024.00",Yes
Communities & Local Government,DCLG,16/09/2013,Cap Grants to Private Sector Companies,Neighbourhoods,PLYMOUTH UNIVERSITY,,Large,,2100234272,,Regional Growth Fund Qtr 2 grant paymen,,Regional Growth Fund Qtr 2 grant paymen,PL4 8AA,"670,495.00",Yes
Communities & Local Government,DCLG,16/09/2013,Cap Grants to Private Sector Companies,Neighbourhoods,PORTSMOUTH CITY COUNCIL,,Public Bodies,,2100234268,,Regional Growth Fund Qtr 2 grant paymen,,Regional Growth Fund Qtr 2 grant paymen,PO1 2BG,"2,100,000.00",Yes
Communities & Local Government,DCLG,16/09/2013,Cap Grants to Private Sector Companies,Neighbourhoods,PRINCESS YACHTS INTERNATIONAL LTD,,Large,,2100234274,,Regional Growth Fund Qtr 2 grant paymen,,Regional Growth Fund Qtr 2 grant paymen,PL1 3QG,"4,041,000.00",Yes
Communities & Local Government,DCLG,16/09/2013,Cap Grants to Private Sector Companies,Neighbourhoods,REDIRACK LIMITED,,Medium,,2100234227,,Regional Growth Fund Qtr 2 grant payment,,Regional Growth Fund Qtr 2 grant payment,S64 5SU,"266,000.00",Yes
Communities & Local Government,DCLG,16/09/2013,Cap Grants to Private Sector Companies,Neighbourhoods,S CARTWRIGHT & SONS (COACHBUILDER),,,,2100234226,,Regional Growth Fund Qtr 2 grant payment,,Regional Growth Fund Qtr 2 grant payment,WA14 5EW,"31,288.00",Yes
Communities & Local Government,DCLG,16/09/2013,Cap Grants to Private Sector Companies,Neighbourhoods,SHEFFIELD CITY COUNCIL,,,,2100234234,,Regional Growth Fund Qtr 2 grant paymen,,Regional Growth Fund Qtr 2 grant paymen,S1 1UR,"861,876.75",Yes
Communities & Local Government,DCLG,16/09/2013,Cap Grants to Private Sector Companies,Neighbourhoods,SNF OIL AND GAS LTD,,,,2100234235,,Regional Growth Fund Qtr 2 grant paymen,,Regional Growth Fund Qtr 2 grant paymen,WF6 1TB,"121,582.00",Yes
Communities & Local Government,DCLG,16/09/2013,Cap Grants to Private Sector Companies,Neighbourhoods,SUNDERLAND CITY COUNCIL,,,,2100234241,,Regional Growth Fund Qtr 2 grant paymen,,Regional Growth Fund Qtr 2 grant paymen,SR2 7DN,"6,500,000.00",Yes
Communities & Local Government,DCLG,16/09/2013,Cap Grants to Private Sector Companies,Neighbourhoods,TRW SYSTEMS LTD,,,,2100234239,,Regional Growth Fund Qtr 2 grant paymen,,Regional Growth Fund Qtr 2 grant paymen,DH4 5PH,"757,722.00",Yes
Communities & Local Government,DCLG,16/09/2013,Cap Grants to Private Sector Companies,Neighbourhoods,UK STEEL ENTERPRISE LTD,,,,2100234276,,Regional Growth Fund Qtr 2 grant paymen,,Regional Growth Fund Qtr 2 grant paymen,S1 4DP,"222,500.00",Yes
Communities & Local Government,DCLG,16/09/2013,Cap Grants to Private Sector Companies,Neighbourhoods,WELDING INSTITUTE,,Large,,2100234265,,Regional Growth Fund Qtr 2 grant paymen,,Regional Growth Fund Qtr 2 grant paymen,CB21 6AL,"364,527.40",Yes
Communities & Local Government,DCLG,16/09/2013,Current (non AEF) Grants to Local Authorities,Localism,ADUR DC,,,,5000234775,,Council Tax Freeze,,Council Tax Freeze,BN11 1HB,"6,325.00",Yes
Communities & Local Government,DCLG,16/09/2013,Current (non AEF) Grants to Local Authorities,Localism,AMBER VALLEY BC,,,,5000234776,,Council Tax Freeze,,Council Tax Freeze,DE5 3WZ,"6,281.00",Yes
Communities & Local Government,DCLG,16/09/2013,Current (non AEF) Grants to Local Authorities,Localism,ARUN DC,,,,5000234680,,Council Tax Freeze,,Council Tax Freeze,BN17 5LF,"10,194.00",Yes
Communities & Local Government,DCLG,16/09/2013,Current (non AEF) Grants to Local Authorities,Localism,ASHFIELD DC,,,,5000234777,,Council Tax Freeze,,Council Tax Freeze,NG17 8DA,"6,119.00",Yes
Communities & Local Government,DCLG,16/09/2013,Current (non AEF) Grants to Local Authorities,Localism,AVON & SOMERSET POLICE AUTHORITY,,,,5000234955,,Local Council Tax Support for Police Commissioners,,Local Council Tax Support for Police Commissioners,TA1 4DY,"1,134,139.00",Yes
Communities & Local Government,DCLG,16/09/2013,Current (non AEF) Grants to Local Authorities,Localism,AVON & SOMERSET POLICE AUTHORITY,,,,5000234956,,Council Tax Freeze for Police and Crime Commission,,Council Tax Freeze for Police and Crime Commission,TA1 4DY,"236,939.00",Yes
Communities & Local Government,DCLG,16/09/2013,Current (non AEF) Grants to Local Authorities,Localism,AVON & SOMERSET POLICE AUTHORITY,,,,5000234957,,Council Tax Freeze,,Council Tax Freeze,TA1 4DY,"96,157.00",Yes
Communities & Local Government,DCLG,16/09/2013,Current (non AEF) Grants to Local Authorities,Localism,BABERGH DC,,,,5000234681,,Council Tax Freeze,,Council Tax Freeze,IP7 6SJ,"4,939.00",Yes
Communities & Local Government,DCLG,16/09/2013,Current (non AEF) Grants to Local Authorities,Localism,BARKING & DAGENHAM LB (HSG),,,,5000234682,,Council Tax Freeze,,Council Tax Freeze,RM10 7BY,"54,035.00",Yes
Communities & Local Government,DCLG,16/09/2013,Current (non AEF) Grants to Local Authorities,Localism,BARNET LBC,,,,5000234778,,Council Tax Freeze,,Council Tax Freeze,NW4 4BG,"160,367.00",Yes
Communities & Local Government,DCLG,16/09/2013,Current (non AEF) Grants to Local Authorities,Localism,BARNSLEY MBC,,,,5000234779,,Council Tax Freeze,,Council Tax Freeze,S70 2AQ,"85,377.00",Yes
Communities & Local Government,DCLG,16/09/2013,Current (non AEF) Grants to Local Authorities,Localism,BASILDON BOROUGH COUNCIL,,,,5000234780,,Council Tax Freeze,,Council Tax Freeze,SS14 0DF,"16,163.00",Yes
Communities & Local Government,DCLG,16/09/2013,Current (non AEF) Grants to Local Authorities,Localism,BASINGSTOKE & DEANE BC,,,,5000234781,,Council Tax Freeze,,Council Tax Freeze,RG21 2AJ,"6,906.00",Yes
Communities & Local Government,DCLG,16/09/2013,Current (non AEF) Grants to Local Authorities,Localism,BASSETLAW DC (HSG),,,,5000234683,,Council Tax Freeze,,Council Tax Freeze,S80 2AH,"5,562.00",Yes
Communities & Local Government,DCLG,16/09/2013,Current (non AEF) Grants to Local Authorities,Localism,BATH & NE SOMERSET DC (HSG),,,,5000234684,,Council Tax Freeze,,Council Tax Freeze,BA1 5AW,"79,021.00",Yes
Communities & Local Government,DCLG,16/09/2013,Current (non AEF) Grants to Local Authorities,Localism,BEDFORD UNITARY AUTHORITY,,,,5000234951,,Council Tax Freeze,,Council Tax Freeze,MK40 1SJ,"74,916.00",Yes
Communities & Local Government,DCLG,16/09/2013,Current (non AEF) Grants to Local Authorities,Localism,BEDFORDSHIRE POLICE AUTHORITY,,,,5000234958,,Local Council Tax Support for Police Commissioners,,Local Council Tax Support for Police Commissioners,MK43 9AX,"387,393.00",Yes
Communities & Local Government,DCLG,16/09/2013,Current (non AEF) Grants to Local Authorities,Localism,BEDFORDSHIRE POLICE AUTHORITY,,,,5000234959,,Council Tax Freeze for Police and Crime Commission,,Council Tax Freeze for Police and Crime Commission,MK43 9AX,"75,094.00",Yes
Communities & Local Government,DCLG,16/09/2013,Current (non AEF) Grants to Local Authorities,Localism,BEXLEY LB (HSG),,,,5000234685,,Council Tax Freeze,,Council Tax Freeze,DA8 1TL,"95,872.00",Yes
Communities & Local Government,DCLG,16/09/2013,Current (non AEF) Grants to Local Authorities,Localism,BIRMINGHAM CITY CNCL,,,,5000234782,,Council Tax Freeze,,Council Tax Freeze,B2 2AJ,"334,617.00",Yes
Communities & Local Government,DCLG,16/09/2013,Current (non AEF) Grants to Local Authorities,Localism,BLABY DC (HSG),,,,5000234686,,Council Tax Freeze,,Council Tax Freeze,LE9 5EP,"4,435.00",Yes
Communities & Local Government,DCLG,16/09/2013,Current (non AEF) Grants to Local Authorities,Localism,BLACKBURN WITH DARWEN BC,,,,5000234783,,Council Tax Freeze,,Council Tax Freeze,BB1 7DY,"49,160.00",Yes
Communities & Local Government,DCLG,16/09/2013,Current (non AEF) Grants to Local Authorities,Localism,BLACKPOOL BC,,,,5000234784,,Council Tax Freeze,,Council Tax Freeze,FY1 1NA,"59,757.00",Yes
Communities & Local Government,DCLG,16/09/2013,Current (non AEF) Grants to Local Authorities,Localism,BOLSOVER DC,,,,5000234785,,Council Tax Freeze,,Council Tax Freeze,S44 6NF,"3,605.00",Yes
Communities & Local Government,DCLG,16/09/2013,Current (non AEF) Grants to Local Authorities,Localism,BOSTON BC,,,,5000234687,,Council Tax Freeze,,Council Tax Freeze,PE21 8QR,"3,342.00",Yes
Communities & Local Government,DCLG,16/09/2013,Current (non AEF) Grants to Local Authorities,Localism,BOURNEMOUTH DC,,,,5000234786,,Council Tax Freeze,,Council Tax Freeze,BH2 6EB,"79,982.00",Yes
Communities & Local Government,DCLG,16/09/2013,Current (non AEF) Grants to Local Authorities,Localism,BRACKNELL FOREST DC,,,,5000234787,,Council Tax Freeze,,Council Tax Freeze,RG12 1AQ,"49,777.00",Yes
Communities & Local Government,DCLG,16/09/2013,Current (non AEF) Grants to Local Authorities,Localism,BRAINTREE DC,,,,5000234688,,Council Tax Freeze,,Council Tax Freeze,CM7 6HB,"8,826.00",Yes
Communities & Local Government,DCLG,16/09/2013,Current (non AEF) Grants to Local Authorities,Localism,BRENT LB (HSG),,,,5000234689,,Council Tax Freeze,,Council Tax Freeze,HA9 9HD,"99,422.00",Yes
Communities & Local Government,DCLG,16/09/2013,Current (non AEF) Grants to Local Authorities,Localism,BRENTWOOD BC,,,,5000234788,,Council Tax Freeze,,Council Tax Freeze,CM15 8AY,"5,671.00",Yes
Communities & Local Government,DCLG,16/09/2013,Current (non AEF) Grants to Local Authorities,Localism,BROADLAND DC,,Large,,5000234690,,Council Tax Freeze,,Council Tax Freeze,NR7 0DU,"5,337.00",Yes
Communities & Local Government,DCLG,16/09/2013,Current (non AEF) Grants to Local Authorities,Localism,BROXBOURNE BC,,Public Bodies,,5000234789,,Council Tax Freeze,,Council Tax Freeze,EN8 9XG,"4,246.00",Yes
Communities & Local Government,DCLG,16/09/2013,Current (non AEF) Grants to Local Authorities,Localism,BROXTOWE BC,,,,5000234790,,Council Tax Freeze,,Council Tax Freeze,NG9 1AB,"5,931.00",Yes
Communities & Local Government,DCLG,16/09/2013,Current (non AEF) Grants to Local Authorities,Localism,BUCKINGHAMSHIRE CC,,,,5000234791,,Council Tax Freeze,,Council Tax Freeze,HP20 1UD,"232,199.00",Yes
Communities & Local Government,DCLG,16/09/2013,Current (non AEF) Grants to Local Authorities,Localism,BUCKS & MILTON KEYNES FIRE AUTH,,,,5000234933,,Council Tax Freeze,,Council Tax Freeze,HP20 1BD,"17,730.00",Yes
Communities & Local Government,DCLG,16/09/2013,Current (non AEF) Grants to Local Authorities,Localism,CAMBRIDGESHIRE POLICE AUTHORITY,,,,5000234960,,Local Council Tax Support for Police Commissioners,,Local Council Tax Support for Police Commissioners,P18 8NP,"480,698.00",Yes
Communities & Local Government,DCLG,16/09/2013,Current (non AEF) Grants to Local Authorities,Localism,CAMBRIDGESHIRE POLICE AUTHORITY,,,,5000234961,,Council Tax Freeze for Police and Crime Commission,,Council Tax Freeze for Police and Crime Commission,P18 8NP,"117,251.00",Yes
Communities & Local Government,DCLG,16/09/2013,Current (non AEF) Grants to Local Authorities,Localism,CAMDEN LB,,,,5000234792,,Council Tax Freeze,,Council Tax Freeze,WC1H 8NG,"102,147.00",Yes
Communities & Local Government,DCLG,16/09/2013,Current (non AEF) Grants to Local Authorities,Localism,CARLISLE CITY CNCL,,,,5000234691,,Council Tax Freeze,,Council Tax Freeze,CA3 8QG,"6,845.00",Yes
Communities & Local Government,DCLG,16/09/2013,Current (non AEF) Grants to Local Authorities,Localism,CENTRAL BEDFORDSHIRE COUNCIL,,,,5000234949,,Council Tax Freeze,,Council Tax Freeze,SG17 5TQ,"131,022.00",Yes
Communities & Local Government,DCLG,16/09/2013,Current (non AEF) Grants to Local Authorities,Localism,CHARNWOOD BC,,,,5000234793,,Council Tax Freeze,,Council Tax Freeze,LE11 2TU,"7,018.00",Yes
Communities & Local Government,DCLG,16/09/2013,Current (non AEF) Grants to Local Authorities,Localism,CHELTENHAM BC,,,,5000234794,,Council Tax Freeze,,Council Tax Freeze,GL50 1PW,"7,859.00",Yes
Communities & Local Government,DCLG,16/09/2013,Current (non AEF) Grants to Local Authorities,Localism,CHERWELL DC,,,,5000234692,,Council Tax Freeze,,Council Tax Freeze,OX15 4AA,"6,303.00",Yes
Communities & Local Government,DCLG,16/09/2013,Current (non AEF) Grants to Local Authorities,Localism,CHESHIRE EAST COUNCIL,,,,5000234950,,Council Tax Freeze,,Council Tax Freeze,SK10 1DP,"180,514.00",Yes
Communities & Local Government,DCLG,16/09/2013,Current (non AEF) Grants to Local Authorities,Localism,CHORLEY DC,,,,5000234795,,Council Tax Freeze,,Council Tax Freeze,PR7 1DP,"6,596.00",Yes
Communities & Local Government,DCLG,16/09/2013,Current (non AEF) Grants to Local Authorities,Localism,CITY OF LONDON (HSG),,,,5000234693,,Local Council Tax Support for Police Commissioners,,Local Council Tax Support for Police Commissioners,EC2P 2EJ,"7,925.00",Yes
Communities & Local Government,DCLG,16/09/2013,Current (non AEF) Grants to Local Authorities,Localism,CITY OF LONDON (HSG),,,,5000234694,,Council Tax Freeze,,Council Tax Freeze,EC2P 2EJ,"5,001.00",Yes
Communities & Local Government,DCLG,16/09/2013,Current (non AEF) Grants to Local Authorities,Localism,CITY OF SUNDERLAND (HSG),,,,5000234695,,Council Tax Freeze,,Council Tax Freeze,SR2 7DN,"97,908.00",Yes
Communities & Local Government,DCLG,16/09/2013,Current (non AEF) Grants to Local Authorities,Localism,COLCHESTER BC,,,,5000234796,,Council Tax Freeze,,Council Tax Freeze,CO3 3WG,"10,691.00",Yes
Communities & Local Government,DCLG,16/09/2013,Current (non AEF) Grants to Local Authorities,Localism,CORBY BC,,,,5000234696,,Council Tax Freeze,,Council Tax Freeze,NN17 1GD,"3,339.00",Yes
Communities & Local Government,DCLG,16/09/2013,Current (non AEF) Grants to Local Authorities,Localism,CORNWALL UNITARY AUTHORITY,,,,5000234953,,Council Tax Freeze,,Council Tax Freeze,TR1 3AY,"251,331.00",Yes
Communities & Local Government,DCLG,16/09/2013,Current (non AEF) Grants to Local Authorities,Localism,COTSWOLD DC,,,,5000234697,,Council Tax Freeze,,Council Tax Freeze,GL7 1PX,"5,461.00",Yes
Communities & Local Government,DCLG,16/09/2013,Current (non AEF) Grants to Local Authorities,Localism,COUNTY DURHAM & DARLINGTON,,,,5000234942,,Council Tax Freeze,,Council Tax Freeze,DH1 5UE,"17,429.00",Yes
Communities & Local Government,DCLG,16/09/2013,Current (non AEF) Grants to Local Authorities,Localism,COVENTRY CITY CNCL,,,,5000234797,,Council Tax Freeze,,Council Tax Freeze,CV1 2QL,"120,752.00",Yes
Communities & Local Government,DCLG,16/09/2013,Current (non AEF) Grants to Local Authorities,Localism,CRAVEN DC (HSG),,,,5000234698,,Council Tax Freeze,,Council Tax Freeze,BD23 1PS,"3,426.00",Yes
Communities & Local Government,DCLG,16/09/2013,Current (non AEF) Grants to Local Authorities,Localism,CRAWLEY BC,,,,5000234699,,Council Tax Freeze,,Council Tax Freeze,RH10 1UZ,"6,990.00",Yes
Communities & Local Government,DCLG,16/09/2013,Current (non AEF) Grants to Local Authorities,Localism,CUMBRIA COUNTY CNCL,,,,5000234798,,Council Tax Freeze,,Council Tax Freeze,CA3 8NA,"209,922.00",Yes
Communities & Local Government,DCLG,16/09/2013,Current (non AEF) Grants to Local Authorities,Localism,DARTFORD BC,,,,5000234700,,Council Tax Freeze,,Council Tax Freeze,DA1 1DR,"5,783.00",Yes
Communities & Local Government,DCLG,16/09/2013,Current (non AEF) Grants to Local Authorities,Localism,DERBYSHIRE COUNTYCOUNCIL,,,,5000234799,,Council Tax Freeze,,Council Tax Freeze,DE4 3AH,"281,203.00",Yes
Communities & Local Government,DCLG,16/09/2013,Current (non AEF) Grants to Local Authorities,Localism,DERBYSHIRE DALES DC,,,,5000234701,,Council Tax Freeze,,Council Tax Freeze,DE4 3NN,"5,672.00",Yes
Communities & Local Government,DCLG,16/09/2013,Current (non AEF) Grants to Local Authorities,Localism,DERBYSHIRE FIRE AUTHORITY,,,,5000234943,,Council Tax Freeze,,Council Tax Freeze,DE55 1RH,"22,378.00",Yes
Communities & Local Government,DCLG,16/09/2013,Current (non AEF) Grants to Local Authorities,Localism,DEVON & CORNWALL POLICE AUTHORITY,,,,5000234962,,Council Tax Freeze for Police and Crime Commission,,Council Tax Freeze for Police and Crime Commission,EX2 5YT,"239,226.00",Yes
Communities & Local Government,DCLG,16/09/2013,Current (non AEF) Grants to Local Authorities,Localism,DEVON & CORNWALL POLICE AUTHORITY,,,,5000234963,,Local Council Tax Support for Police Commissioners,,Local Council Tax Support for Police Commissioners,EX2 5YT,"1,302,719.00",Yes
Communities & Local Government,DCLG,16/09/2013,Current (non AEF) Grants to Local Authorities,Localism,DEVON COUNTY CNCL,,,,5000234800,,Council Tax Freeze,,Council Tax Freeze,EX2 4QJ,"330,149.00",Yes
Communities & Local Government,DCLG,16/09/2013,Current (non AEF) Grants to Local Authorities,Localism,DONCASTER MBC,,,,5000234801,,Council Tax Freeze,,Council Tax Freeze,DN1 3QA,"96,910.00",Yes
Communities & Local Government,DCLG,16/09/2013,Current (non AEF) Grants to Local Authorities,Localism,DORSET COUNTY CNCL,,,,5000234802,,Council Tax Freeze,,Council Tax Freeze,DT1 1XJ,"203,847.00",Yes
Communities & Local Government,DCLG,16/09/2013,Current (non AEF) Grants to Local Authorities,Localism,DUDLEY MBC,,,,5000234803,,Council Tax Freeze,,Council Tax Freeze,DY1 1HF,"113,607.00",Yes
Communities & Local Government,DCLG,16/09/2013,Current (non AEF) Grants to Local Authorities,Localism,DURHAM POLICE AUTHORITY,,,,5000234964,,Local Council Tax Support for Police Commissioners,,Local Council Tax Support for Police Commissioners,DH1 5TT,"536,487.00",Yes
Communities & Local Government,DCLG,16/09/2013,Current (non AEF) Grants to Local Authorities,Localism,DURHAM POLICE AUTHORITY,,,,5000234965,,Council Tax Freeze for Police and Crime Commission,,Council Tax Freeze for Police and Crime Commission,DH1 5TT,"72,798.00",Yes
Communities & Local Government,DCLG,16/09/2013,Current (non AEF) Grants to Local Authorities,Localism,DURHAM UNITARY AUTHORITY,,,,5000234954,,Council Tax Freeze,,Council Tax Freeze,DH1 5UE,"202,930.00",Yes
Communities & Local Government,DCLG,16/09/2013,Current (non AEF) Grants to Local Authorities,Localism,EALING LB,,,,5000234804,,Council Tax Freeze,,Council Tax Freeze,W5 2HL,"126,477.00",Yes
Communities & Local Government,DCLG,16/09/2013,Current (non AEF) Grants to Local Authorities,Localism,EAST DEVON DC,,,,5000234702,,Council Tax Freeze,,Council Tax Freeze,EX10 8HL,"7,087.00",Yes
Communities & Local Government,DCLG,16/09/2013,Current (non AEF) Grants to Local Authorities,Localism,EAST HERTFORDSHIRE DC,,,,5000234703,,Council Tax Freeze,,Council Tax Freeze,SG13 8EQ,"9,330.00",Yes
Communities & Local Government,DCLG,16/09/2013,Current (non AEF) Grants to Local Authorities,Localism,EAST NORTHAMPTONSHIRE COUNCIL,,,,5000234704,,Council Tax Freeze,,Council Tax Freeze,NN14 4LZ,"3,836.00",Yes
Communities & Local Government,DCLG,16/09/2013,Current (non AEF) Grants to Local Authorities,Localism,EAST RIDING OF YORKS (HSG),,,,5000234705,,Council Tax Freeze,,Council Tax Freeze,HU17 9BA,"144,830.00",Yes
Communities & Local Government,DCLG,16/09/2013,Current (non AEF) Grants to Local Authorities,Localism,EAST STAFFORDSHIRE BC,,,,5000234706,,Council Tax Freeze,,Council Tax Freeze,DE14 2EB,"6,883.00",Yes
Communities & Local Government,DCLG,16/09/2013,Current (non AEF) Grants to Local Authorities,Localism,EAST SUSSEX COUNTY CNCL,,,,5000234805,,Council Tax Freeze,,Council Tax Freeze,BN7 1SF,"243,507.00",Yes
Communities & Local Government,DCLG,16/09/2013,Current (non AEF) Grants to Local Authorities,Localism,EAST SUSSEX FIRE AUTHORITY,,Large,,5000234945,,Council Tax Freeze,,Council Tax Freeze,BN21 1EU,"24,993.00",Yes
Communities & Local Government,DCLG,16/09/2013,Current (non AEF) Grants to Local Authorities,Localism,EASTBOURNE BC,,,,5000234806,,Council Tax Freeze,,Council Tax Freeze,BN21 4TW,"8,120.00",Yes
Communities & Local Government,DCLG,16/09/2013,Current (non AEF) Grants to Local Authorities,Localism,EASTLEIGH BOROUGH COUNCIL,,,,5000234807,,Council Tax Freeze,,Council Tax Freeze,SO5 9YN,"6,008.00",Yes
Communities & Local Government,DCLG,16/09/2013,Current (non AEF) Grants to Local Authorities,Localism,ENFIELD LB,,,,5000234808,,Council Tax Freeze,,Council Tax Freeze,EN1 3XF,"120,360.00",Yes
Communities & Local Government,DCLG,16/09/2013,Current (non AEF) Grants to Local Authorities,Localism,EPPING FOREST DC,,,,5000234809,,Council Tax Freeze,,Council Tax Freeze,CM16 4BZ,"8,208.00",Yes
Communities & Local Government,DCLG,16/09/2013,Current (non AEF) Grants to Local Authorities,Localism,EREWASH BC,,,,5000234810,,Council Tax Freeze,,Council Tax Freeze,DE7 5RP,"6,040.00",Yes
Communities & Local Government,DCLG,16/09/2013,Current (non AEF) Grants to Local Authorities,Localism,ESSEX COUNTY CNCL,,,,5000234811,,Council Tax Freeze,,Council Tax Freeze,CM1 1JZ,"582,276.00",Yes
Communities & Local Government,DCLG,16/09/2013,Current (non AEF) Grants to Local Authorities,Localism,ESSEX FIRE AUTHORITY,,Large,,5000234934,,Council Tax Freeze,,Council Tax Freeze,CM8 3HB,"43,259.00",Yes
Communities & Local Government,DCLG,16/09/2013,Current (non AEF) Grants to Local Authorities,Localism,ESSEX POLICE AUTHORITY,,,,5000234966,,Council Tax Freeze for Police and Crime Commission,,Council Tax Freeze for Police and Crime Commission,CM2 6DA,"213,299.00",Yes
Communities & Local Government,DCLG,16/09/2013,Current (non AEF) Grants to Local Authorities,Localism,ESSEX POLICE AUTHORITY,,,,5000234967,,Local Council Tax Support for Police Commissioners,,Local Council Tax Support for Police Commissioners,CM2 6DA,"1,095,708.00",Yes
Communities & Local Government,DCLG,16/09/2013,Current (non AEF) Grants to Local Authorities,Localism,FAREHAM BC,,,,5000234707,,Council Tax Freeze,,Council Tax Freeze,PO16 7PU,"6,100.00",Yes
Communities & Local Government,DCLG,16/09/2013,Current (non AEF) Grants to Local Authorities,Localism,FOREST HEATH DISTRICT COUNCIL,,,,5000234708,,Council Tax Freeze,,Council Tax Freeze,IP28 7EY,"2,488.00",Yes
Communities & Local Government,DCLG,16/09/2013,Current (non AEF) Grants to Local Authorities,Localism,FOREST OF DEAN DC,,,,5000234709,,Council Tax Freeze,,Council Tax Freeze,GL16 8HG,"4,839.00",Yes
Communities & Local Government,DCLG,16/09/2013,Current (non AEF) Grants to Local Authorities,Localism,FYLDE BC,,,,5000234812,,Council Tax Freeze,,Council Tax Freeze,FY8 1LW,"5,662.00",Yes
Communities & Local Government,DCLG,16/09/2013,Current (non AEF) Grants to Local Authorities,Localism,GATESHEAD MBC,,,,5000234813,,Council Tax Freeze,,Council Tax Freeze,NE8 1HH,"85,709.00",Yes
Communities & Local Government,DCLG,16/09/2013,Current (non AEF) Grants to Local Authorities,Localism,GLOUCESTER CITY CNCL,,,,5000234814,,Council Tax Freeze,,Council Tax Freeze,GL1 2EQ,"7,253.00",Yes
Communities & Local Government,DCLG,16/09/2013,Current (non AEF) Grants to Local Authorities,Localism,GLOUCESTERSHIRE COUNTY CNCL,,,,5000234815,,Council Tax Freeze,,Council Tax Freeze,GL1 2TG,"246,182.00",Yes
Communities & Local Government,DCLG,16/09/2013,Current (non AEF) Grants to Local Authorities,Localism,GOSPORT BOROUGH COUNCIL,,,,5000234816,,Council Tax Freeze,,Council Tax Freeze,PO12 1ED,"5,625.00",Yes
Communities & Local Government,DCLG,16/09/2013,Current (non AEF) Grants to Local Authorities,Localism,GREAT YARMOUTH BC,,,,5000234817,,Council Tax Freeze,,Council Tax Freeze,NR30 2QG,"4,642.00",Yes
Communities & Local Government,DCLG,16/09/2013,Current (non AEF) Grants to Local Authorities,Localism,GREATER LONDON AUTHORITY,,,,5000235011,,Council Tax Freeze,,Council Tax Freeze,SE10 1AJ,"944,771.00",Yes
Communities & Local Government,DCLG,16/09/2013,Current (non AEF) Grants to Local Authorities,Localism,GREATER LONDON AUTHORITY,,,,5000235012,,Local Council Tax Support for Police Commissioners,,Local Council Tax Support for Police Commissioners,SE10 1AJ,"11,929,193.00",Yes
Communities & Local Government,DCLG,16/09/2013,Current (non AEF) Grants to Local Authorities,Localism,GREENWICH LB,,,,5000234818,,Council Tax Freeze,,Council Tax Freeze,SE18 6BU,"80,765.00",Yes
Communities & Local Government,DCLG,16/09/2013,Current (non AEF) Grants to Local Authorities,Localism,HAMBLETON DC (HSG),,,,5000234710,,Council Tax Freeze,,Council Tax Freeze,DL6 2UU,"3,267.00",Yes
Communities & Local Government,DCLG,16/09/2013,Current (non AEF) Grants to Local Authorities,Localism,HAMMERSMITH & FULHAM LB,,,,5000234820,,Council Tax Freeze,,Council Tax Freeze,W6 9JU,"62,575.00",Yes
Communities & Local Government,DCLG,16/09/2013,Current (non AEF) Grants to Local Authorities,Localism,HAMPSHIRE COUNTY COUNCIL,,,,5000234821,,Council Tax Freeze,,Council Tax Freeze,SO23 8UB,"535,812.00",Yes
Communities & Local Government,DCLG,16/09/2013,Current (non AEF) Grants to Local Authorities,Localism,HAMPSHIRE FIRE & RESCUE AUTHORITY,,Large,,5000234944,,Council Tax Freeze,,Council Tax Freeze,SO23 8UB,"39,506.00",Yes
Communities & Local Government,DCLG,16/09/2013,Current (non AEF) Grants to Local Authorities,Localism,HAMPSHIRE POLICE AUTHORITY,,,,5000234968,,Council Tax Freeze for Police and Crime Commission,,Council Tax Freeze for Police and Crime Commission,SO23 8UB,"251,995.00",Yes
Communities & Local Government,DCLG,16/09/2013,Current (non AEF) Grants to Local Authorities,Localism,HAMPSHIRE POLICE AUTHORITY,,,,5000234969,,Local Council Tax Support for Police Commissioners,,Local Council Tax Support for Police Commissioners,SO23 8UB,"1,039,073.00",Yes
Communities & Local Government,DCLG,16/09/2013,Current (non AEF) Grants to Local Authorities,Localism,HARBOROUGH DC (HSG),,,,5000234711,,Council Tax Freeze,,Council Tax Freeze,LE16 7AG,"5,608.00",Yes
Communities & Local Government,DCLG,16/09/2013,Current (non AEF) Grants to Local Authorities,Localism,HARINGEY LB,,,,5000234822,,Council Tax Freeze,,Council Tax Freeze,N22 4TR,"100,997.00",Yes
Communities & Local Government,DCLG,16/09/2013,Current (non AEF) Grants to Local Authorities,Localism,HARROGATE BC,,,,5000234712,,Council Tax Freeze,,Council Tax Freeze,HG1 2SG,"13,855.00",Yes
Communities & Local Government,DCLG,16/09/2013,Current (non AEF) Grants to Local Authorities,Localism,HART DC,,,,5000234823,,Council Tax Freeze,,Council Tax Freeze,GU13 8AE,"5,875.00",Yes
Communities & Local Government,DCLG,16/09/2013,Current (non AEF) Grants to Local Authorities,Localism,HARTLEPOOL BOROUGH COUNCIL,,,,5000234824,,Council Tax Freeze,,Council Tax Freeze,TS24 7BT,"40,811.00",Yes
Communities & Local Government,DCLG,16/09/2013,Current (non AEF) Grants to Local Authorities,Localism,HASTINGS BC,,,,5000234825,,Council Tax Freeze,,Council Tax Freeze,TN34 3WN,"7,013.00",Yes
Communities & Local Government,DCLG,16/09/2013,Current (non AEF) Grants to Local Authorities,Localism,HAVANT BC,,,,5000234826,,Council Tax Freeze,,Council Tax Freeze,PO9 2AX,"8,323.00",Yes
Communities & Local Government,DCLG,16/09/2013,Current (non AEF) Grants to Local Authorities,Localism,HAVERING LB,,,,5000234827,,Council Tax Freeze,,Council Tax Freeze,RM1 3BB,"109,761.00",Yes
Communities & Local Government,DCLG,16/09/2013,Current (non AEF) Grants to Local Authorities,Localism,HEREFORD WORCESTER FIRE & RESCUE,,Large,,5000234939,,Council Tax Freeze,,Council Tax Freeze,WR1 2HQ,"20,965.00",Yes
Communities & Local Government,DCLG,16/09/2013,Current (non AEF) Grants to Local Authorities,Localism,HERTFORDSHIRE COUNTY CNCL,,,,5000234828,,Council Tax Freeze,,Council Tax Freeze,SG13 8DQ,"505,857.00",Yes
Communities & Local Government,DCLG,16/09/2013,Current (non AEF) Grants to Local Authorities,Localism,HERTFORDSHIRE POLICE AUTHORITY,,,,5000234970,,Council Tax Freeze,,Council Tax Freeze,AL8 6XF,"66,833.00",Yes
Communities & Local Government,DCLG,16/09/2013,Current (non AEF) Grants to Local Authorities,Localism,HERTFORDSHIRE POLICE AUTHORITY,,,,5000234971,,Local Council Tax Support for Police Commissioners,,Local Council Tax Support for Police Commissioners,AL8 6XF,"652,230.00",Yes
Communities & Local Government,DCLG,16/09/2013,Current (non AEF) Grants to Local Authorities,Localism,HERTFORDSHIRE POLICE AUTHORITY,,,,5000234972,,Council Tax Freeze for Police and Crime Commission,,Council Tax Freeze for Police and Crime Commission,AL8 6XF,"166,030.00",Yes
Communities & Local Government,DCLG,16/09/2013,Current (non AEF) Grants to Local Authorities,Localism,HERTSMERE BC,,,,5000234829,,Council Tax Freeze,,Council Tax Freeze,WD6 1WA,"6,527.00",Yes
Communities & Local Government,DCLG,16/09/2013,Current (non AEF) Grants to Local Authorities,Localism,HIGH PEAK BC,,,,5000234713,,Council Tax Freeze,,Council Tax Freeze,SK17 6EL,"5,667.00",Yes
Communities & Local Government,DCLG,16/09/2013,Current (non AEF) Grants to Local Authorities,Localism,HILLINGDON LB,,,,5000234830,,Council Tax Freeze,,Council Tax Freeze,UB8 1UW,"111,893.00",Yes
Communities & Local Government,DCLG,16/09/2013,Current (non AEF) Grants to Local Authorities,Localism,HINCKLEY & BOSWORTH BC,,,,5000234714,,Council Tax Freeze,,Council Tax Freeze,LE10 1BZ,"4,229.00",Yes
Communities & Local Government,DCLG,16/09/2013,Current (non AEF) Grants to Local Authorities,Localism,HORSHAM DC,,,,5000234715,,Council Tax Freeze,,Council Tax Freeze,RH12 1RL,"8,182.00",Yes
Communities & Local Government,DCLG,16/09/2013,Current (non AEF) Grants to Local Authorities,Localism,HOUNSLOW LB,,Public Bodies,,5000234831,,Council Tax Freeze,,Council Tax Freeze,TW3 4DN,"97,363.00",Yes
Communities & Local Government,DCLG,16/09/2013,Current (non AEF) Grants to Local Authorities,Localism,HUMBERSIDE FIRE & RESCUE SERVICE,,,,5000234935,,Council Tax Freeze,,Council Tax Freeze,HU4 7BB,"22,522.00",Yes
Communities & Local Government,DCLG,16/09/2013,Current (non AEF) Grants to Local Authorities,Localism,HUMBERSIDE POLICE,,,,5000234973,,Local Council Tax Support for Police Commissioners,,Local Council Tax Support for Police Commissioners,HU5 5SF,"831,435.00",Yes
Communities & Local Government,DCLG,16/09/2013,Current (non AEF) Grants to Local Authorities,Localism,HUMBERSIDE POLICE,,,,5000234974,,Council Tax Freeze,,Council Tax Freeze,HU5 5SF,"50,039.00",Yes
Communities & Local Government,DCLG,16/09/2013,Current (non AEF) Grants to Local Authorities,Localism,HUMBERSIDE POLICE,,,,5000234975,,Council Tax Freeze for Police and Crime Commission,,Council Tax Freeze for Police and Crime Commission,HU5 5SF,"119,944.00",Yes
Communities & Local Government,DCLG,16/09/2013,Current (non AEF) Grants to Local Authorities,Localism,HYNDBURN BC,,,,5000234832,,Council Tax Freeze,,Council Tax Freeze,BB5 1EZ,"5,342.00",Yes
Communities & Local Government,DCLG,16/09/2013,Current (non AEF) Grants to Local Authorities,Localism,ISLE OF WIGHT CNCL,,,,5000234833,,Council Tax Freeze,,Council Tax Freeze,PO30 1UD,"72,478.00",Yes
Communities & Local Government,DCLG,16/09/2013,Current (non AEF) Grants to Local Authorities,Localism,ISLES OF SCILLY COUNCIL,,,,5000234834,,Council Tax Freeze,,Council Tax Freeze,TR21 0LW,"1,391.00",Yes
Communities & Local Government,DCLG,16/09/2013,Current (non AEF) Grants to Local Authorities,Localism,ISLINGTON LB,,,,5000234835,,Council Tax Freeze,,Council Tax Freeze,N1 1XR,"86,416.00",Yes
Communities & Local Government,DCLG,16/09/2013,Current (non AEF) Grants to Local Authorities,Localism,KENT & MEDWAY TOWNS FIRE AUTHORITY,,Large,,5000234936,,Council Tax Freeze,,Council Tax Freeze,ME15 6XB,"43,444.00",Yes
Communities & Local Government,DCLG,16/09/2013,Current (non AEF) Grants to Local Authorities,Localism,KENT COUNTY CNCL,,,,5000234837,,Council Tax Freeze,,Council Tax Freeze,ME14 1XQ,"577,587.00",Yes
Communities & Local Government,DCLG,16/09/2013,Current (non AEF) Grants to Local Authorities,Localism,KETTERING BC,,,,5000234838,,Council Tax Freeze,,Council Tax Freeze,NN15 7QX,"6,310.00",Yes
Communities & Local Government,DCLG,16/09/2013,Current (non AEF) Grants to Local Authorities,Localism,KINGS LYNN & WEST NORFOLK BC,,,,5000234716,,Council Tax Freeze,,Council Tax Freeze,PE30 1EX,"6,496.00",Yes
Communities & Local Government,DCLG,16/09/2013,Current (non AEF) Grants to Local Authorities,Localism,KNOWSLEY MBC,,,,5000234839,,Council Tax Freeze,,Council Tax Freeze,L36 9YZ,"52,215.00",Yes
Communities & Local Government,DCLG,16/09/2013,Current (non AEF) Grants to Local Authorities,Localism,LANCASHIRE COMBINED FIRE AUTHORITY,,Large,,5000234941,,Council Tax Freeze,,Council Tax Freeze,PR2 3LH,"29,968.00",Yes
Communities & Local Government,DCLG,16/09/2013,Current (non AEF) Grants to Local Authorities,Localism,LANCASHIRE COUNTY CNCL,,,,5000234841,,Council Tax Freeze,,Council Tax Freeze,PR1 8RD,"428,097.00",Yes
Communities & Local Government,DCLG,16/09/2013,Current (non AEF) Grants to Local Authorities,Localism,LANCASHIRE POLICE AUTHORITY,,,,5000234976,,Local Council Tax Support for Police Commissioners,,Local Council Tax Support for Police Commissioners,PR1 0LD,"1,107,699.00",Yes
Communities & Local Government,DCLG,16/09/2013,Current (non AEF) Grants to Local Authorities,Localism,LANCASHIRE POLICE AUTHORITY,,,,5000234977,,Council Tax Freeze for Police and Crime Commission,,Council Tax Freeze for Police and Crime Commission,PR1 0LD,"171,410.00",Yes
Communities & Local Government,DCLG,16/09/2013,Current (non AEF) Grants to Local Authorities,Localism,LEEDS CITY CNCL,,Micro,,5000234842,,Council Tax Freeze,,Council Tax Freeze,LS1 1JF,"276,572.00",Yes
Communities & Local Government,DCLG,16/09/2013,Current (non AEF) Grants to Local Authorities,Localism,LEICESTERSHIRE COUNTY CNCL,,,,5000234843,,Council Tax Freeze,,Council Tax Freeze,LE3 8RB,"242,736.00",Yes
Communities & Local Government,DCLG,16/09/2013,Current (non AEF) Grants to Local Authorities,Localism,LEICESTERSHIRE POLICE AUTHORITY,,,,5000234978,,Council Tax Freeze for Police and Crime Commission,,Council Tax Freeze for Police and Crime Commission,LE99 1A2,"134,947.00",Yes
Communities & Local Government,DCLG,16/09/2013,Current (non AEF) Grants to Local Authorities,Localism,LEICESTERSHIRE POLICE AUTHORITY,,,,5000234979,,Local Council Tax Support for Police Commissioners,,Local Council Tax Support for Police Commissioners,LE99 1A2,"699,787.00",Yes
Communities & Local Government,DCLG,16/09/2013,Current (non AEF) Grants to Local Authorities,Localism,LEICESTERSHIRE POLICE AUTHORITY,,,,5000234980,,Council Tax Freeze,,Council Tax Freeze,LE99 1A2,"56,106.00",Yes
Communities & Local Government,DCLG,16/09/2013,Current (non AEF) Grants to Local Authorities,Localism,LEWES DC,,,,5000234717,,Council Tax Freeze,,Council Tax Freeze,BN7 2DQ,"7,545.00",Yes
Communities & Local Government,DCLG,16/09/2013,Current (non AEF) Grants to Local Authorities,Localism,LINCOLNSHIRE COUNTY COUNCIL,,,,5000234844,,Council Tax Freeze,,Council Tax Freeze,LN1 1YT,"254,652.00",Yes
Communities & Local Government,DCLG,16/09/2013,Current (non AEF) Grants to Local Authorities,Localism,LINCOLNSHIRE POLICE AUTHORITY,,,,5000234981,,Local Council Tax Support for Police Commissioners,,Local Council Tax Support for Police Commissioners,LN5 7PH,"575,636.00",Yes
Communities & Local Government,DCLG,16/09/2013,Current (non AEF) Grants to Local Authorities,Localism,LINCOLNSHIRE POLICE AUTHORITY,,,,5000234982,,Council Tax Freeze for Police and Crime Commission,,Council Tax Freeze for Police and Crime Commission,LN5 7PH,"105,867.00",Yes
Communities & Local Government,DCLG,16/09/2013,Current (non AEF) Grants to Local Authorities,Localism,LONDON BOROUGH OF HACKNEY,,,,5000234819,,Council Tax Freeze,,Council Tax Freeze,E8 4RU,"82,475.00",Yes
Communities & Local Government,DCLG,16/09/2013,Current (non AEF) Grants to Local Authorities,Localism,LONDON BOROUGH OF LAMBETH,,,,5000234840,,Council Tax Freeze,,Council Tax Freeze,SW2 1RL,"100,061.00",Yes
Communities & Local Government,DCLG,16/09/2013,Current (non AEF) Grants to Local Authorities,Localism,LONDON BOROUGH OF NEWHAM,,,,5000234849,,Council Tax Freeze,,Council Tax Freeze,E16 2QU,"74,057.00",Yes
Communities & Local Government,DCLG,16/09/2013,Current (non AEF) Grants to Local Authorities,Localism,LONDON BOROUGH OF REDBRIDGE,,,,5000234859,,Council Tax Freeze,,Council Tax Freeze,IG1 1NN,"102,217.00",Yes
Communities & Local Government,DCLG,16/09/2013,Current (non AEF) Grants to Local Authorities,Localism,MANSFIELD DC,,,,5000234845,,Council Tax Freeze,,Council Tax Freeze,NG19 7BH,"5,862.00",Yes
Communities & Local Government,DCLG,16/09/2013,Current (non AEF) Grants to Local Authorities,Localism,MELTON BC,,,,5000234718,,Council Tax Freeze,,Council Tax Freeze,LE13 0UL,"3,425.00",Yes
Communities & Local Government,DCLG,16/09/2013,Current (non AEF) Grants to Local Authorities,Localism,MENDIP DISTRICT COUNCIL,,,,5000234719,,Council Tax Freeze,,Council Tax Freeze,BA4 5BA,"5,985.00",Yes
Communities & Local Government,DCLG,16/09/2013,Current (non AEF) Grants to Local Authorities,Localism,MERSEYSIDE POLICE AUTHORITY,,,,5000234983,,Council Tax Freeze for Police and Crime Commission,,Council Tax Freeze for Police and Crime Commission,L69 1JD,"153,759.00",Yes
Communities & Local Government,DCLG,16/09/2013,Current (non AEF) Grants to Local Authorities,Localism,MERSEYSIDE POLICE AUTHORITY,,,,5000234984,,Local Council Tax Support for Police Commissioners,,Local Council Tax Support for Police Commissioners,L69 1JD,"1,405,815.00",Yes
Communities & Local Government,DCLG,16/09/2013,Current (non AEF) Grants to Local Authorities,Localism,MERTON LB,,,,5000234846,,Council Tax Freeze,,Council Tax Freeze,SM4 5DX,"84,783.00",Yes
Communities & Local Government,DCLG,16/09/2013,Current (non AEF) Grants to Local Authorities,Localism,MID DEVON DC,,,,5000234720,,Council Tax Freeze,,Council Tax Freeze,EX16 6PP,"5,284.00",Yes
Communities & Local Government,DCLG,16/09/2013,Current (non AEF) Grants to Local Authorities,Localism,MID SUFFOLK DC,,,,5000234721,,Council Tax Freeze,,Council Tax Freeze,IP1 2DH,"5,561.00",Yes
Communities & Local Government,DCLG,16/09/2013,Current (non AEF) Grants to Local Authorities,Localism,MID SUSSEX DC,,,,5000234722,,Council Tax Freeze,,Council Tax Freeze,RH16 1SS,"8,810.00",Yes
Communities & Local Government,DCLG,16/09/2013,Current (non AEF) Grants to Local Authorities,Localism,NEW FOREST DC,,Public Bodies,,5000234723,,Council Tax Freeze,,Council Tax Freeze,SO43 9ZG,"11,575.00",Yes
Communities & Local Government,DCLG,16/09/2013,Current (non AEF) Grants to Local Authorities,Localism,NEWARK & SHERWOOD DC (HSG),,,,5000234724,,Council Tax Freeze,,Council Tax Freeze,NG23 5QX,"6,352.00",Yes
Communities & Local Government,DCLG,16/09/2013,Current (non AEF) Grants to Local Authorities,Localism,NEWCASTLE UNDER LYME BC,,,,5000234847,,Council Tax Freeze,,Council Tax Freeze,ST5 2AG,"6,961.00",Yes
Communities & Local Government,DCLG,16/09/2013,Current (non AEF) Grants to Local Authorities,Localism,NEWCASTLE UPON TYNE DC,,,,5000234848,,Council Tax Freeze,,Council Tax Freeze,NE99 1RD,"104,672.00",Yes
Communities & Local Government,DCLG,16/09/2013,Current (non AEF) Grants to Local Authorities,Localism,NORFOLK COUNTY COUNCIL,,,,5000234850,,Council Tax Freeze,,Council Tax Freeze,NR1 2DW,"349,089.00",Yes
Communities & Local Government,DCLG,16/09/2013,Current (non AEF) Grants to Local Authorities,Localism,NORTH DEVON DC,,,,5000234725,,Council Tax Freeze,,Council Tax Freeze,EX31 1EA,"5,764.00",Yes
Communities & Local Government,DCLG,16/09/2013,Current (non AEF) Grants to Local Authorities,Localism,NORTH EAST LINCOLN DC (HSG),,,,5000234726,,Council Tax Freeze,,Council Tax Freeze,DN35 8LN,"61,235.00",Yes
Communities & Local Government,DCLG,16/09/2013,Current (non AEF) Grants to Local Authorities,Localism,NORTH LINCOLNSHIRE DC (HSG),,Public Bodies,,5000234727,,Council Tax Freeze,,Council Tax Freeze,DN16 1AB,"67,189.00",Yes
Communities & Local Government,DCLG,16/09/2013,Current (non AEF) Grants to Local Authorities,Localism,NORTH NORFOLK DC,,,,5000234728,,Council Tax Freeze,,Council Tax Freeze,NR27 9EJ,"5,776.00",Yes
Communities & Local Government,DCLG,16/09/2013,Current (non AEF) Grants to Local Authorities,Localism,NORTH TYNESIDE MBC,,,,5000234851,,Council Tax Freeze,,Council Tax Freeze,NE27 0BY,"85,841.00",Yes
Communities & Local Government,DCLG,16/09/2013,Current (non AEF) Grants to Local Authorities,Localism,NORTH WARWICKSHIRE BC,,Large,,5000234729,,Council Tax Freeze,,Council Tax Freeze,CV9 1DE,"4,465.00",Yes
Communities & Local Government,DCLG,16/09/2013,Current (non AEF) Grants to Local Authorities,Localism,NORTH WEST LEICESTER DC,,,,5000234730,,Council Tax Freeze,,Council Tax Freeze,LE67 3FJ,"5,606.00",Yes
Communities & Local Government,DCLG,16/09/2013,Current (non AEF) Grants to Local Authorities,Localism,NORTH YORKSHIRE CC (DL7 8AL),,,,5000234852,,Council Tax Freeze,,Council Tax Freeze,DL7 8AL,"249,549.00",Yes
Communities & Local Government,DCLG,16/09/2013,Current (non AEF) Grants to Local Authorities,Localism,NORTH YORKSHIRE FIRE & RESCUE AUTH,,Large,,5000234946,,Council Tax Freeze,,Council Tax Freeze,DL6 2ND,"18,809.00",Yes
Communities & Local Government,DCLG,16/09/2013,Current (non AEF) Grants to Local Authorities,Localism,NORTH YORKSHIRE POLICE AUTHORITY,,,,5000234988,,Council Tax Freeze for Police and Crime Commission,,Council Tax Freeze for Police and Crime Commission,DL7 9HA,"153,221.00",Yes
Communities & Local Government,DCLG,16/09/2013,Current (non AEF) Grants to Local Authorities,Localism,NORTH YORKSHIRE POLICE AUTHORITY,,,,5000234989,,Local Council Tax Support for Police Commissioners,,Local Council Tax Support for Police Commissioners,DL7 9HA,"572,767.00",Yes
Communities & Local Government,DCLG,16/09/2013,Current (non AEF) Grants to Local Authorities,Localism,NORTH YORKSHIRE POLICE AUTHORITY,,,,5000234990,,Council Tax Freeze,,Council Tax Freeze,DL7 9HA,"61,956.00",Yes
Communities & Local Government,DCLG,16/09/2013,Current (non AEF) Grants to Local Authorities,Localism,NORTHAMPTON BOROUGH COUNCIL,,,,5000234853,,Council Tax Freeze,,Council Tax Freeze,NN4 4FF,"14,624.00",Yes
Communities & Local Government,DCLG,16/09/2013,Current (non AEF) Grants to Local Authorities,Localism,NORTHAMPTONSHIRE COUNTY COUNCIL,,,,5000234854,,Council Tax Freeze,,Council Tax Freeze,CB3 0AP,"244,535.00",Yes
Communities & Local Government,DCLG,16/09/2013,Current (non AEF) Grants to Local Authorities,Localism,NORTHAMPTONSHIRE POLICE AUTH,,,,5000234985,,Local Council Tax Support for Police Commissioners,,Local Council Tax Support for Police Commissioners,NN1 5DQ,"503,719.00",Yes
Communities & Local Government,DCLG,16/09/2013,Current (non AEF) Grants to Local Authorities,Localism,NORTHAMPTONSHIRE POLICE AUTH,,,,5000234986,,Council Tax Freeze for Police and Crime Commission,,Council Tax Freeze for Police and Crime Commission,NN1 5DQ,"113,152.00",Yes
Communities & Local Government,DCLG,16/09/2013,Current (non AEF) Grants to Local Authorities,Localism,NORTHAMPTONSHIRE POLICE AUTH,,,,5000234987,,Council Tax Freeze,,Council Tax Freeze,NN1 5DQ,"45,952.00",Yes
Communities & Local Government,DCLG,16/09/2013,Current (non AEF) Grants to Local Authorities,Localism,NORTHUMBERLAND COUNTY COUNCIL,,,,5000234948,,Council Tax Freeze,,Council Tax Freeze,NE61 2EF,"153,766.00",Yes
Communities & Local Government,DCLG,16/09/2013,Current (non AEF) Grants to Local Authorities,Localism,NOTTINGHAMSHIRE COUNTY CNCL,,,,5000234855,,Council Tax Freeze,,Council Tax Freeze,NG1 4BU,"312,393.00",Yes
Communities & Local Government,DCLG,16/09/2013,Current (non AEF) Grants to Local Authorities,Localism,NOTTS & CITY NOTTINGHAM FIRE AUTH,,Large,,5000234938,,Council Tax Freeze,,Council Tax Freeze,NG5 8PD,"23,581.00",Yes
Communities & Local Government,DCLG,16/09/2013,Current (non AEF) Grants to Local Authorities,Localism,NUNEATON & BEDWORTH BC,,,,5000234856,,Council Tax Freeze,,Council Tax Freeze,CV11 5AA,"8,006.00",Yes
Communities & Local Government,DCLG,16/09/2013,Current (non AEF) Grants to Local Authorities,Localism,OADBY & WIGSTON BC (HSG),,,,5000234731,,Council Tax Freeze,,Council Tax Freeze,LE8 2DR,"3,763.00",Yes
Communities & Local Government,DCLG,16/09/2013,Current (non AEF) Grants to Local Authorities,Localism,PENDLE BC,,,,5000234857,,Council Tax Freeze,,Council Tax Freeze,BB9 OLX,"6,227.00",Yes
Communities & Local Government,DCLG,16/09/2013,Current (non AEF) Grants to Local Authorities,Localism,PETERBOROUGH CITY CNCL,,,,5000234858,,Council Tax Freeze,,Council Tax Freeze,PE1 1HG,"64,927.00",Yes
Communities & Local Government,DCLG,16/09/2013,Current (non AEF) Grants to Local Authorities,Localism,POLICE & CRIME COMM GTR MANCHESTER,,,,5000234914,,Local Council Tax Support for Police Commissioners,,Local Council Tax Support for Police Commissioners,M16 0RE,"2,148,652.00",Yes
Communities & Local Government,DCLG,16/09/2013,Current (non AEF) Grants to Local Authorities,Localism,POLICE & CRIME COMM GTR MANCHESTER,,,,5000234915,,Council Tax Freeze for Police and Crime Commission,,Council Tax Freeze for Police and Crime Commission,M16 0RE,"289,996.00",Yes
Communities & Local Government,DCLG,16/09/2013,Current (non AEF) Grants to Local Authorities,Localism,POLICE & CRIME COMM'R DERBYSHIRE (R,,,,5000234908,,Local Council Tax Support for Police Commissioners,,Local Council Tax Support for Police Commissioners,DE5 3RS,"732,241.00",Yes
Communities & Local Government,DCLG,16/09/2013,Current (non AEF) Grants to Local Authorities,Localism,POLICE & CRIME COMM'R DERBYSHIRE (R,,,,5000234909,,Council Tax Freeze for Police and Crime Commission,,Council Tax Freeze for Police and Crime Commission,DE5 3RS,"135,401.00",Yes
Communities & Local Government,DCLG,16/09/2013,Current (non AEF) Grants to Local Authorities,Localism,POLICE & CRIME COMM'R FOR CHESHIRE,,,,5000234902,,Council Tax Freeze for Police and Crime Commission,,Council Tax Freeze for Police and Crime Commission,CW7 9FX,"136,142.00",Yes
Communities & Local Government,DCLG,16/09/2013,Current (non AEF) Grants to Local Authorities,Localism,POLICE & CRIME COMM'R FOR CHESHIRE,,,,5000234903,,Local Council Tax Support for Police Commissioners,,Local Council Tax Support for Police Commissioners,CW7 9FX,"628,911.00",Yes
Communities & Local Government,DCLG,16/09/2013,Current (non AEF) Grants to Local Authorities,Localism,POLICE & CRIME COMM'R FOR CLEVELAND,,,,5000234904,,Local Council Tax Support for Police Commissioners,,Local Council Tax Support for Police Commissioners,TS8 2JX,"684,619.00",Yes
Communities & Local Government,DCLG,16/09/2013,Current (non AEF) Grants to Local Authorities,Localism,POLICE & CRIME COMM'R FOR CLEVELAND,,,,5000234905,,Council Tax Freeze for Police and Crime Commission,,Council Tax Freeze for Police and Crime Commission,TS8 2JX,"79,999.00",Yes
Communities & Local Government,DCLG,16/09/2013,Current (non AEF) Grants to Local Authorities,Localism,POLICE & CRIME COMM'R FOR CUMBRIA (,,,,5000234906,,Council Tax Freeze for Police and Crime Commission,,Council Tax Freeze for Police and Crime Commission,CA10 2AU,"85,781.00",Yes
Communities & Local Government,DCLG,16/09/2013,Current (non AEF) Grants to Local Authorities,Localism,POLICE & CRIME COMM'R FOR CUMBRIA (,,,,5000234907,,Local Council Tax Support for Police Commissioners,,Local Council Tax Support for Police Commissioners,CA10 2AU,"397,913.00",Yes
Communities & Local Government,DCLG,16/09/2013,Current (non AEF) Grants to Local Authorities,Localism,POLICE & CRIME COMM'R FOR DORSET (R,,,,5000234910,,Council Tax Freeze for Police and Crime Commission,,Council Tax Freeze for Police and Crime Commission,DT2 8DZ,"133,052.00",Yes
Communities & Local Government,DCLG,16/09/2013,Current (non AEF) Grants to Local Authorities,Localism,POLICE & CRIME COMM'R FOR DORSET (R,,,,5000234911,,Local Council Tax Support for Police Commissioners,,Local Council Tax Support for Police Commissioners,DT2 8DZ,"599,012.00",Yes
Communities & Local Government,DCLG,16/09/2013,Current (non AEF) Grants to Local Authorities,Localism,POLICE & CRIME COMM'R FOR GLOCS (RS,,,,5000234912,,Local Council Tax Support for Police Commissioners,,Local Council Tax Support for Police Commissioners,GL51 6QH,"446,411.00",Yes
Communities & Local Government,DCLG,16/09/2013,Current (non AEF) Grants to Local Authorities,Localism,POLICE & CRIME COMM'R FOR GLOCS (RS,,,,5000234913,,Council Tax Freeze for Police and Crime Commission,,Council Tax Freeze for Police and Crime Commission,GL51 6QH,"111,676.00",Yes
Communities & Local Government,DCLG,16/09/2013,Current (non AEF) Grants to Local Authorities,Localism,POLICE & CRIME COMM'R FOR KENT,,,,5000234916,,Council Tax Freeze for Police and Crime Commission,,Council Tax Freeze for Police and Crime Commission,ME15 9BZ,"220,349.00",Yes
Communities & Local Government,DCLG,16/09/2013,Current (non AEF) Grants to Local Authorities,Localism,POLICE & CRIME COMM'R FOR KENT,,,,5000234917,,Local Council Tax Support for Police Commissioners,,Local Council Tax Support for Police Commissioners,ME15 9BZ,"1,105,850.00",Yes
Communities & Local Government,DCLG,16/09/2013,Current (non AEF) Grants to Local Authorities,Localism,POLICE & CRIME COMM'R FOR NORFOLK (,,,,5000234918,,Local Council Tax Support for Police Commissioners,,Local Council Tax Support for Police Commissioners,NR18 0WW,"785,135.00",Yes
Communities & Local Government,DCLG,16/09/2013,Current (non AEF) Grants to Local Authorities,Localism,POLICE & CRIME COMM'R FOR NORFOLK (,,,,5000234919,,Council Tax Freeze for Police and Crime Commission,,Council Tax Freeze for Police and Crime Commission,NR18 0WW,"142,790.00",Yes
Communities & Local Government,DCLG,16/09/2013,Current (non AEF) Grants to Local Authorities,Localism,POLICE & CRIME COMM'R FOR NOTTS (RS,,,,5000234922,,Council Tax Freeze for Police and Crime Commission,,Council Tax Freeze for Police and Crime Commission,NG5 8PP,"133,210.00",Yes
Communities & Local Government,DCLG,16/09/2013,Current (non AEF) Grants to Local Authorities,Localism,POLICE & CRIME COMM'R FOR NOTTS (RS,,,,5000234923,,Local Council Tax Support for Police Commissioners,,Local Council Tax Support for Police Commissioners,NG5 8PP,"836,717.00",Yes
Communities & Local Government,DCLG,16/09/2013,Current (non AEF) Grants to Local Authorities,Localism,POLICE & CRIME COMM'R FOR SUSSEX,,,,5000234924,,Local Council Tax Support for Police Commissioners,,Local Council Tax Support for Police Commissioners,BN7 2DZ,"1,010,709.00",Yes
Communities & Local Government,DCLG,16/09/2013,Current (non AEF) Grants to Local Authorities,Localism,POLICE & CRIME COMM'R FOR SUSSEX,,,,5000234925,,Council Tax Freeze for Police and Crime Commission,,Council Tax Freeze for Police and Crime Commission,BN7 2DZ,"217,551.00",Yes
Communities & Local Government,DCLG,16/09/2013,Current (non AEF) Grants to Local Authorities,Localism,POLICE & CRIME COMM'R FOR SUSSEX,,,,5000234926,,Council Tax Freeze,,Council Tax Freeze,BN7 2DZ,"88,648.00",Yes
Communities & Local Government,DCLG,16/09/2013,Current (non AEF) Grants to Local Authorities,Localism,POLICE & CRIME COMM'R FOR WILTSHIRE,,,,5000234930,,Council Tax Freeze,,Council Tax Freeze,BA14 8JJ,"40,228.00",Yes
Communities & Local Government,DCLG,16/09/2013,Current (non AEF) Grants to Local Authorities,Localism,POLICE & CRIME COMM'R FOR WILTSHIRE,,,,5000234931,,Council Tax Freeze for Police and Crime Commission,,Council Tax Freeze for Police and Crime Commission,BA14 8JJ,"99,055.00",Yes
Communities & Local Government,DCLG,16/09/2013,Current (non AEF) Grants to Local Authorities,Localism,POLICE & CRIME COMM'R FOR WILTSHIRE,,,,5000234932,,Local Council Tax Support for Police Commissioners,,Local Council Tax Support for Police Commissioners,BA14 8JJ,"382,967.00",Yes
Communities & Local Government,DCLG,16/09/2013,Current (non AEF) Grants to Local Authorities,Localism,POLICE & CRIME COMM'R NORTHUMBRIA (,,,,5000234920,,Local Council Tax Support for Police Commissioners,,Local Council Tax Support for Police Commissioners,NE1 8DL,"684,464.00",Yes
Communities & Local Government,DCLG,16/09/2013,Current (non AEF) Grants to Local Authorities,Localism,POLICE & CRIME COMM'R NORTHUMBRIA (,,,,5000234921,,Council Tax Freeze for Police and Crime Commission,,Council Tax Freeze for Police and Crime Commission,NE1 8DL,"91,192.00",Yes
Communities & Local Government,DCLG,16/09/2013,Current (non AEF) Grants to Local Authorities,Localism,POLICE & CRIME COMM'R THAMES VALLEY,,,,5000234927,,Council Tax Freeze for Police and Crime Commission,,Council Tax Freeze for Police and Crime Commission,OX5 2NX,"337,242.00",Yes
Communities & Local Government,DCLG,16/09/2013,Current (non AEF) Grants to Local Authorities,Localism,POLICE & CRIME COMM'R THAMES VALLEY,,,,5000234928,,Local Council Tax Support for Police Commissioners,,Local Council Tax Support for Police Commissioners,OX5 2NX,"1,186,771.00",Yes
Communities & Local Government,DCLG,16/09/2013,Current (non AEF) Grants to Local Authorities,Localism,POOLE BC (HSG),,,,5000234732,,Council Tax Freeze,,Council Tax Freeze,BH15 2RU,"73,069.00",Yes
Communities & Local Government,DCLG,16/09/2013,Current (non AEF) Grants to Local Authorities,Localism,REDDITCH BC,,,,5000234860,,Council Tax Freeze,,Council Tax Freeze,B98 8AH,"5,819.00",Yes
Communities & Local Government,DCLG,16/09/2013,Current (non AEF) Grants to Local Authorities,Localism,RIBBLE VALLEY BC,,,,5000234733,,Council Tax Freeze,,Council Tax Freeze,BB7 2RA,"3,147.00",Yes
Communities & Local Government,DCLG,16/09/2013,Current (non AEF) Grants to Local Authorities,Localism,RICHMOND UPON THAMES LB,,,,5000234861,,Council Tax Freeze,,Council Tax Freeze,TW1 3BZ,"117,647.00",Yes
Communities & Local Government,DCLG,16/09/2013,Current (non AEF) Grants to Local Authorities,Localism,ROSSENDALE BC,,,,5000234862,,Council Tax Freeze,,Council Tax Freeze,BB4 7LZ,"5,473.00",Yes
Communities & Local Government,DCLG,16/09/2013,Current (non AEF) Grants to Local Authorities,Localism,ROTHER DC (HSG),,,,5000234734,,Council Tax Freeze,,Council Tax Freeze,TN39 3JX,"7,337.00",Yes
Communities & Local Government,DCLG,16/09/2013,Current (non AEF) Grants to Local Authorities,Localism,ROTHERHAM MBC,,,,5000234863,,Council Tax Freeze,,Council Tax Freeze,S60 1AE,"96,473.00",Yes
Communities & Local Government,DCLG,16/09/2013,Current (non AEF) Grants to Local Authorities,Localism,ROYAL BOROUGH OF KENSINGTON & CHELS,,,,5000234836,,Council Tax Freeze,,Council Tax Freeze,W8 7NX,"80,398.00",Yes
Communities & Local Government,DCLG,16/09/2013,Current (non AEF) Grants to Local Authorities,Localism,RUGBY BC,,,,5000234864,,Council Tax Freeze,,Council Tax Freeze,CV21 2LA,"6,137.00",Yes
Communities & Local Government,DCLG,16/09/2013,Current (non AEF) Grants to Local Authorities,Localism,RUSHMOOR BC,,,,5000234865,,Council Tax Freeze,,Council Tax Freeze,GU14 7JU,"5,905.00",Yes
Communities & Local Government,DCLG,16/09/2013,Current (non AEF) Grants to Local Authorities,Localism,RUTLAND CC,,,,5000234866,,Council Tax Freeze,,Council Tax Freeze,LE15 6HP,"21,041.00",Yes
Communities & Local Government,DCLG,16/09/2013,Current (non AEF) Grants to Local Authorities,Localism,RYEDALE DC,,,,5000234735,,Council Tax Freeze,,Council Tax Freeze,YO17 0HH,"3,805.00",Yes
Communities & Local Government,DCLG,16/09/2013,Current (non AEF) Grants to Local Authorities,Localism,SALFORD CITY CNCL,,,,5000234867,,Council Tax Freeze,,Council Tax Freeze,M27 5AW,"94,346.00",Yes
Communities & Local Government,DCLG,16/09/2013,Current (non AEF) Grants to Local Authorities,Localism,SANDWELL MBC,,,,5000234868,,Council Tax Freeze,,Council Tax Freeze,B69 3BS,"103,789.00",Yes
Communities & Local Government,DCLG,16/09/2013,Current (non AEF) Grants to Local Authorities,Localism,SCARBOROUGH BC,,Large,,5000234736,,Council Tax Freeze,,Council Tax Freeze,YO11 2HG,"8,994.00",Yes
Communities & Local Government,DCLG,16/09/2013,Current (non AEF) Grants to Local Authorities,Localism,SEFTON MBC,,,,5000234869,,Council Tax Freeze,,Council Tax Freeze,L20 3NQ,"117,279.00",Yes
Communities & Local Government,DCLG,16/09/2013,Current (non AEF) Grants to Local Authorities,Localism,SELBY DC,,,,5000234737,,Council Tax Freeze,,Council Tax Freeze,YO8 0SA,"4,813.00",Yes
Communities & Local Government,DCLG,16/09/2013,Current (non AEF) Grants to Local Authorities,Localism,SHEFFIELD CITY CNCL,,,,5000234870,,Council Tax Freeze,,Council Tax Freeze,S1 1UR,"191,363.00",Yes
Communities & Local Government,DCLG,16/09/2013,Current (non AEF) Grants to Local Authorities,Localism,SHEPWAY DISTRICT COUNCIL,,,,5000234738,,Council Tax Freeze,,Council Tax Freeze,CT20 2QY,"9,859.00",Yes
Communities & Local Government,DCLG,16/09/2013,Current (non AEF) Grants to Local Authorities,Localism,SHROPSHIRE UNITARY AUTHORITY,,,,5000234952,,Council Tax Freeze,,Council Tax Freeze,SY2 6ND,"131,245.00",Yes
Communities & Local Government,DCLG,16/09/2013,Current (non AEF) Grants to Local Authorities,Localism,SOLIHULL MBC,,,,5000234871,,Council Tax Freeze,,Council Tax Freeze,B91 3QR,"94,789.00",Yes
Communities & Local Government,DCLG,16/09/2013,Current (non AEF) Grants to Local Authorities,Localism,SOMERSET COUNTY CNCL,,,,5000234872,,Council Tax Freeze,,Council Tax Freeze,TA1 4DY,"204,155.00",Yes
Communities & Local Government,DCLG,16/09/2013,Current (non AEF) Grants to Local Authorities,Localism,SOUTH BUCKS DC (HSG),,,,5000234739,,Council Tax Freeze,,Council Tax Freeze,UB9 4LH,"4,726.00",Yes
Communities & Local Government,DCLG,16/09/2013,Current (non AEF) Grants to Local Authorities,Localism,SOUTH DERBYSHIRE D C,,,,5000234740,,Council Tax Freeze,,Council Tax Freeze,DE11 0AH,"4,894.00",Yes
